Workbook

Sheet Summary Data
B8: Client Sector | C8: Credit exposure (BRLm) | D8: Natural Capital Impact (BRLm) | E8: NCER ratio
B9: Agriculture | C9: 56 | D9: =C9*E9 -> 93.29841381 | E9: =VLOOKUP($B9,'Bank Analysis'!$O$52:$R$71,4,0) -> 1.666043104
B10: Automobiles | C10: 504 | D10: 220.8247938 | E10: =VLOOKUP($B10,'Bank Analysis'!$O$52:$R$71,4,0) -> 0.4381444322
B11: Chemicals | C11: 600 | D11: 720.5687415 | E11: =VLOOKUP($B11,'Bank Analysis'!$O$52:$R$71,4,0) -> 1.200947903
B12: Construction | C12: 200 | D12: 157.1559979 | E12: =VLOOKUP($B12,'Bank Analysis'!$O$52:$R$71,4,0) -> 0.7857799895
B13: Energy | C13: 546 | D13: 115.4023195 | E13: =VLOOKUP($B13,'Bank Analysis'!$O$52:$R$71,4,0) -> 0.2113595595
B14: Fishing | C14: 344 | D14: 2487.07669 | E14: =VLOOKUP($B14,'Bank Analysis'!$O$52:$R$71,4,0) -> 7.229874098
B15: Food and Beverage | C15: 91 | D15: 249.5300103 | E15: =VLOOKUP($B15,'Bank Analysis'!$O$52:$R$71,4,0) -> 2.742088025
B16: Forestry | C16: 470 | D16: 174.5442904 | E16: =VLOOKUP($B16,'Bank Analysis'!$O$52:$R$71,4,0) -> 0.3713708307
B17: Livestock | C17: 61 | D17: 2207.696261 | E17: =VLOOKUP($B17,'Bank Analysis'!$O$52:$R$71,4,0) -> 36.19174198
B18: Manufacturing | C18: 386 | D18: 86.41378412 | E18: =VLOOKUP($B18,'Bank Analysis'!$O$52:$R$71,4,0) -> 0.223869907
B19: Mining | C19: 320 | D19: 120.0019508 | E19: =VLOOKUP($B19,'Bank Analysis'!$O$52:$R$71,4,0) -> 0.3750060962
B20: Oil & Gas | C20: 1000 | D20: 368.7910637 | E20: =VLOOKUP($B20,'Bank Analysis'!$O$52:$R$71,4,0) -> 0.3687910637
B21: Other Manufacturing | C21: 400 | D21: 49.65135884 | E21: =VLOOKUP($B21,'Bank Analysis'!$O$52:$R$71,4,0) -> 0.1241283971
B22: Paper and celulose | C22: 335 | D22: 96.0692732 | E22: =VLOOKUP($B22,'Bank Analysis'!$O$52:$R$71,4,0) -> 0.2867739499
B23: Petrochemicals | C23: 62 | D23: 51.99595172 | E23: =VLOOKUP($B23,'Bank Analysis'!$O$52:$R$71,4,0) -> 0.8386443826
B24: Real Estate | C24: 50 | D24: 1.144229607 | E24: =VLOOKUP($B24,'Bank Analysis'!$O$52:$R$71,4,0) -> 0.02288459215
B25: Siderurgy and Metalurgy | C25: 254 | D25: 208.8956844 | E25: =VLOOKUP($B25,'Bank Analysis'!$O$52:$R$71,4,0) -> 0.8224239541
B26: Telecommunications | C26: 50 | D26: 2.297518829 | E26: =VLOOKUP($B26,'Bank Analysis'!$O$52:$R$71,4,0) -> 0.04595037659
B27: Transport | C27: 456 | D27: 127.4339999 | E27: =VLOOKUP($B27,'Bank Analysis'!$O$52:$R$71,4,0) -> 0.2794605261
B28: Water | C28: 789 | D28: 95.29121439 | E28: =VLOOKUP($B28,'Bank Analysis'!$O$52:$R$71,4,0) -> 0.1207746697
B29: Total | C29: =IFERROR(SUM($C$9:$C$28),"") -> 6974 | D29: =IFERROR(SUM($D$9:$D$28),"") -> 7634.083547

Sheet Overview
B20: ="The "&'Bank Analysis'!$E$52&" Sector receives the most credit." -> The Oil & Gas Sector receives the most credit. | K20: ="The "&'Bank Analysis'!$L$52&" Sector causes the largest natural capital impact." -> The Fishing Sector causes the largest natural capital impact.
B44: ="This bank's "&'Bank Analysis'!$K$76&" impact is the largest across its loan book." -> This bank's Land Use impact is the largest across its loan book. | K44: ="The "&'Bank Analysis'!$W$52&" Sector causes the largest natural capital impact per unit of credit." -> The Livestock Sector causes the largest natural capital impact per unit of credit.

Sheet Sectoral Analysis

Sheet Indicator Analysis

Sheet Summary Charts (3) (hidden)

Sheet Bank Analysis (hidden)
A3: Row Labels | B3: Sum of Credit Exposure (BRLm) | C3: Sum of GHG Direct (BRLm) | D3: Sum of GHG Indirect (BRLm) | E3: Sum of Air Pollution Direct (BRLm) | F3: Sum of Air Pollution Indirect (BRLm) | G3: Sum of Waste Direct (BRLm) | H3: Sum of Waste Indirect (BRLm) | I3: Sum of Land Use Direct (BRLm) | J3: Sum of Land Use Indirect (BRLm) | K3: Sum of Water Direct (BRLm) | L3: Sum of Water Indirect (BRLm) | M3: Sum of Water Pollutants Direct (BRLm) | N3: Sum of Water Pollutants Indirect (BRLm)
A4: Agriculture | B4: 56 | C4: 4.468899764 | D4: 2.734771677 | E4: 1.30640663 | F4: 19.2394911 | G4: 0.1818033812 | H4: 1.62046498 | I4: 44.36082101 | J4: 6.533508739 | K4: 0.1616293819 | L4: 1.316414655 | M4: 10.2035566 | N4: 1.170645889
A5: Chemicals | B5: 600 | C5: 257.0236758 | D5: 142.8266816 | E5: 1.456312018 | F5: 155.4090157 | G5: 2.396490581 | H5: 93.12110044 | I5: 0.0350101379 | J5: 41.81647376 | K5: 0.8925296553 | L5: 10.74644352 | M5: 0.01177387335 | N5: 14.83323433
A6: Construction | B6: 200 | C6: 70.66048084 | D6: 41.2037877 | E6: 3.339051547 | F6: 9.846214572 | G6: 1.00090055 | H6: 23.98359615 | I6: 0.03338272854 | J6: 5.152499654 | K6: 0.03819036027 | L6: 0.5199864663 | M6: 0.000766191352 | N6: 1.37714114
A7: Energy | B7: 546 | C7: 0.09638361694 | D7: 20.79786047 | E7: 5.494795896 | F7: 8.744677737 | G7: 0.1881936216 | H7: 52.74118315 | I7: 3.82432662 | J7: 19.35983454 | K7: 1.958529295 | L7: 0.635057874 | M7: 0 | N7: 1.561476659
A8: Fishing | B8: 344 | C8: 1.538293254e-05 | D8: 43.5431737 | E8: 0 | F8: 14.01756473 | G8: 3.794073665 | H8: 13.66273694 | I8: 0 | J8: 85.10973589 | K8: 1712.470624 | L8: 491.0610041 | M8: 0 | N8: 123.417761
A9: Food and Beverage | B9: 91 | C9: 1.921643339 | D9: 52.98673699 | E9: 0.01734033317 | F9: 11.02884766 | G9: 0.2995331129 | H9: 5.879671572 | I9: 0.005816593202 | J9: 39.47112386 | K9: 0.002669661055 | L9: 83.90102231 | M9: 5.041466942e-05 | N9: 54.01555441
A10: Forestry | B10: 470 | C10: 11.50540956 | D10: 8.097607257 | E10: 0.5291472247 | F10: 4.146682262 | G10: 1.502902476 | H10: 6.479113166 | I10: 0 | J10: 127.7173319 | K10: 0 | L10: 0.3108719421 | M10: 0 | N10: 14.25522467
A11: Livestock | B11: 61 | C11: 271.6791551 | D11: 62.60635792 | E11: 11.61145702 | F11: 8.145976236 | G11: 0.5112467357 | H11: 5.121587631 | I11: 1765.725096 | J11: 27.93359202 | K11: 0.006142753828 | L11: 10.23919005 | M11: 0 | N11: 44.11645948
A12: Manufacturing | B12: 386 | C12: 0.7331409802 | D12: 23.25651479 | E12: 0.101744463 | F12: 17.05854993 | G12: 1.860747679 | H12: 12.40483258 | I12: 0.05082764046 | J12: 9.392587971 | K12: 0.004511059195 | L12: 13.020238 | M12: 0 | N12: 8.530089027
A13: Mining | B13: 320 | C13: 2.91453071 | D13: 20.1487737 | E13: 6.071364212 | F13: 12.9054836 | G13: 0.2274524034 | H13: 21.75240199 | I13: 46.23442199 | J13: 7.495334549 | K13: 0.06832495263 | L13: 0.3493478403 | M13: 0 | N13: 1.83451483
A14: Oil & Gas | B14: 1000 | C14: 37.49076089 | D14: 35.80881685 | E14: 0.3065157385 | F14: 6.107922583 | G14: 0.3733051158 | H14: 160.7361756 | I14: 52.93184856 | J14: 73.57254158 | K14: 0.04339948494 | L14: 0.4071640601 | M14: 0.0003248961432 | N14: 1.012288366
A15: Other Manufacturing | B15: 400 | C15: 0.5780932148 | D15: 23.27609313 | E15: 0.01007888037 | F15: 9.581890301 | G15: 0.4970824171 | H15: 10.6475386 | I15: 0.01151256629 | J15: 3.012019153 | K15: 0.0001656870742 | L15: 0.4862965823 | M15: 0 | N15: 1.55058831
A16: Paper and celulose | B16: 335 | C16: 14.28125691 | D16: 14.61022027 | E16: 4.204975215 | F16: 44.1839801 | G16: 0.5017942408 | H16: 9.166429454 | I16: 0.003992389024 | J16: 4.411846465 | K16: 0.1734293029 | L16: 0.7319400773 | M16: 0.5674974181 | N16: 3.231911354
A17: Petrochemicals | B17: 62 | C17: 13.99116946 | D17: 12.85555896 | E17: 0.07421237526 | F17: 5.19508936 | G17: 0.09116701889 | H17: 10.05639275 | I17: 0.0001356685522 | J17: 6.182088005 | K17: 0.009829824255 | L17: 0.1374500188 | M17: 0.002098142034 | N17: 3.400760142
A18: Real Estate | B18: 50 | C18: 0.0337817217 | D18: 0.5749175172 | E18: 4.481791057e-05 | F18: 0.1631385553 | G18: 0.002209090109 | H18: 0.2345566024 | I18: 6.510372929e-06 | J18: 0.08101090956 | K18: 1.62989092e-05 | L18: 0.01421084118 | M18: 0 | N18: 0.04033674285
A19: Siderurgy and Metalurgy | B19: 254 | C19: 42.62531123 | D19: 51.52650237 | E19: 4.963924177 | F19: 13.4761041 | G19: 1.216332891 | H19: 77.15710623 | I19: 0.02713923263 | J19: 14.95252935 | K19: 0.4248934316 | L19: 0.6333626225 | M19: 0.1081019138 | N19: 1.784376797
A20: Telecommunications | B20: 50 | C20: 0.03834811555 | D20: 0.8417237217 | E20: 4.198909098e-05 | F20: 0.6227536112 | G20: 0.006445570783 | H20: 0.4508013442 | I20: 0.0006446703267 | J20: 0.1896793983 | K20: 0.0001563786713 | L20: 0.03443028118 | M20: 0 | N20: 0.1124937482
A21: Transport | B21: 456 | C21: 43.59437225 | D21: 16.76989326 | E21: 0.5494599047 | F21: 5.426043524 | G21: 0.06040286834 | H21: 39.51877664 | I21: 0.5535538574 | J21: 17.42259203 | K21: 0.002881602611 | L21: 2.167829108 | M21: 0 | N21: 1.368194858
A22: Water | B22: 789 | C22: 17.3565659 | D22: 13.82493695 | E22: 0.6416811917 | F22: 30.5416081 | G22: 0.1545777629 | H22: 9.792167081 | I22: 0 | J22: 3.352330401 | K22: 18.33703769 | L22: 0.2574557869 | M22: 0 | N22: 1.032853528
A23: Automobiles | B23: 504 | C23: 2.997052723 | D23: 102.3677188 | E23: 0.08724969808 | F23: 40.90209029 | G23: 2.065466943 | H23: 47.99099864 | I23: 0.08633957719 | J23: 13.45355419 | K23: 0.001163745771 | L23: 4.050444983 | M23: 0.0003157965397 | N23: 6.82239845
A24: Grand Total | B24: 6974 | C24: 793.9900475 | D24: 690.6586477 | E24: 40.76580333 | F24: 416.7431241 | G24: 16.93212812 | H24: 602.5176315 | I24: 1913.884876 | J24: 506.6122143 | K24: 1734.596125 | L24: 621.0201611 | M24: 10.89448524 | N24: 285.4683037
P26: Direct and Indirect Environmental Impacts
B27: =RIGHT(B3,LEN(B3)-7) -> Credit Exposure (BRLm) | C27: =RIGHT(C3,LEN(C3)-7) -> GHG Direct (BRLm) | D27: GHG Indirect (BRLm) | E27: Air Pollution Direct (BRLm) | F27: Air Pollution Indirect (BRLm) | G27: Waste Direct (BRLm) | H27: Waste Indirect (BRLm) | I27: Land Use Direct (BRLm) | J27: Land Use Indirect (BRLm) | K27: Water Direct (BRLm) | L27: Water Indirect (BRLm) | M27: Water Pollutants Direct (BRLm) | N27: Water Pollutants Indirect (BRLm) | Q27: Total Direct | R27: Total Indirect
A28: =A4 -> Agriculture | B28: 56 | C28: 4.468899764 | D28: 2.734771677 | E28: 1.30640663 | F28: 19.2394911 | G28: 0.1818033812 | H28: 1.62046498 | I28: 44.36082101 | J28: 6.533508739 | K28: 0.1616293819 | L28: 1.316414655 | M28: 10.2035566 | N28: 1.170645889 | P28: =L52 -> Fishing | Q28: =SUMIF($A$28:$A$48,$P28,C$28:C$48)+SUMIF($A$28:$A$48,$P28,E$28:E$48)+SUMIF($A$28:$A$48,$P28,G$28:G$48)+SUMIF($A$28:$A$48,$P28,I$28:I$48)+SUMIF($A$28:$A$48,$P28,K$28:K$48)+SUMIF($A$28:$A$48,$P28,M$28:M$48) -> 1716.264713 | R28: =SUMIF($A$28:$A$48,$P28,D$28:D$48)+SUMIF($A$28:$A$48,$P28,F$28:F$48)+SUMIF($A$28:$A$48,$P28,H$28:H$48)+SUMIF($A$28:$A$48,$P28,J$28:J$48)+SUMIF($A$28:$A$48,$P28,L$28:L$48)+SUMIF($A$28:$A$48,$P28,N$28:N$48) -> 770.8119764
A29: =A5 -> Chemicals | B29: 600 | C29: 257.0236758 | D29: 142.8266816 | E29: 1.456312018 | F29: 155.4090157 | G29: 2.396490581 | H29: 93.12110044 | I29: 0.0350101379 | J29: 41.81647376 | K29: 0.8925296553 | L29: 10.74644352 | M29: 0.01177387335 | N29: 14.83323433 | P29: Livestock | Q29: 2049.533097 | R29: 158.1631633
A30: =A6 -> Construction | B30: 200 | C30: 70.66048084 | D30: 41.2037877 | E30: 3.339051547 | F30: 9.846214572 | G30: 1.00090055 | H30: 23.98359615 | I30: 0.03338272854 | J30: 5.152499654 | K30: 0.03819036027 | L30: 0.5199864663 | M30: 0.000766191352 | N30: 1.37714114 | P30: Chemicals | Q30: 261.8157921 | R30: 458.7529494
A31: =A7 -> Energy | B31: 546 | C31: 0.09638361694 | D31: 20.79786047 | E31: 5.494795896 | F31: 8.744677737 | G31: 0.1881936216 | H31: 52.74118315 | I31: 3.82432662 | J31: 19.35983454 | K31: 1.958529295 | L31: 0.635057874 | M31: 0 | N31: 1.561476659 | P31: Oil & Gas | Q31: 91.14615469 | R31: 277.6449091
A32: =A8 -> Fishing | B32: 344 | C32: 1.538293254e-05 | D32: 43.5431737 | E32: 0 | F32: 14.01756473 | G32: 3.794073665 | H32: 13.66273694 | I32: 0 | J32: 85.10973589 | K32: 1712.470624 | L32: 491.0610041 | M32: 0 | N32: 123.417761 | P32: Food and Beverage | Q32: 2.247053454 | R32: 247.2829568
A33: =A9 -> Food and Beverage | B33: 91 | C33: 1.921643339 | D33: 52.98673699 | E33: 0.01734033317 | F33: 11.02884766 | G33: 0.2995331129 | H33: 5.879671572 | I33: 0.005816593202 | J33: 39.47112386 | K33: 0.002669661055 | L33: 83.90102231 | M33: 5.041466942e-05 | N33: 54.01555441 | P33: Automobiles | Q33: 5.237588483 | R33: 215.5872054
A34: =A10 -> Forestry | B34: 470 | C34: 11.50540956 | D34: 8.097607257 | E34: 0.5291472247 | F34: 4.146682262 | G34: 1.502902476 | H34: 6.479113166 | I34: 0 | J34: 127.7173319 | K34: 0 | L34: 0.3108719421 | M34: 0 | N34: 14.25522467 | P34: Siderurgy and Metalurgy | Q34: =SUMIF($A$28:$A$48,$P34,C$28:C$48)+SUMIF($A$28:$A$48,$P34,E$28:E$48)+SUMIF($A$28:$A$48,$P34,G$28:G$48)+SUMIF($A$28:$A$48,$P34,I$28:I$48)+SUMIF($A$28:$A$48,$P34,K$28:K$48)+SUMIF($A$28:$A$48,$P34,M$28:M$48) -> 49.36570288 | R34: 159.5299815
A35: =A11 -> Livestock | B35: 61 | C35: 271.6791551 | D35: 62.60635792 | E35: 11.61145702 | F35: 8.145976236 | G35: 0.5112467357 | H35: 5.121587631 | I35: 1765.725096 | J35: 27.93359202 | K35: 0.006142753828 | L35: 10.23919005 | M35: 0 | N35: 44.11645948 | P35: Forestry | Q35: 13.53745926 | R35: 161.0068312
A36: =A12 -> Manufacturing | B36: 386 | C36: 0.7331409802 | D36: 23.25651479 | E36: 0.101744463 | F36: 17.05854993 | G36: 1.860747679 | H36: 12.40483258 | I36: 0.05082764046 | J36: 9.392587971 | K36: 0.004511059195 | L36: 13.020238 | M36: 0 | N36: 8.530089027 | P36: Construction | Q36: 75.07277221 | R36: 82.08322568
A37: =A13 -> Mining | B37: 320 | C37: 2.91453071 | D37: 20.1487737 | E37: 6.071364212 | F37: 12.9054836 | G37: 0.2274524034 | H37: 21.75240199 | I37: 46.23442199 | J37: 7.495334549 | K37: 0.06832495263 | L37: 0.3493478403 | M37: 0 | N37: 1.83451483 | P37: Transport | Q37: 44.76067048 | R37: 82.67332942
A38: =A14 -> Oil & Gas | B38: 1000 | C38: 37.49076089 | D38: 35.80881685 | E38: 0.3065157385 | F38: 6.107922583 | G38: 0.3733051158 | H38: 160.7361756 | I38: 52.93184856 | J38: 73.57254158 | K38: 0.04339948494 | L38: 0.4071640601 | M38: 0.0003248961432 | N38: 1.012288366 | P38: Mining | Q38: 55.51609426 | R38: 64.48585651
A39: =A15 -> Other Manufacturing | B39: 400 | C39: 0.5780932148 | D39: 23.27609313 | E39: 0.01007888037 | F39: 9.581890301 | G39: 0.4970824171 | H39: 10.6475386 | I39: 0.01151256629 | J39: 3.012019153 | K39: 0.0001656870742 | L39: 0.4862965823 | M39: 0 | N39: 1.55058831 | P39: Energy | Q39: 11.56222905 | R39: 103.8400904
A40: =A16 -> Paper and celulose | B40: 335 | C40: 14.28125691 | D40: 14.61022027 | E40: 4.204975215 | F40: 44.1839801 | G40: 0.5017942408 | H40: 9.166429454 | I40: 0.003992389024 | J40: 4.411846465 | K40: 0.1734293029 | L40: 0.7319400773 | M40: 0.5674974181 | N40: 3.231911354 | P40: Paper and celulose | Q40: 19.73294548 | R40: 76.33632772
A41: =A17 -> Petrochemicals | B41: 62 | C41: 13.99116946 | D41: 12.85555896 | E41: 0.07421237526 | F41: 5.19508936 | G41: 0.09116701889 | H41: 10.05639275 | I41: 0.0001356685522 | J41: 6.182088005 | K41: 0.009829824255 | L41: 0.1374500188 | M41: 0.002098142034 | N41: 3.400760142 | P41: Water | Q41: 36.48986255 | R41: 58.80135184
A42: =A18 -> Real Estate | B42: 50 | C42: 0.0337817217 | D42: 0.5749175172 | E42: 4.481791057e-05 | F42: 0.1631385553 | G42: 0.002209090109 | H42: 0.2345566024 | I42: 6.510372929e-06 | J42: 0.08101090956 | K42: 1.62989092e-05 | L42: 0.01421084118 | M42: 0 | N42: 0.04033674285 | P42: Agriculture | Q42: 60.68311676 | R42: 32.61529704
A43: =A19 -> Siderurgy and Metalurgy | B43: 254 | C43: 42.62531123 | D43: 51.52650237 | E43: 4.963924177 | F43: 13.4761041 | G43: 1.216332891 | H43: 77.15710623 | I43: 0.02713923263 | J43: 14.95252935 | K43: 0.4248934316 | L43: 0.6333626225 | M43: 0.1081019138 | N43: 1.784376797 | P43: Manufacturing | Q43: 2.750971821 | R43: 83.6628123
A44: =A20 -> Telecommunications | B44: 50 | C44: 0.03834811555 | D44: 0.8417237217 | E44: 4.198909098e-05 | F44: 0.6227536112 | G44: 0.006445570783 | H44: 0.4508013442 | I44: 0.0006446703267 | J44: 0.1896793983 | K44: 0.0001563786713 | L44: 0.03443028118 | M44: 0 | N44: 0.1124937482 | P44: Petrochemicals | Q44: =SUMIF($A$28:$A$48,$P44,C$28:C$48)+SUMIF($A$28:$A$48,$P44,E$28:E$48)+SUMIF($A$28:$A$48,$P44,G$28:G$48)+SUMIF($A$28:$A$48,$P44,I$28:I$48)+SUMIF($A$28:$A$48,$P44,K$28:K$48)+SUMIF($A$28:$A$48,$P44,M$28:M$48) -> 14.16861249 | R44: =SUMIF($A$28:$A$48,$P44,D$28:D$48)+SUMIF($A$28:$A$48,$P44,F$28:F$48)+SUMIF($A$28:$A$48,$P44,H$28:H$48)+SUMIF($A$28:$A$48,$P44,J$28:J$48)+SUMIF($A$28:$A$48,$P44,L$28:L$48)+SUMIF($A$28:$A$48,$P44,N$28:N$48) -> 37.82733923
A45: =A21 -> Transport | B45: 456 | C45: 43.59437225 | D45: 16.76989326 | E45: 0.5494599047 | F45: 5.426043524 | G45: 0.06040286834 | H45: 39.51877664 | I45: 0.5535538574 | J45: 17.42259203 | K45: 0.002881602611 | L45: 2.167829108 | M45: 0 | N45: 1.368194858 | P45: Other Manufacturing | Q45: 1.096932766 | R45: 48.55442608
A46: =A22 -> Water | B46: 789 | C46: 17.3565659 | D46: 13.82493695 | E46: 0.6416811917 | F46: 30.5416081 | G46: 0.1545777629 | H46: 9.792167081 | I46: 0 | J46: 3.352330401 | K46: 18.33703769 | L46: 0.2574557869 | M46: 0 | N46: 1.032853528 | P46: Telecommunications | Q46: 0.04563672443 | R46: 2.251882105
A47: =A23 -> Automobiles | B47: 504 | C47: 2.997052723 | D47: 102.3677188 | E47: 0.08724969808 | F47: 40.90209029 | G47: 2.065466943 | H47: 47.99099864 | I47: 0.08633957719 | J47: 13.45355419 | K47: 0.001163745771 | L47: 4.050444983 | M47: 0.0003157965397 | N47: 6.82239845 | P47: Real Estate | Q47: 0.036058439 | R47: 1.108171168
A48: =A24 -> Grand Total | B48: 6974 | C48: 793.9900475 | D48: 690.6586477 | E48: 40.76580333 | F48: 416.7431241 | G48: 16.93212812 | H48: 602.5176315 | I48: 1913.884876 | J48: 506.6122143 | K48: 1734.596125 | L48: 621.0201611 | M48: 10.89448524 | N48: 285.4683037
E50: Credit Exposure | L50: Total Environmental Impact | P50: Credit vs Total Environmental Impact vs CREX
A51: Super Sector | B51: =B27 -> Credit Exposure (BRLm) | C51: Rank | E51: =A51 -> Super Sector | F51: =B51 -> Credit Exposure (BRLm) | I51: Total Environmental Impact (BRLm) | L51: =A51 -> Super Sector | M51: =I51 -> Total Environmental Impact (BRLm) | P51: =B51 -> Credit Exposure (BRLm) | Q51: =I51 -> Total Environmental Impact (BRLm) | R51: CREX | T51: CREX Ranking | W51: Sector | X51: CREX
A52: =A28 -> Agriculture | B52: =VLOOKUP(A52,'Summary Data'!$B$9:$C$28,2,0) -> 56 | C52: =RANK(B52,$B$52:$B$71)+COUNTIF(B$52:B52,B52)-1 -> 18 | D52: 1 | E52: =IFERROR(INDEX($A$52:$A$71,MATCH(D52,$C$52:$C$71,0)),"") -> Oil & Gas | F52: =IFERROR(VLOOKUP(E52,$A$52:$B$71,2,0),"") -> 1000 | H52: =A52 -> Agriculture | I52: =VLOOKUP(H52,'Summary Data'!$B$9:$D$28,3,0) -> 93.29841381 | J52: =IF(I52>0,(RANK(I52,$I$52:$I$71)+COUNTIF(B$52:I52,I52)-1),"") -> 15 | K52: 1 | L52: =IFERROR(INDEX($H$52:$H$71,MATCH(K52,$J$52:$J$71,0)),"") -> Fishing | M52: =IFERROR(VLOOKUP(L52,$H$52:$I$71,2,0),"") -> 2487.07669 | O52: =E52 -> Oil & Gas | P52: =IFERROR(VLOOKUP(O52,$A$52:$B$71,2,0),"") -> 1000 | Q52: =IFERROR(VLOOKUP(O52,$H$52:$I$72,2,0),"") -> 368.7910637 | R52: =VLOOKUP(O52,$AA$52:$AB$71,2,0) -> 0.3687910637 | T52: =RANK(R52,$R$52:$R$72) -> 12 | V52: 1 | W52: =INDEX($O$52:$O$71,MATCH(V52,$T$52:$T$71,0)) -> Livestock | X52: =VLOOKUP(W52,$O$52:$R$71,4,) -> 36.19174198 | AA52: Livestock | AB52: 36.19174198
A53: Chemicals | B53: =VLOOKUP(A53,'Summary Data'!$B$9:$C$28,2,0) -> 600 | C53: =RANK(B53,$B$52:$B$71)+COUNTIF(B$52:B53,B53)-1 -> 3 | D53: =D52+1 -> 2 | E53: Water | F53: 789 | H53: Chemicals | I53: =VLOOKUP(H53,'Summary Data'!$B$9:$D$28,3,0) -> 720.5687415 | J53: =IF(I53>0,(RANK(I53,$I$52:$I$71)+COUNTIF(B$52:I53,I53)-1),"") -> 3 | K53: =K52+1 -> 2 | L53: Livestock | M53: 2207.696261 | O53: Water | P53: 789 | Q53: 95.29121439 | R53: 0.1207746697 | T53: =RANK(R53,$R$52:$R$72) -> 18 | V53: =V52+1 -> 2 | W53: =INDEX($O$52:$O$71,MATCH(V53,$T$52:$T$71,0)) -> Fishing | X53: =VLOOKUP(W53,$O$52:$R$71,4,) -> 7.229874098 | AA53: Fishing | AB53: 7.229874098
A54: Construction | B54: =VLOOKUP(A54,'Summary Data'!$B$9:$C$28,2,0) -> 200 | C54: =RANK(B54,$B$52:$B$71)+COUNTIF(B$52:B54,B54)-1 -> 14 | D54: 3 | E54: Chemicals | F54: 600 | H54: Construction | I54: =VLOOKUP(H54,'Summary Data'!$B$9:$D$28,3,0) -> 157.1559979 | J54: =IF(I54>0,(RANK(I54,$I$52:$I$71)+COUNTIF(B$52:I54,I54)-1),"") -> 9 | K54: 3 | L54: Chemicals | M54: 720.5687415 | O54: Chemicals | P54: 600 | Q54: 720.5687415 | R54: 1.200947903 | T54: 5 | V54: =V53+1 -> 3 | W54: Food and Beverage | X54: 2.742088025 | AA54: Food and Beverage | AB54: 2.742088025
A55: Energy | B55: =VLOOKUP(A55,'Summary Data'!$B$9:$C$28,2,0) -> 546 | C55: =RANK(B55,$B$52:$B$71)+COUNTIF(B$52:B55,B55)-1 -> 4 | D55: 4 | E55: Energy | F55: 546 | H55: Energy | I55: =VLOOKUP(H55,'Summary Data'!$B$9:$D$28,3,0) -> 115.4023195 | J55: =IF(I55>0,(RANK(I55,$I$52:$I$71)+COUNTIF(B$52:I55,I55)-1),"") -> 12 | K55: 4 | L55: Oil & Gas | M55: 368.7910637 | O55: Energy | P55: 546 | Q55: 115.4023195 | R55: 0.2113595595 | T55: 16 | V55: 4 | W55: Agriculture | X55: 1.666043104 | AA55: Agriculture | AB55: 1.666043104
A56: Fishing | B56: =VLOOKUP(A56,'Summary Data'!$B$9:$C$28,2,0) -> 344 | C56: =RANK(B56,$B$52:$B$71)+COUNTIF(B$52:B56,B56)-1 -> 10 | D56: 5 | E56: Automobiles | F56: 504 | H56: Fishing | I56: =VLOOKUP(H56,'Summary Data'!$B$9:$D$28,3,0) -> 2487.07669 | J56: =IF(I56>0,(RANK(I56,$I$52:$I$71)+COUNTIF(B$52:I56,I56)-1),"") -> 1 | K56: 5 | L56: Food and Beverage | M56: 249.5300103 | O56: Automobiles | P56: 504 | Q56: 220.8247938 | R56: 0.4381444322 | T56: 9 | V56: 5 | W56: Chemicals | X56: 1.200947903 | AA56: Chemicals | AB56: 1.200947903
A57: Food and Beverage | B57: =VLOOKUP(A57,'Summary Data'!$B$9:$C$28,2,0) -> 91 | C57: =RANK(B57,$B$52:$B$71)+COUNTIF(B$52:B57,B57)-1 -> 15 | D57: 6 | E57: Forestry | F57: 470 | H57: Food and Beverage | I57: =VLOOKUP(H57,'Summary Data'!$B$9:$D$28,3,0) -> 249.5300103 | J57: =IF(I57>0,(RANK(I57,$I$52:$I$71)+COUNTIF(B$52:I57,I57)-1),"") -> 5 | K57: 6 | L57: Automobiles | M57: 220.8247938 | O57: Forestry | P57: 470 | Q57: 174.5442904 | R57: 0.3713708307 | T57: 11 | V57: 6 | W57: Petrochemicals | X57: 0.8386443826 | AA57: Petrochemicals | AB57: 0.8386443826
A58: Forestry | B58: =VLOOKUP(A58,'Summary Data'!$B$9:$C$28,2,0) -> 470 | C58: =RANK(B58,$B$52:$B$71)+COUNTIF(B$52:B58,B58)-1 -> 6 | D58: 7 | E58: Transport | F58: 456 | H58: Forestry | I58: =VLOOKUP(H58,'Summary Data'!$B$9:$D$28,3,0) -> 174.5442904 | J58: =IF(I58>0,(RANK(I58,$I$52:$I$71)+COUNTIF(B$52:I58,I58)-1),"") -> 8 | K58: 7 | L58: Siderurgy and Metalurgy | M58: 208.8956844 | O58: Transport | P58: 456 | Q58: 127.4339999 | R58: 0.2794605261 | T58: 14 | V58: 7 | W58: Siderurgy and Metalurgy | X58: 0.8224239541 | AA58: Siderurgy and Metalurgy | AB58: 0.8224239541
A59: Livestock | B59: =VLOOKUP(A59,'Summary Data'!$B$9:$C$28,2,0) -> 61 | C59: =RANK(B59,$B$52:$B$71)+COUNTIF(B$52:B59,B59)-1 -> 17 | D59: 8 | E59: Other Manufacturing | F59: 400 | H59: Livestock | I59: =VLOOKUP(H59,'Summary Data'!$B$9:$D$28,3,0) -> 2207.696261 | J59: =IF(I59>0,(RANK(I59,$I$52:$I$71)+COUNTIF(B$52:I59,I59)-1),"") -> 2 | K59: 8 | L59: Forestry | M59: 174.5442904 | O59: Other Manufacturing | P59: 400 | Q59: 49.65135884 | R59: 0.1241283971 | T59: 17 | V59: 8 | W59: Construction | X59: 0.7857799895 | AA59: Construction | AB59: 0.7857799895
A60: Manufacturing | B60: =VLOOKUP(A60,'Summary Data'!$B$9:$C$28,2,0) -> 386 | C60: =RANK(B60,$B$52:$B$71)+COUNTIF(B$52:B60,B60)-1 -> 9 | D60: 9 | E60: Manufacturing | F60: 386 | H60: Manufacturing | I60: =VLOOKUP(H60,'Summary Data'!$B$9:$D$28,3,0) -> 86.41378412 | J60: =IF(I60>0,(RANK(I60,$I$52:$I$71)+COUNTIF(B$52:I60,I60)-1),"") -> 16 | K60: 9 | L60: Construction | M60: 157.1559979 | O60: Manufacturing | P60: 386 | Q60: 86.41378412 | R60: 0.223869907 | T60: 15 | V60: 9 | W60: Automobiles | X60: 0.4381444322 | AA60: Automobiles | AB60: 0.4381444322
A61: Mining | B61: =VLOOKUP(A61,'Summary Data'!$B$9:$C$28,2,0) -> 320 | C61: =RANK(B61,$B$52:$B$71)+COUNTIF(B$52:B61,B61)-1 -> 12 | D61: 10 | E61: Fishing | F61: 344 | H61: Mining | I61: =VLOOKUP(H61,'Summary Data'!$B$9:$D$28,3,0) -> 120.0019508 | J61: =IF(I61>0,(RANK(I61,$I$52:$I$71)+COUNTIF(B$52:I61,I61)-1),"") -> 11 | K61: 10 | L61: Transport | M61: 127.4339999 | O61: Fishing | P61: 344 | Q61: 2487.07669 | R61: 7.229874098 | T61: 2 | V61: 10 | W61: Mining | X61: 0.3750060962 | AA61: Mining | AB61: 0.3750060962
A62: Oil & Gas | B62: =VLOOKUP(A62,'Summary Data'!$B$9:$C$28,2,0) -> 1000 | C62: =RANK(B62,$B$52:$B$71)+COUNTIF(B$52:B62,B62)-1 -> 1 | D62: 11 | E62: Paper and celulose | F62: 335 | H62: Oil & Gas | I62: =VLOOKUP(H62,'Summary Data'!$B$9:$D$28,3,0) -> 368.7910637 | J62: =IF(I62>0,(RANK(I62,$I$52:$I$71)+COUNTIF(B$52:I62,I62)-1),"") -> 4 | K62: 11 | L62: Mining | M62: 120.0019508 | O62: Paper and celulose | P62: 335 | Q62: 96.0692732 | R62: 0.2867739499 | T62: 13 | V62: 11 | W62: Forestry | X62: 0.3713708307 | AA62: Forestry | AB62: 0.3713708307
A63: Other Manufacturing | B63: =VLOOKUP(A63,'Summary Data'!$B$9:$C$28,2,0) -> 400 | C63: =RANK(B63,$B$52:$B$71)+COUNTIF(B$52:B63,B63)-1 -> 8 | D63: 12 | E63: Mining | F63: 320 | H63: Other Manufacturing | I63: =VLOOKUP(H63,'Summary Data'!$B$9:$D$28,3,0) -> 49.65135884 | J63: =IF(I63>0,(RANK(I63,$I$52:$I$71)+COUNTIF(B$52:I63,I63)-1),"") -> 18 | K63: 12 | L63: Energy | M63: 115.4023195 | O63: Mining | P63: 320 | Q63: 120.0019508 | R63: 0.3750060962 | T63: 10 | V63: 12 | W63: Oil & Gas | X63: 0.3687910637 | AA63: Oil & Gas | AB63: 0.3687910637
A64: Paper and celulose | B64: =VLOOKUP(A64,'Summary Data'!$B$9:$C$28,2,0) -> 335 | C64: =RANK(B64,$B$52:$B$71)+COUNTIF(B$52:B64,B64)-1 -> 11 | D64: 13 | E64: Siderurgy and Metalurgy | F64: 254 | H64: Paper and celulose | I64: =VLOOKUP(H64,'Summary Data'!$B$9:$D$28,3,0) -> 96.0692732 | J64: =IF(I64>0,(RANK(I64,$I$52:$I$71)+COUNTIF(B$52:I64,I64)-1),"") -> 13 | K64: 13 | L64: Paper and celulose | M64: 96.0692732 | O64: Siderurgy and Metalurgy | P64: 254 | Q64: 208.8956844 | R64: 0.8224239541 | T64: 7 | V64: 13 | W64: Paper and celulose | X64: 0.2867739499 | AA64: Paper and celulose | AB64: 0.2867739499
A65: Petrochemicals | B65: =VLOOKUP(A65,'Summary Data'!$B$9:$C$28,2,0) -> 62 | C65: =RANK(B65,$B$52:$B$71)+COUNTIF(B$52:B65,B65)-1 -> 16 | D65: 14 | E65: Construction | F65: 200 | H65: Petrochemicals | I65: =VLOOKUP(H65,'Summary Data'!$B$9:$D$28,3,0) -> 51.99595172 | J65: =IF(I65>0,(RANK(I65,$I$52:$I$71)+COUNTIF(B$52:I65,I65)-1),"") -> 17 | K65: 14 | L65: Water | M65: 95.29121439 | O65: Construction | P65: 200 | Q65: 157.1559979 | R65: 0.7857799895 | T65: 8 | V65: 14 | W65: Transport | X65: 0.2794605261 | AA65: Transport | AB65: 0.2794605261
A66: Real Estate | B66: =VLOOKUP(A66,'Summary Data'!$B$9:$C$28,2,0) -> 50 | C66: =RANK(B66,$B$52:$B$71)+COUNTIF(B$52:B66,B66)-1 -> 19 | D66: 15 | E66: Food and Beverage | F66: 91 | H66: Real Estate | I66: =VLOOKUP(H66,'Summary Data'!$B$9:$D$28,3,0) -> 1.144229607 | J66: =IF(I66>0,(RANK(I66,$I$52:$I$71)+COUNTIF(B$52:I66,I66)-1),"") -> 20 | K66: 15 | L66: Agriculture | M66: 93.29841381 | O66: Food and Beverage | P66: 91 | Q66: 249.5300103 | R66: 2.742088025 | T66: 3 | V66: 15 | W66: Manufacturing | X66: 0.223869907 | AA66: Manufacturing | AB66: 0.223869907
A67: Siderurgy and Metalurgy | B67: =VLOOKUP(A67,'Summary Data'!$B$9:$C$28,2,0) -> 254 | C67: =RANK(B67,$B$52:$B$71)+COUNTIF(B$52:B67,B67)-1 -> 13 | D67: 16 | E67: Petrochemicals | F67: 62 | H67: Siderurgy and Metalurgy | I67: =VLOOKUP(H67,'Summary Data'!$B$9:$D$28,3,0) -> 208.8956844 | J67: =IF(I67>0,(RANK(I67,$I$52:$I$71)+COUNTIF(B$52:I67,I67)-1),"") -> 7 | K67: 16 | L67: Manufacturing | M67: 86.41378412 | O67: Petrochemicals | P67: 62 | Q67: 51.99595172 | R67: 0.8386443826 | T67: 6 | V67: 16 | W67: Energy | X67: 0.2113595595 | AA67: Energy | AB67: 0.2113595595
A68: Telecommunications | B68: =VLOOKUP(A68,'Summary Data'!$B$9:$C$28,2,0) -> 50 | C68: =RANK(B68,$B$52:$B$71)+COUNTIF(B$52:B68,B68)-1 -> 20 | D68: 17 | E68: Livestock | F68: 61 | H68: Telecommunications | I68: =VLOOKUP(H68,'Summary Data'!$B$9:$D$28,3,0) -> 2.297518829 | J68: =IF(I68>0,(RANK(I68,$I$52:$I$71)+COUNTIF(B$52:I68,I68)-1),"") -> 19 | K68: 17 | L68: Petrochemicals | M68: 51.99595172 | O68: Livestock | P68: 61 | Q68: 2207.696261 | R68: 36.19174198 | T68: 1 | V68: 17 | W68: Other Manufacturing | X68: 0.1241283971 | AA68: Other Manufacturing | AB68: 0.1241283971
A69: Transport | B69: =VLOOKUP(A69,'Summary Data'!$B$9:$C$28,2,0) -> 456 | C69: =RANK(B69,$B$52:$B$71)+COUNTIF(B$52:B69,B69)-1 -> 7 | D69: 18 | E69: Agriculture | F69: 56 | H69: Transport | I69: =VLOOKUP(H69,'Summary Data'!$B$9:$D$28,3,0) -> 127.4339999 | J69: =IF(I69>0,(RANK(I69,$I$52:$I$71)+COUNTIF(B$52:I69,I69)-1),"") -> 10 | K69: 18 | L69: Other Manufacturing | M69: 49.65135884 | O69: Agriculture | P69: 56 | Q69: 93.29841381 | R69: 1.666043104 | T69: 4 | V69: 18 | W69: Water | X69: 0.1207746697 | AA69: Water | AB69: 0.1207746697
A70: Water | B70: =VLOOKUP(A70,'Summary Data'!$B$9:$C$28,2,0) -> 789 | C70: =RANK(B70,$B$52:$B$71)+COUNTIF(B$52:B70,B70)-1 -> 2 | D70: 19 | E70: Real Estate | F70: 50 | H70: Water | I70: =VLOOKUP(H70,'Summary Data'!$B$9:$D$28,3,0) -> 95.29121439 | J70: =IF(I70>0,(RANK(I70,$I$52:$I$71)+COUNTIF(B$52:I70,I70)-1),"") -> 14 | K70: 19 | L70: Telecommunications | M70: 2.297518829 | O70: Real Estate | P70: 50 | Q70: 1.144229607 | R70: 0.02288459215 | T70: 20 | V70: 19 | W70: Telecommunications | X70: 0.04595037659 | AA70: Telecommunications | AB70: 0.04595037659
A71: Automobiles | B71: =VLOOKUP(A71,'Summary Data'!$B$9:$C$28,2,0) -> 504 | C71: =RANK(B71,$B$52:$B$71)+COUNTIF(B$52:B71,B71)-1 -> 5 | D71: 20 | E71: Telecommunications | F71: 50 | H71: Automobiles | I71: =VLOOKUP(H71,'Summary Data'!$B$9:$D$28,3,0) -> 220.8247938 | J71: =IF(I71>0,(RANK(I71,$I$52:$I$71)+COUNTIF(B$52:I71,I71)-1),"") -> 6 | K71: 20 | L71: Real Estate | M71: 1.144229607 | O71: Telecommunications | P71: 50 | Q71: 2.297518829 | R71: 0.04595037659 | T71: 19 | V71: 20 | W71: Real Estate | X71: 0.02288459215 | AA71: Real Estate | AB71: 0.02288459215
A72: Grand Total | B72: =SUM(B52:B71) -> 6974 | H72: Grand Total | I72: =SUM(I52:I71) -> 7634.083547 | R72: =IFERROR(Q72/P72,"") -> 
A74: Total Impact | B74: =RANK(B95,$B$95:$G$95) -> 3 | C74: =RANK(C95,$B$95:$G$95) -> 5 | D74: 4 | E74: 1 | F74: 2 | G74: 6
B75: Total GHG | C75: Total Air Pollution | D75: Total Waste | E75: Total Land Use | F75: Total Water | G75: Total Water Pollution | H75: Total Environmental Impact | K75: Natural Capital Indicator | L75: Natural Capital Impact (BRLm)
A76: =L52 -> Fishing | B76: =SUMIF($A$28:$A$48,$A76,$C$28:$C$48)+SUMIF($A$28:$A$48,$A76,$D$28:$D$48) -> 43.54318908 | C76: =SUMIF($A$28:$A$48,$A76,$E$28:$E$48)+SUMIF($A$28:$A$48,$A76,$F$28:$F$48) -> 14.01756473 | D76: =SUMIF($A$28:$A$48,$A76,$G$28:$G$48)+SUMIF($A$28:$A$48,$A76,$H$28:$H$48) -> 17.45681061 | E76: =SUMIF($A$28:$A$48,$A76,$I$28:$I$48)+SUMIF($A$28:$A$48,$A76,$J$28:$J$48) -> 85.10973589 | F76: =SUMIF($A$28:$A$48,$A76,$K$28:$K$48)+SUMIF($A$28:$A$48,$A76,$L$28:$L$48) -> 2203.531629 | G76: =SUMIF($A$28:$A$48,$A76,$M$28:$M$48)+SUMIF($A$28:$A$48,$A76,$N$28:$N$48) -> 123.417761 | H76: =SUM(B76:G76) -> 2487.07669 | J76: 1 | K76: =RIGHT(HLOOKUP(J76,$B$74:$G$75,2,),LEN(HLOOKUP(J76,$B$74:$G$75,2,))-6) -> Land Use | L76: =HLOOKUP("Total "&K76,$B$75:$G$95,21,0) -> 2420.49709
A77: Livestock | B77: =SUMIF($A$28:$A$48,$A77,$C$28:$C$48)+SUMIF($A$28:$A$48,$A77,$D$28:$D$48) -> 334.285513 | C77: =SUMIF($A$28:$A$48,$A77,$E$28:$E$48)+SUMIF($A$28:$A$48,$A77,$F$28:$F$48) -> 19.75743325 | D77: =SUMIF($A$28:$A$48,$A77,$G$28:$G$48)+SUMIF($A$28:$A$48,$A77,$H$28:$H$48) -> 5.632834367 | E77: =SUMIF($A$28:$A$48,$A77,$I$28:$I$48)+SUMIF($A$28:$A$48,$A77,$J$28:$J$48) -> 1793.658688 | F77: =SUMIF($A$28:$A$48,$A77,$K$28:$K$48)+SUMIF($A$28:$A$48,$A77,$L$28:$L$48) -> 10.24533281 | G77: =SUMIF($A$28:$A$48,$A77,$M$28:$M$48)+SUMIF($A$28:$A$48,$A77,$N$28:$N$48) -> 44.11645948 | H77: 2207.696261 | J77: =J76+1 -> 2 | K77: =RIGHT(HLOOKUP(J77,$B$74:$G$75,2,),LEN(HLOOKUP(J77,$B$74:$G$75,2,))-6) -> Water | L77: =HLOOKUP("Total "&K77,$B$75:$G$95,21,0) -> 2355.616286
A78: Chemicals | B78: 399.8503575 | C78: 156.8653278 | D78: 95.51759102 | E78: 41.8514839 | F78: 11.63897318 | G78: 14.8450082 | H78: 720.5687415 | J78: =J77+1 -> 3 | K78: GHG | L78: 1484.648695
A79: Oil & Gas | B79: 73.29957774 | C79: 6.414438321 | D79: 161.1094807 | E79: 126.5043901 | F79: 0.450563545 | G79: 1.012613262 | H79: 368.7910637 | J79: 4 | K79: Waste | L79: 619.4497597
A80: Food and Beverage | B80: 54.90838033 | C80: 11.046188 | D80: 6.179204685 | E80: 39.47694045 | F80: 83.90369197 | G80: 54.01560482 | H80: 249.5300103 | J80: 5 | K80: Air Pollution | L80: 457.5089274
A81: Automobiles | B81: 105.3647715 | C81: 40.98933999 | D81: 50.05646559 | E81: 13.53989377 | F81: 4.051608729 | G81: 6.822714246 | H81: 220.8247938 | J81: 6 | K81: Water Pollution | L81: 296.362789
A82: Siderurgy and Metalurgy | B82: 94.1518136 | C82: 18.44002827 | D82: 78.37343912 | E82: 14.97966859 | F82: 1.058256054 | G82: 1.892478711 | H82: 208.8956844
A83: Forestry | B83: 19.60301681 | C83: 4.675829487 | D83: 7.982015642 | E83: 127.7173319 | F83: 0.3108719421 | G83: 14.25522467 | H83: 174.5442904
A84: Construction | B84: 111.8642685 | C84: 13.18526612 | D84: 24.9844967 | E84: 5.185882383 | F84: 0.5581768266 | G84: 1.377907331 | H84: 157.1559979
A85: Transport | B85: 60.36426551 | C85: 5.975503429 | D85: 39.57917951 | E85: 17.97614588 | F85: 2.17071071 | G85: 1.368194858 | H85: 127.4339999
A86: Mining | B86: 23.06330441 | C86: 18.97684782 | D86: 21.97985439 | E86: 53.72975653 | F86: 0.4176727929 | G86: 1.83451483 | H86: 120.0019508
A87: Energy | B87: 20.89424409 | C87: 14.23947363 | D87: 52.92937677 | E87: 23.18416116 | F87: 2.593587169 | G87: 1.561476659 | H87: 115.4023195
A88: Paper and celulose | B88: 28.89147718 | C88: 48.38895532 | D88: 9.668223694 | E88: 4.415838854 | F88: 0.9053693801 | G88: 3.799408772 | H88: 96.0692732
A89: Water | B89: 31.18150285 | C89: 31.18328929 | D89: 9.946744844 | E89: 3.352330401 | F89: 18.59449347 | G89: 1.032853528 | H89: 95.29121439
A90: Agriculture | B90: 7.203671441 | C90: 20.54589773 | D90: 1.802268361 | E90: 50.89432975 | F90: 1.478044037 | G90: 11.37420249 | H90: 93.29841381
A91: Manufacturing | B91: 23.98965577 | C91: 17.16029439 | D91: 14.26558026 | E91: 9.443415611 | F91: 13.02474906 | G91: 8.530089027 | H91: 86.41378412
A92: Petrochemicals | B92: 26.84672842 | C92: 5.269301736 | D92: 10.14755977 | E92: 6.182223674 | F92: 0.147279843 | G92: 3.402858284 | H92: 51.99595172
A93: Other Manufacturing | B93: 23.85418635 | C93: 9.591969181 | D93: 11.14462102 | E93: 3.023531719 | F93: 0.4864622693 | G93: 1.55058831 | H93: 49.65135884
A94: Telecommunications | B94: 0.8800718372 | C94: 0.6227956003 | D94: 0.457246915 | E94: 0.1903240686 | F94: 0.03458665986 | G94: 0.1124937482 | H94: 2.297518829
A95: Grand Total | B95: 1484.648695 | C95: 457.5089274 | D95: 619.4497597 | E95: 2420.49709 | F95: 2355.616286 | G95: 296.362789 | H95: 7634.083547
B98: =$B75 -> Total GHG | C98: Rank | F98: Super Sector | G98: =RIGHT(B98,LEN(B98)-6) -> GHG
A99: =$A76 -> Fishing | B99: =$B$76 -> 43.54318908 | C99: =RANK(B99,B$99:B$117,0) -> 9 | E99: 1 | F99: =IFERROR(INDEX($A$99:$A$118,MATCH(E99,$C$99:$C$118,0)),"") -> Chemicals | G99: =VLOOKUP(F99,$A$99:$B$118,2,0) -> 399.8503575
A100: Livestock | B100: =$B$77 -> 334.285513 | C100: =RANK(B100,B$99:B$117,0) -> 2 | E100: =E99+1 -> 2 | F100: Livestock | G100: 334.285513
A101: Chemicals | B101: =$B$78 -> 399.8503575 | C101: 1 | E101: 3 | F101: Construction | G101: 111.8642685
A102: Oil & Gas | B102: =$B$79 -> 73.29957774 | C102: 6 | E102: 4 | F102: Automobiles | G102: 105.3647715
A103: Food and Beverage | B103: =$B$80 -> 54.90838033 | C103: 8 | E103: 5 | F103: Siderurgy and Metalurgy | G103: 94.1518136
A104: Automobiles | B104: =$B$81 -> 105.3647715 | C104: 4 | E104: 6 | F104: Oil & Gas | G104: 73.29957774
A105: Siderurgy and Metalurgy | B105: =$B$82 -> 94.1518136 | C105: 5 | E105: 7 | F105: Transport | G105: 60.36426551
A106: Forestry | B106: =$B$83 -> 19.60301681 | C106: 17 | E106: 8 | F106: Food and Beverage | G106: 54.90838033
A107: Construction | B107: =$B$84 -> 111.8642685 | C107: 3 | E107: 9 | F107: Fishing | G107: 43.54318908
A108: Transport | B108: =$B$85 -> 60.36426551 | C108: 7 | E108: 10 | F108: Water | G108: 31.18150285
A109: Mining | B109: =$B$86 -> 23.06330441 | C109: 15 | E109: 11 | F109: Paper and celulose | G109: 28.89147718
A110: Energy | B110: =$B$87 -> 20.89424409 | C110: 16 | E110: 12 | F110: Petrochemicals | G110: 26.84672842
A111: Paper and celulose | B111: =$B$88 -> 28.89147718 | C111: 11 | E111: 13 | F111: Manufacturing | G111: 23.98965577
A112: Water | B112: =$B$89 -> 31.18150285 | C112: 10 | E112: 14 | F112: Other Manufacturing | G112: 23.85418635
A113: Agriculture | B113: =$B$90 -> 7.203671441 | C113: 18 | E113: 15 | F113: Mining | G113: 23.06330441
A114: Manufacturing | B114: =$B$91 -> 23.98965577 | C114: 13 | E114: 16 | F114: Energy | G114: 20.89424409
A115: Petrochemicals | B115: =$B$92 -> 26.84672842 | C115: 12 | E115: 17 | F115: Forestry | G115: 19.60301681
A116: Other Manufacturing | B116: =$B$93 -> 23.85418635 | C116: 14 | E116: 18 | F116: Agriculture | G116: 7.203671441
A117: Telecommunications | B117: =$B$94 -> 0.8800718372 | C117: 19 | E117: 19 | F117: Telecommunications | G117: 0.8800718372
A118: Grand Total | B118: =$B$95 -> 1484.648695 | E118: 20
A119: 0 | B119: =$B$96 -> 0
B121: =$C$75 -> Total Air Pollution | C121: Rank | F121: Super Sector | G121: =RIGHT(B121,LEN(B121)-6) -> Air Pollution
A122: =$A99 -> Fishing | B122: =$C$76 -> 14.01756473 | C122: =RANK(B122,$B$122:$B$140,0) -> 11 | E122: 1 | F122: =IFERROR(INDEX($A$122:$A$141,MATCH(E122,$C$122:$C$141,0)),"") -> Chemicals | G122: =VLOOKUP(F122,$A122:$B141,2,0) -> 156.8653278
A123: Livestock | B123: =$C$77 -> 19.75743325 | C123: =RANK(B123,$B$122:$B$140,0) -> 6 | E123: =E122+1 -> 2 | F123: Paper and celulose | G123: =VLOOKUP(F123,$A122:$B141,2,0) -> 48.38895532
A124: Chemicals | B124: =$C$78 -> 156.8653278 | C124: 1 | E124: 3 | F124: Automobiles | G124: =VLOOKUP(F124,$A122:$B141,2,0) -> 40.98933999
A125: Oil & Gas | B125: =$C$79 -> 6.414438321 | C125: 15 | E125: 4 | F125: Water | G125: =VLOOKUP(F125,$A122:$B141,2,0) -> 31.18328929
A126: Food and Beverage | B126: =$C$80 -> 11.046188 | C126: 13 | E126: 5 | F126: Agriculture | G126: =VLOOKUP(F126,$A122:$B141,2,0) -> 20.54589773
A127: Automobiles | B127: =$C$81 -> 40.98933999 | C127: 3 | E127: 6 | F127: Livestock | G127: =VLOOKUP(F127,$A122:$B141,2,0) -> 19.75743325
A128: Siderurgy and Metalurgy | B128: =$C$82 -> 18.44002827 | C128: 8 | E128: 7 | F128: Mining | G128: =VLOOKUP(F128,$A122:$B141,2,0) -> 18.97684782
A129: Forestry | B129: =$C$83 -> 4.675829487 | C129: 18 | E129: 8 | F129: Siderurgy and Metalurgy | G129: =VLOOKUP(F129,$A122:$B141,2,0) -> 18.44002827
A130: Construction | B130: =$C$84 -> 13.18526612 | C130: 12 | E130: 9 | F130: Manufacturing | G130: =VLOOKUP(F130,$A122:$B141,2,0) -> 17.16029439
A131: Transport | B131: =$C$85 -> 5.975503429 | C131: 16 | E131: 10 | F131: Energy | G131: =VLOOKUP(F131,$A122:$B141,2,0) -> 14.23947363
A132: Mining | B132: =$C$86 -> 18.97684782 | C132: 7 | E132: 11 | F132: Fishing | G132: =VLOOKUP(F132,$A122:$B141,2,0) -> 14.01756473
A133: Energy | B133: =$C$87 -> 14.23947363 | C133: 10 | E133: 12 | F133: Construction | G133: =VLOOKUP(F133,$A122:$B141,2,0) -> 13.18526612
A134: Paper and celulose | B134: =$C$88 -> 48.38895532 | C134: 2 | E134: 13 | F134: Food and Beverage | G134: =VLOOKUP(F134,$A122:$B141,2,0) -> 11.046188
A135: Water | B135: =$C$89 -> 31.18328929 | C135: 4 | E135: 14 | F135: Other Manufacturing | G135: =VLOOKUP(F135,$A122:$B141,2,0) -> 9.591969181
A136: Agriculture | B136: =$C$90 -> 20.54589773 | C136: 5 | E136: 15 | F136: Oil & Gas | G136: =VLOOKUP(F136,$A122:$B141,2,0) -> 6.414438321
A137: Manufacturing | B137: =$C$91 -> 17.16029439 | C137: 9 | E137: 16 | F137: Transport | G137: =VLOOKUP(F137,$A122:$B141,2,0) -> 5.975503429
A138: Petrochemicals | B138: =$C$92 -> 5.269301736 | C138: 17 | E138: 17 | F138: Petrochemicals | G138: =VLOOKUP(F138,$A122:$B141,2,0) -> 5.269301736
A139: Other Manufacturing | B139: =$C$93 -> 9.591969181 | C139: 14 | E139: 18 | F139: Forestry | G139: =VLOOKUP(F139,$A123:$B142,2,0) -> 4.675829487
A140: Telecommunications | B140: =$C$94 -> 0.6227956003 | C140: 19 | E140: 19 | F140: Telecommunications | G140: =VLOOKUP(F140,$A124:$B143,2,0) -> 0.6227956003
A141: Grand Total | B141: =$C$95 -> 457.5089274 | E141: 20 | G141: =VLOOKUP(F141,$A125:$B144,2,0) -> 
A142: 0 | B142: =$C$96 -> 0
B144: =$D$75 -> Total Waste | C144: Rank | F144: Super Sector | G144: =RIGHT(B144,LEN(B144)-6) -> Waste
A145: =$A122 -> Fishing | B145: =$D$76 -> 17.45681061 | C145: =RANK(B145,$B$145:$B$163,0) -> 9 | E145: 1 | F145: =IFERROR(INDEX($A$145:$A$164,MATCH(E145,$C$145:$C$164,0)),"") -> Oil & Gas | G145: =VLOOKUP(F145,$A145:$B164,2,0) -> 161.1094807
A146: Livestock | B146: =$D$77 -> 5.632834367 | C146: =RANK(B146,$B$145:$B$163,0) -> 17 | E146: =E145+1 -> 2 | F146: Chemicals | G146: =VLOOKUP(F146,$A145:$B164,2,0) -> 95.51759102
A147: Chemicals | B147: =$D$78 -> 95.51759102 | C147: 2 | E147: 3 | F147: Siderurgy and Metalurgy | G147: =VLOOKUP(F147,$A145:$B164,2,0) -> 78.37343912
A148: Oil & Gas | B148: =$D$79 -> 161.1094807 | C148: 1 | E148: 4 | F148: Energy | G148: =VLOOKUP(F148,$A145:$B164,2,0) -> 52.92937677
A149: Food and Beverage | B149: =$D$80 -> 6.179204685 | C149: 16 | E149: 5 | F149: Automobiles | G149: =VLOOKUP(F149,$A145:$B164,2,0) -> 50.05646559
A150: Automobiles | B150: =$D$81 -> 50.05646559 | C150: 5 | E150: 6 | F150: Transport | G150: =VLOOKUP(F150,$A145:$B164,2,0) -> 39.57917951
A151: Siderurgy and Metalurgy | B151: =$D$82 -> 78.37343912 | C151: 3 | E151: 7 | F151: Construction | G151: =VLOOKUP(F151,$A145:$B164,2,0) -> 24.9844967
A152: Forestry | B152: =$D$83 -> 7.982015642 | C152: 15 | E152: 8 | F152: Mining | G152: =VLOOKUP(F152,$A145:$B164,2,0) -> 21.97985439
A153: Construction | B153: =$D$84 -> 24.9844967 | C153: 7 | E153: 9 | F153: Fishing | G153: =VLOOKUP(F153,$A145:$B164,2,0) -> 17.45681061
A154: Transport | B154: =$D$85 -> 39.57917951 | C154: 6 | E154: 10 | F154: Manufacturing | G154: =VLOOKUP(F154,$A145:$B164,2,0) -> 14.26558026
A155: Mining | B155: =$D$86 -> 21.97985439 | C155: 8 | E155: 11 | F155: Other Manufacturing | G155: =VLOOKUP(F155,$A145:$B164,2,0) -> 11.14462102
A156: Energy | B156: =$D$87 -> 52.92937677 | C156: 4 | E156: 12 | F156: Petrochemicals | G156: =VLOOKUP(F156,$A145:$B164,2,0) -> 10.14755977
A157: Paper and celulose | B157: =$D$88 -> 9.668223694 | C157: 14 | E157: 13 | F157: Water | G157: =VLOOKUP(F157,$A145:$B164,2,0) -> 9.946744844
A158: Water | B158: =$D$89 -> 9.946744844 | C158: 13 | E158: 14 | F158: Paper and celulose | G158: =VLOOKUP(F158,$A145:$B164,2,0) -> 9.668223694
A159: Agriculture | B159: =$D$90 -> 1.802268361 | C159: 18 | E159: 15 | F159: Forestry | G159: =VLOOKUP(F159,$A145:$B164,2,0) -> 7.982015642
A160: Manufacturing | B160: =$D$91 -> 14.26558026 | C160: 10 | E160: 16 | F160: Food and Beverage | G160: =VLOOKUP(F160,$A145:$B164,2,0) -> 6.179204685
A161: Petrochemicals | B161: =$D$92 -> 10.14755977 | C161: 12 | E161: 17 | F161: Livestock | G161: =VLOOKUP(F161,$A145:$B164,2,0) -> 5.632834367
A162: Other Manufacturing | B162: =$D$93 -> 11.14462102 | C162: 11 | E162: 18 | F162: Agriculture | G162: =VLOOKUP(F162,$A146:$B165,2,0) -> 1.802268361
A163: Telecommunications | B163: =$D$94 -> 0.457246915 | C163: 19 | E163: 19 | F163: Telecommunications | G163: =VLOOKUP(F163,$A147:$B166,2,0) -> 0.457246915
A164: Grand Total | B164: =$D$95 -> 619.4497597
A165: 0 | B165: =$D$96 -> 0
B167: =$E$75 -> Total Land Use | C167: Rank | F167: Super Sector | G167: =RIGHT(B167,LEN(B167)-6) -> Land Use
A168: =$A145 -> Fishing | B168: =$E$76 -> 85.10973589 | C168: =RANK(B168,$B$168:$B$186,0) -> 4 | E168: 1 | F168: =IFERROR(INDEX($A$168:$A$187,MATCH(E168,$C$168:$C$187,0)),"") -> Livestock | G168: =VLOOKUP(F168,$A168:$B187,2,0) -> 1793.658688
A169: Livestock | B169: =$E$77 -> 1793.658688 | C169: =RANK(B169,$B$168:$B$186,0) -> 1 | E169: =E168+1 -> 2 | F169: Forestry | G169: =VLOOKUP(F169,$A168:$B187,2,0) -> 127.7173319
A170: Chemicals | B170: =$E$78 -> 41.8514839 | C170: 7 | E170: 3 | F170: Oil & Gas | G170: =VLOOKUP(F170,$A168:$B187,2,0) -> 126.5043901
A171: Oil & Gas | B171: =$E$79 -> 126.5043901 | C171: 3 | E171: 4 | F171: Fishing | G171: =VLOOKUP(F171,$A168:$B187,2,0) -> 85.10973589
A172: Food and Beverage | B172: =$E$80 -> 39.47694045 | C172: 8 | E172: 5 | F172: Mining | G172: =VLOOKUP(F172,$A168:$B187,2,0) -> 53.72975653
A173: Automobiles | B173: =$E$81 -> 13.53989377 | C173: 12 | E173: 6 | F173: Agriculture | G173: =VLOOKUP(F173,$A168:$B187,2,0) -> 50.89432975
A174: Siderurgy and Metalurgy | B174: =$E$82 -> 14.97966859 | C174: 11 | E174: 7 | F174: Chemicals | G174: =VLOOKUP(F174,$A168:$B187,2,0) -> 41.8514839
A175: Forestry | B175: =$E$83 -> 127.7173319 | C175: 2 | E175: 8 | F175: Food and Beverage | G175: =VLOOKUP(F175,$A168:$B187,2,0) -> 39.47694045
A176: Construction | B176: =$E$84 -> 5.185882383 | C176: 15 | E176: 9 | F176: Energy | G176: =VLOOKUP(F176,$A168:$B187,2,0) -> 23.18416116
A177: Transport | B177: =$E$85 -> 17.97614588 | C177: 10 | E177: 10 | F177: Transport | G177: =VLOOKUP(F177,$A168:$B187,2,0) -> 17.97614588
A178: Mining | B178: =$E$86 -> 53.72975653 | C178: 5 | E178: 11 | F178: Siderurgy and Metalurgy | G178: =VLOOKUP(F178,$A168:$B187,2,0) -> 14.97966859
A179: Energy | B179: =$E$87 -> 23.18416116 | C179: 9 | E179: 12 | F179: Automobiles | G179: =VLOOKUP(F179,$A168:$B187,2,0) -> 13.53989377
A180: Paper and celulose | B180: =$E$88 -> 4.415838854 | C180: 16 | E180: 13 | F180: Manufacturing | G180: =VLOOKUP(F180,$A168:$B187,2,0) -> 9.443415611
A181: Water | B181: =$E$89 -> 3.352330401 | C181: 17 | E181: 14 | F181: Petrochemicals | G181: =VLOOKUP(F181,$A168:$B187,2,0) -> 6.182223674
A182: Agriculture | B182: =$E$90 -> 50.89432975 | C182: 6 | E182: 15 | F182: Construction | G182: =VLOOKUP(F182,$A168:$B187,2,0) -> 5.185882383
A183: Manufacturing | B183: =$E$91 -> 9.443415611 | C183: 13 | E183: 16 | F183: Paper and celulose | G183: =VLOOKUP(F183,$A168:$B187,2,0) -> 4.415838854
A184: Petrochemicals | B184: =$E$92 -> 6.182223674 | C184: 14 | E184: 17 | F184: Water | G184: =VLOOKUP(F184,$A168:$B187,2,0) -> 3.352330401
A185: Other Manufacturing | B185: =$E$93 -> 3.023531719 | C185: 18 | E185: 18 | F185: Other Manufacturing | G185: =VLOOKUP(F185,$A169:$B188,2,0) -> 3.023531719
A186: Telecommunications | B186: =$E$94 -> 0.1903240686 | C186: 19 | E186: 19 | F186: Telecommunications | G186: =VLOOKUP(F186,$A170:$B189,2,0) -> 0.1903240686
A187: Grand Total | B187: =$E$95 -> 2420.49709 | E187: 20 | G187: =VLOOKUP(F187,$A171:$B190,2,0) -> 
A188: 0 | B188: =$E$96 -> 0
B190: =$F$75 -> Total Water | C190: Rank | F190: Super Sector | G190: =RIGHT(B190,LEN(B190)-6) -> Water
A191: =$A168 -> Fishing | B191: =$F$76 -> 2203.531629 | C191: =RANK(B191,$B$191:$B$209,0) -> 1 | E191: 1 | F191: =IFERROR(INDEX($A$191:$A$210,MATCH(E191,$C$191:$C$210,0)),"") -> Fishing | G191: =VLOOKUP(F191,$A191:$B210,2,0) -> 2203.531629
A192: Livestock | B192: =$F$77 -> 10.24533281 | C192: =RANK(B192,$B$191:$B$209,0) -> 6 | E192: =E191+1 -> 2 | F192: Food and Beverage | G192: =VLOOKUP(F192,$A191:$B210,2,0) -> 83.90369197
A193: Chemicals | B193: =$F$78 -> 11.63897318 | C193: 5 | E193: 3 | F193: Water | G193: =VLOOKUP(F193,$A191:$B210,2,0) -> 18.59449347
A194: Oil & Gas | B194: =$F$79 -> 0.450563545 | C194: 15 | E194: 4 | F194: Manufacturing | G194: =VLOOKUP(F194,$A191:$B210,2,0) -> 13.02474906
A195: Food and Beverage | B195: =$F$80 -> 83.90369197 | C195: 2 | E195: 5 | F195: Chemicals | G195: =VLOOKUP(F195,$A191:$B210,2,0) -> 11.63897318
A196: Automobiles | B196: =$F$81 -> 4.051608729 | C196: 7 | E196: 6 | F196: Livestock | G196: =VLOOKUP(F196,$A191:$B210,2,0) -> 10.24533281
A197: Siderurgy and Metalurgy | B197: =$F$82 -> 1.058256054 | C197: 11 | E197: 7 | F197: Automobiles | G197: =VLOOKUP(F197,$A191:$B210,2,0) -> 4.051608729
A198: Forestry | B198: =$F$83 -> 0.3108719421 | C198: 17 | E198: 8 | F198: Energy | G198: =VLOOKUP(F198,$A191:$B210,2,0) -> 2.593587169
A199: Construction | B199: =$F$84 -> 0.5581768266 | C199: 13 | E199: 9 | F199: Transport | G199: =VLOOKUP(F199,$A191:$B210,2,0) -> 2.17071071
A200: Transport | B200: =$F$85 -> 2.17071071 | C200: 9 | E200: 10 | F200: Agriculture | G200: =VLOOKUP(F200,$A191:$B210,2,0) -> 1.478044037
A201: Mining | B201: =$F$86 -> 0.4176727929 | C201: 16 | E201: 11 | F201: Siderurgy and Metalurgy | G201: =VLOOKUP(F201,$A191:$B210,2,0) -> 1.058256054
A202: Energy | B202: =$F$87 -> 2.593587169 | C202: 8 | E202: 12 | F202: Paper and celulose | G202: =VLOOKUP(F202,$A191:$B210,2,0) -> 0.9053693801
A203: Paper and celulose | B203: =$F$88 -> 0.9053693801 | C203: 12 | E203: 13 | F203: Construction | G203: =VLOOKUP(F203,$A191:$B210,2,0) -> 0.5581768266
A204: Water | B204: =$F$89 -> 18.59449347 | C204: 3 | E204: 14 | F204: Other Manufacturing | G204: =VLOOKUP(F204,$A191:$B210,2,0) -> 0.4864622693
A205: Agriculture | B205: =$F$90 -> 1.478044037 | C205: 10 | E205: 15 | F205: Oil & Gas | G205: =VLOOKUP(F205,$A191:$B210,2,0) -> 0.450563545
A206: Manufacturing | B206: =$F$91 -> 13.02474906 | C206: 4 | E206: 16 | F206: Mining | G206: =VLOOKUP(F206,$A191:$B210,2,0) -> 0.4176727929
A207: Petrochemicals | B207: =$F$92 -> 0.147279843 | C207: 18 | E207: 17 | F207: Forestry | G207: =VLOOKUP(F207,$A191:$B210,2,0) -> 0.3108719421
A208: Other Manufacturing | B208: =$F$93 -> 0.4864622693 | C208: 14 | E208: 18 | F208: Petrochemicals | G208: =VLOOKUP(F208,$A192:$B211,2,0) -> 0.147279843
A209: Telecommunications | B209: =$F$94 -> 0.03458665986 | C209: 19 | E209: 19 | F209: Telecommunications | G209: =VLOOKUP(F209,$A193:$B212,2,0) -> 0.03458665986
A210: Grand Total | B210: =$F$95 -> 2355.616286 | E210: 20 | G210: =VLOOKUP(F210,$A194:$B213,2,0) -> 
A211: 0 | B211: =$F$96 -> 0
... 22 more rows

Sheet Detailed lending data (hidden)
E1: 2 | F1: =E1+1 -> 3 | G1: =F1+1 -> 4 | H1: 5 | I1: 6 | J1: 7 | K1: 8 | L1: 9 | M1: 10 | N1: 11 | O1: 12 | P1: 13
A2: Super Sector | B2: Trucost Sector | C2: Trucost Sector Number | D2: Credit Exposure (BRLm) | E2: GHG Direct (BRLm) | F2: GHG Indirect (BRLm) | G2: Air Pollution Direct (BRLm) | H2: Air Pollution Indirect (BRLm) | I2: Waste Direct (BRLm) | J2: Waste Indirect (BRLm) | K2: Land Use Direct (BRLm) | L2: Land Use Indirect (BRLm) | M2: Water Direct (BRLm) | N2: Water Indirect (BRLm) | O2: Water Pollutants Direct (BRLm) | P2: Water Pollutants Indirect (BRLm)
A3: Petrochemicals | B3: Petrochemical manufacturing | C3: 325110 | D3: =IFERROR(VLOOKUP(A3,'Summary Data'!$B$9:$C$28,2,0),"")/COUNTIF('Detailed lending data'!$A$3:$A$45,'Detailed lending data'!A3) -> 62 | E3: =$D3*VLOOKUP($C3,'Tabulated impacts'!$B$4:$N$48,E$1,0) -> 13.99116946 | F3: =$D3*VLOOKUP($C3,'Tabulated impacts'!$B$4:$N$48,F$1,0) -> 12.85555896 | G3: =$D3*VLOOKUP($C3,'Tabulated impacts'!$B$4:$N$48,G$1,0) -> 0.07421237526 | H3: =$D3*VLOOKUP($C3,'Tabulated impacts'!$B$4:$N$48,H$1,0) -> 5.19508936 | I3: =$D3*VLOOKUP($C3,'Tabulated impacts'!$B$4:$N$48,I$1,0) -> 0.09116701889 | J3: =$D3*VLOOKUP($C3,'Tabulated impacts'!$B$4:$N$48,J$1,0) -> 10.05639275 | K3: =$D3*VLOOKUP($C3,'Tabulated impacts'!$B$4:$N$48,K$1,0) -> 0.0001356685522 | L3: =$D3*VLOOKUP($C3,'Tabulated impacts'!$B$4:$N$48,L$1,0) -> 6.182088005 | M3: =$D3*VLOOKUP($C3,'Tabulated impacts'!$B$4:$N$48,M$1,0) -> 0.009829824255 | N3: =$D3*VLOOKUP($C3,'Tabulated impacts'!$B$4:$N$48,N$1,0) -> 0.1374500188 | O3: =$D3*VLOOKUP($C3,'Tabulated impacts'!$B$4:$N$48,O$1,0) -> 0.002098142034 | P3: =$D3*VLOOKUP($C3,'Tabulated impacts'!$B$4:$N$48,P$1,0) -> 3.400760142
A4: Energy | B4: Hydroelectric Power Generation | C4: 221111 | D4: =IFERROR(VLOOKUP(A4,'Summary Data'!$B$9:$C$28,2,0),"")/COUNTIF($A$3:$A$45,A4) -> 182 | E4: =$D4*VLOOKUP($C4,'Tabulated impacts'!$B$4:$N$48,E$1,0) -> 0 | F4: =$D4*VLOOKUP($C4,'Tabulated impacts'!$B$4:$N$48,F$1,0) -> 6.15970179 | G4: =$D4*VLOOKUP($C4,'Tabulated impacts'!$B$4:$N$48,G$1,0) -> 0.7223574904 | H4: =$D4*VLOOKUP($C4,'Tabulated impacts'!$B$4:$N$48,H$1,0) -> 2.570068476 | I4: =$D4*VLOOKUP($C4,'Tabulated impacts'!$B$4:$N$48,I$1,0) -> 0.05541288328 | J4: =$D4*VLOOKUP($C4,'Tabulated impacts'!$B$4:$N$48,J$1,0) -> 15.58774083 | K4: =$D4*VLOOKUP($C4,'Tabulated impacts'!$B$4:$N$48,K$1,0) -> 3.608452607 | L4: =$D4*VLOOKUP($C4,'Tabulated impacts'!$B$4:$N$48,L$1,0) -> 5.717871857 | M4: =$D4*VLOOKUP($C4,'Tabulated impacts'!$B$4:$N$48,M$1,0) -> 1.958529295 | N4: =$D4*VLOOKUP($C4,'Tabulated impacts'!$B$4:$N$48,N$1,0) -> 0.1947882242 | O4: =$D4*VLOOKUP($C4,'Tabulated impacts'!$B$4:$N$48,O$1,0) -> 0 | P4: =$D4*VLOOKUP($C4,'Tabulated impacts'!$B$4:$N$48,P$1,0) -> 0.459809309
A5: Energy | B5: Electric Power distribution | C5: 221122 | D5: =IFERROR(VLOOKUP(A5,'Summary Data'!$B$9:$C$28,2,0),"")/COUNTIF('Detailed lending data'!$A$3:$A$45,'Detailed lending data'!A5) -> 182 | E5: =$D5*VLOOKUP($C5,'Tabulated impacts'!$B$4:$N$48,E$1,0) -> 0.04182009118 | F5: =$D5*VLOOKUP($C5,'Tabulated impacts'!$B$4:$N$48,F$1,0) -> 7.318609787 | G5: =$D5*VLOOKUP($C5,'Tabulated impacts'!$B$4:$N$48,G$1,0) -> 0.6549697036 | H5: =$D5*VLOOKUP($C5,'Tabulated impacts'!$B$4:$N$48,H$1,0) -> 3.077905799 | I5: =$D5*VLOOKUP($C5,'Tabulated impacts'!$B$4:$N$48,I$1,0) -> 0.06639036915 | J5: =$D5*VLOOKUP($C5,'Tabulated impacts'!$B$4:$N$48,J$1,0) -> 18.57656758 | K5: =$D5*VLOOKUP($C5,'Tabulated impacts'!$B$4:$N$48,K$1,0) -> 0 | L5: =$D5*VLOOKUP($C5,'Tabulated impacts'!$B$4:$N$48,L$1,0) -> 6.820387338 | M5: =$D5*VLOOKUP($C5,'Tabulated impacts'!$B$4:$N$48,M$1,0) -> 0 | N5: =$D5*VLOOKUP($C5,'Tabulated impacts'!$B$4:$N$48,N$1,0) -> 0.220133638 | O5: =$D5*VLOOKUP($C5,'Tabulated impacts'!$B$4:$N$48,O$1,0) -> 0 | P5: =$D5*VLOOKUP($C5,'Tabulated impacts'!$B$4:$N$48,P$1,0) -> 0.550833702
A6: Energy | B6: Electric Bulk Power Transmission and Control | C6: 221121 | D6: =IFERROR(VLOOKUP(A6,'Summary Data'!$B$9:$C$28,2,0),"")/COUNTIF('Detailed lending data'!$A$3:$A$45,'Detailed lending data'!A6) -> 182 | E6: =$D6*VLOOKUP($C6,'Tabulated impacts'!$B$4:$N$48,E$1,0) -> 0.05456352576 | F6: =$D6*VLOOKUP($C6,'Tabulated impacts'!$B$4:$N$48,F$1,0) -> 7.319548898 | G6: =$D6*VLOOKUP($C6,'Tabulated impacts'!$B$4:$N$48,G$1,0) -> 4.117468702 | H6: =$D6*VLOOKUP($C6,'Tabulated impacts'!$B$4:$N$48,H$1,0) -> 3.096703462 | I6: =$D6*VLOOKUP($C6,'Tabulated impacts'!$B$4:$N$48,I$1,0) -> 0.06639036915 | J6: =$D6*VLOOKUP($C6,'Tabulated impacts'!$B$4:$N$48,J$1,0) -> 18.57687475 | K6: =$D6*VLOOKUP($C6,'Tabulated impacts'!$B$4:$N$48,K$1,0) -> 0.2158740132 | L6: =$D6*VLOOKUP($C6,'Tabulated impacts'!$B$4:$N$48,L$1,0) -> 6.821575347 | M6: =$D6*VLOOKUP($C6,'Tabulated impacts'!$B$4:$N$48,M$1,0) -> 0 | N6: =$D6*VLOOKUP($C6,'Tabulated impacts'!$B$4:$N$48,N$1,0) -> 0.2201360117 | O6: =$D6*VLOOKUP($C6,'Tabulated impacts'!$B$4:$N$48,O$1,0) -> 0 | P6: =$D6*VLOOKUP($C6,'Tabulated impacts'!$B$4:$N$48,P$1,0) -> 0.5508336477
A7: Water | B7: Water Supply and Irrigation Systems and Steam and Air-Conditioning Supply | C7: 221300A | D7: =IFERROR(VLOOKUP(A7,'Summary Data'!$B$9:$C$28,2,0),"")/COUNTIF('Detailed lending data'!$A$3:$A$45,'Detailed lending data'!A7) -> 789 | E7: =$D7*VLOOKUP($C7,'Tabulated impacts'!$B$4:$N$48,E$1,0) -> 17.3565659 | F7: =$D7*VLOOKUP($C7,'Tabulated impacts'!$B$4:$N$48,F$1,0) -> 13.82493695 | G7: =$D7*VLOOKUP($C7,'Tabulated impacts'!$B$4:$N$48,G$1,0) -> 0.6416811917 | H7: =$D7*VLOOKUP($C7,'Tabulated impacts'!$B$4:$N$48,H$1,0) -> 30.5416081 | I7: =$D7*VLOOKUP($C7,'Tabulated impacts'!$B$4:$N$48,I$1,0) -> 0.1545777629 | J7: =$D7*VLOOKUP($C7,'Tabulated impacts'!$B$4:$N$48,J$1,0) -> 9.792167081 | K7: =$D7*VLOOKUP($C7,'Tabulated impacts'!$B$4:$N$48,K$1,0) -> 0 | L7: =$D7*VLOOKUP($C7,'Tabulated impacts'!$B$4:$N$48,L$1,0) -> 3.352330401 | M7: =$D7*VLOOKUP($C7,'Tabulated impacts'!$B$4:$N$48,M$1,0) -> 18.33703769 | N7: =$D7*VLOOKUP($C7,'Tabulated impacts'!$B$4:$N$48,N$1,0) -> 0.2574557869 | O7: =$D7*VLOOKUP($C7,'Tabulated impacts'!$B$4:$N$48,O$1,0) -> 0 | P7: =$D7*VLOOKUP($C7,'Tabulated impacts'!$B$4:$N$48,P$1,0) -> 1.032853528
A8: Food and Beverage | B8: Animal (except poultry) slaughtering, rendering, and processing | C8: 311920 | D8: =IFERROR(VLOOKUP(A8,'Summary Data'!$B$9:$C$28,2,0),"")/COUNTIF('Detailed lending data'!$A$3:$A$45,'Detailed lending data'!A8) -> 22.75 | E8: =$D8*VLOOKUP($C8,'Tabulated impacts'!$B$4:$N$48,E$1,0) -> 1.281104265 | F8: =$D8*VLOOKUP($C8,'Tabulated impacts'!$B$4:$N$48,F$1,0) -> 4.077906276 | G8: =$D8*VLOOKUP($C8,'Tabulated impacts'!$B$4:$N$48,G$1,0) -> 0.003797804911 | H8: =$D8*VLOOKUP($C8,'Tabulated impacts'!$B$4:$N$48,H$1,0) -> 4.454170016 | I8: =$D8*VLOOKUP($C8,'Tabulated impacts'!$B$4:$N$48,I$1,0) -> 0.1381056676 | J8: =$D8*VLOOKUP($C8,'Tabulated impacts'!$B$4:$N$48,J$1,0) -> 2.332406373 | K8: =$D8*VLOOKUP($C8,'Tabulated impacts'!$B$4:$N$48,K$1,0) -> 0.002127188606 | L8: =$D8*VLOOKUP($C8,'Tabulated impacts'!$B$4:$N$48,L$1,0) -> 10.39579109 | M8: =$D8*VLOOKUP($C8,'Tabulated impacts'!$B$4:$N$48,M$1,0) -> 0.0001463851203 | N8: =$D8*VLOOKUP($C8,'Tabulated impacts'!$B$4:$N$48,N$1,0) -> 1.528098754 | O8: =$D8*VLOOKUP($C8,'Tabulated impacts'!$B$4:$N$48,O$1,0) -> 0 | P8: =$D8*VLOOKUP($C8,'Tabulated impacts'!$B$4:$N$48,P$1,0) -> 13.01960552
A9: Food and Beverage | B9: Coffee and Tea Manufacturing | C9: 31161A | D9: =IFERROR(VLOOKUP(A9,'Summary Data'!$B$9:$C$28,2,0),"")/COUNTIF('Detailed lending data'!$A$3:$A$45,'Detailed lending data'!A9) -> 22.75 | E9: =$D9*VLOOKUP($C9,'Tabulated impacts'!$B$4:$N$48,E$1,0) -> 0.2357609341 | F9: =$D9*VLOOKUP($C9,'Tabulated impacts'!$B$4:$N$48,F$1,0) -> 45.18284175 | G9: =$D9*VLOOKUP($C9,'Tabulated impacts'!$B$4:$N$48,G$1,0) -> 0.003965307117 | H9: =$D9*VLOOKUP($C9,'Tabulated impacts'!$B$4:$N$48,H$1,0) -> 4.595953973 | I9: =$D9*VLOOKUP($C9,'Tabulated impacts'!$B$4:$N$48,I$1,0) -> 0.08991193037 | J9: =$D9*VLOOKUP($C9,'Tabulated impacts'!$B$4:$N$48,J$1,0) -> 2.085492749 | K9: =$D9*VLOOKUP($C9,'Tabulated impacts'!$B$4:$N$48,K$1,0) -> 0.0008094581916 | L9: =$D9*VLOOKUP($C9,'Tabulated impacts'!$B$4:$N$48,L$1,0) -> 9.39698048 | M9: =$D9*VLOOKUP($C9,'Tabulated impacts'!$B$4:$N$48,M$1,0) -> 0.0001205567709 | N9: =$D9*VLOOKUP($C9,'Tabulated impacts'!$B$4:$N$48,N$1,0) -> 81.51523658 | O9: =$D9*VLOOKUP($C9,'Tabulated impacts'!$B$4:$N$48,O$1,0) -> 3.704242924e-05 | P9: =$D9*VLOOKUP($C9,'Tabulated impacts'!$B$4:$N$48,P$1,0) -> 11.26603343
A10: Food and Beverage | B10: Breweries | C10: 312120 | D10: =IFERROR(VLOOKUP(A10,'Summary Data'!$B$9:$C$28,2,0),"")/COUNTIF('Detailed lending data'!$A$3:$A$45,'Detailed lending data'!A10) -> 22.75 | E10: =$D10*VLOOKUP($C10,'Tabulated impacts'!$B$4:$N$48,E$1,0) -> 0.08147662208 | F10: =$D10*VLOOKUP($C10,'Tabulated impacts'!$B$4:$N$48,F$1,0) -> 1.797331631 | G10: =$D10*VLOOKUP($C10,'Tabulated impacts'!$B$4:$N$48,G$1,0) -> 0.008673647288 | H10: =$D10*VLOOKUP($C10,'Tabulated impacts'!$B$4:$N$48,H$1,0) -> 1.171163052 | I10: =$D10*VLOOKUP($C10,'Tabulated impacts'!$B$4:$N$48,I$1,0) -> 0.04921032373 | J10: =$D10*VLOOKUP($C10,'Tabulated impacts'!$B$4:$N$48,J$1,0) -> 0.9525147619 | K10: =$D10*VLOOKUP($C10,'Tabulated impacts'!$B$4:$N$48,K$1,0) -> 0.001260884646 | L10: =$D10*VLOOKUP($C10,'Tabulated impacts'!$B$4:$N$48,L$1,0) -> 3.576036188 | M10: =$D10*VLOOKUP($C10,'Tabulated impacts'!$B$4:$N$48,M$1,0) -> 0.002364370491 | N10: =$D10*VLOOKUP($C10,'Tabulated impacts'!$B$4:$N$48,N$1,0) -> 0.1939310349 | O10: =$D10*VLOOKUP($C10,'Tabulated impacts'!$B$4:$N$48,O$1,0) -> 1.337224018e-05 | P10: =$D10*VLOOKUP($C10,'Tabulated impacts'!$B$4:$N$48,P$1,0) -> 5.941740418
A11: Food and Beverage | B11: Fats and oils refining and blending | C11: 311225 | D11: =IFERROR(VLOOKUP(A11,'Summary Data'!$B$9:$C$28,2,0),"")/COUNTIF('Detailed lending data'!$A$3:$A$45,'Detailed lending data'!A11) -> 22.75 | E11: =$D11*VLOOKUP($C11,'Tabulated impacts'!$B$4:$N$48,E$1,0) -> 0.3233015176 | F11: =$D11*VLOOKUP($C11,'Tabulated impacts'!$B$4:$N$48,F$1,0) -> 1.928657332 | G11: =$D11*VLOOKUP($C11,'Tabulated impacts'!$B$4:$N$48,G$1,0) -> 0.0009035738535 | H11: =$D11*VLOOKUP($C11,'Tabulated impacts'!$B$4:$N$48,H$1,0) -> 0.8075606221 | I11: =$D11*VLOOKUP($C11,'Tabulated impacts'!$B$4:$N$48,I$1,0) -> 0.02230519113 | J11: =$D11*VLOOKUP($C11,'Tabulated impacts'!$B$4:$N$48,J$1,0) -> 0.5092576883 | K11: =$D11*VLOOKUP($C11,'Tabulated impacts'!$B$4:$N$48,K$1,0) -> 0.001619061757 | L11: =$D11*VLOOKUP($C11,'Tabulated impacts'!$B$4:$N$48,L$1,0) -> 16.10231611 | M11: =$D11*VLOOKUP($C11,'Tabulated impacts'!$B$4:$N$48,M$1,0) -> 3.834867276e-05 | N11: =$D11*VLOOKUP($C11,'Tabulated impacts'!$B$4:$N$48,N$1,0) -> 0.6637559376 | O11: =$D11*VLOOKUP($C11,'Tabulated impacts'!$B$4:$N$48,O$1,0) -> 0 | P11: =$D11*VLOOKUP($C11,'Tabulated impacts'!$B$4:$N$48,P$1,0) -> 23.78817503
A12: Siderurgy and Metalurgy | B12: Primary smelting and refining of nonferrous metal (except copper and aluminum) | C12: 331419 | D12: =IFERROR(VLOOKUP(A12,'Summary Data'!$B$9:$C$28,2,0),"")/COUNTIF('Detailed lending data'!$A$3:$A$45,'Detailed lending data'!A12) -> 42.33333333 | E12: =$D12*VLOOKUP($C12,'Tabulated impacts'!$B$4:$N$48,E$1,0) -> 19.4689122 | F12: =$D12*VLOOKUP($C12,'Tabulated impacts'!$B$4:$N$48,F$1,0) -> 12.17824848 | G12: =$D12*VLOOKUP($C12,'Tabulated impacts'!$B$4:$N$48,G$1,0) -> 4.751727929 | H12: =$D12*VLOOKUP($C12,'Tabulated impacts'!$B$4:$N$48,H$1,0) -> 4.399138129 | I12: =$D12*VLOOKUP($C12,'Tabulated impacts'!$B$4:$N$48,I$1,0) -> 0.3587407458 | J12: =$D12*VLOOKUP($C12,'Tabulated impacts'!$B$4:$N$48,J$1,0) -> 37.98694454 | K12: =$D12*VLOOKUP($C12,'Tabulated impacts'!$B$4:$N$48,K$1,0) -> 0.01000043047 | L12: =$D12*VLOOKUP($C12,'Tabulated impacts'!$B$4:$N$48,L$1,0) -> 9.000875196 | M12: =$D12*VLOOKUP($C12,'Tabulated impacts'!$B$4:$N$48,M$1,0) -> 0.3155112787 | N12: =$D12*VLOOKUP($C12,'Tabulated impacts'!$B$4:$N$48,N$1,0) -> 0.201850277 | O12: =$D12*VLOOKUP($C12,'Tabulated impacts'!$B$4:$N$48,O$1,0) -> 0.09497597786 | P12: =$D12*VLOOKUP($C12,'Tabulated impacts'!$B$4:$N$48,P$1,0) -> 0.5285035681
A13: Siderurgy and Metalurgy | B13: Copper rolling, drawing, extruding and alloying | C13: 331420 | D13: =IFERROR(VLOOKUP(A13,'Summary Data'!$B$9:$C$28,2,0),"")/COUNTIF('Detailed lending data'!$A$3:$A$45,'Detailed lending data'!A13) -> 42.33333333 | E13: =$D13*VLOOKUP($C13,'Tabulated impacts'!$B$4:$N$48,E$1,0) -> 0.684503335 | F13: =$D13*VLOOKUP($C13,'Tabulated impacts'!$B$4:$N$48,F$1,0) -> 9.743500551 | G13: =$D13*VLOOKUP($C13,'Tabulated impacts'!$B$4:$N$48,G$1,0) -> 0.002330156217 | H13: =$D13*VLOOKUP($C13,'Tabulated impacts'!$B$4:$N$48,H$1,0) -> 3.667197666 | I13: =$D13*VLOOKUP($C13,'Tabulated impacts'!$B$4:$N$48,I$1,0) -> 0.3381374377 | J13: =$D13*VLOOKUP($C13,'Tabulated impacts'!$B$4:$N$48,J$1,0) -> 20.3666278 | K13: =$D13*VLOOKUP($C13,'Tabulated impacts'!$B$4:$N$48,K$1,0) -> 0.002835778609 | L13: =$D13*VLOOKUP($C13,'Tabulated impacts'!$B$4:$N$48,L$1,0) -> 2.646149676 | M13: =$D13*VLOOKUP($C13,'Tabulated impacts'!$B$4:$N$48,M$1,0) -> 0.009470532022 | N13: =$D13*VLOOKUP($C13,'Tabulated impacts'!$B$4:$N$48,N$1,0) -> 0.1689728912 | O13: =$D13*VLOOKUP($C13,'Tabulated impacts'!$B$4:$N$48,O$1,0) -> 0.003796679424 | P13: =$D13*VLOOKUP($C13,'Tabulated impacts'!$B$4:$N$48,P$1,0) -> 0.5060213124
A14: Siderurgy and Metalurgy | B14: Plate work and fabricated structural product manufacturing | C14: 332310 | D14: =IFERROR(VLOOKUP(A14,'Summary Data'!$B$9:$C$28,2,0),"")/COUNTIF('Detailed lending data'!$A$3:$A$45,'Detailed lending data'!A14) -> 42.33333333 | E14: =$D14*VLOOKUP($C14,'Tabulated impacts'!$B$4:$N$48,E$1,0) -> 0.2101368433 | F14: =$D14*VLOOKUP($C14,'Tabulated impacts'!$B$4:$N$48,F$1,0) -> 9.566592166 | G14: =$D14*VLOOKUP($C14,'Tabulated impacts'!$B$4:$N$48,G$1,0) -> 0.004291426198 | H14: =$D14*VLOOKUP($C14,'Tabulated impacts'!$B$4:$N$48,H$1,0) -> 1.453918298 | I14: =$D14*VLOOKUP($C14,'Tabulated impacts'!$B$4:$N$48,I$1,0) -> 0.1514977433 | J14: =$D14*VLOOKUP($C14,'Tabulated impacts'!$B$4:$N$48,J$1,0) -> 3.870859616 | K14: =$D14*VLOOKUP($C14,'Tabulated impacts'!$B$4:$N$48,K$1,0) -> 0.005875763236 | L14: =$D14*VLOOKUP($C14,'Tabulated impacts'!$B$4:$N$48,L$1,0) -> 0.7482462372 | M14: =$D14*VLOOKUP($C14,'Tabulated impacts'!$B$4:$N$48,M$1,0) -> 0.0001705518167 | N14: =$D14*VLOOKUP($C14,'Tabulated impacts'!$B$4:$N$48,N$1,0) -> 0.07669781983 | O14: =$D14*VLOOKUP($C14,'Tabulated impacts'!$B$4:$N$48,O$1,0) -> 0 | P14: =$D14*VLOOKUP($C14,'Tabulated impacts'!$B$4:$N$48,P$1,0) -> 0.2285594767
A15: Siderurgy and Metalurgy | B15: Iron and steel mills and ferroalloy manufacturing | C15: 331110 | D15: =IFERROR(VLOOKUP(A15,'Summary Data'!$B$9:$C$28,2,0),"")/COUNTIF('Detailed lending data'!$A$3:$A$45,'Detailed lending data'!A15) -> 42.33333333 | E15: =$D15*VLOOKUP($C15,'Tabulated impacts'!$B$4:$N$48,E$1,0) -> 21.98384462 | F15: =$D15*VLOOKUP($C15,'Tabulated impacts'!$B$4:$N$48,F$1,0) -> 10.98968511 | G15: =$D15*VLOOKUP($C15,'Tabulated impacts'!$B$4:$N$48,G$1,0) -> 0.1917991137 | H15: =$D15*VLOOKUP($C15,'Tabulated impacts'!$B$4:$N$48,H$1,0) -> 1.815769742 | I15: =$D15*VLOOKUP($C15,'Tabulated impacts'!$B$4:$N$48,I$1,0) -> 0.1617737626 | J15: =$D15*VLOOKUP($C15,'Tabulated impacts'!$B$4:$N$48,J$1,0) -> 10.54560786 | K15: =$D15*VLOOKUP($C15,'Tabulated impacts'!$B$4:$N$48,K$1,0) -> 0.001808498431 | L15: =$D15*VLOOKUP($C15,'Tabulated impacts'!$B$4:$N$48,L$1,0) -> 1.580440609 | M15: =$D15*VLOOKUP($C15,'Tabulated impacts'!$B$4:$N$48,M$1,0) -> 0.09962231256 | N15: =$D15*VLOOKUP($C15,'Tabulated impacts'!$B$4:$N$48,N$1,0) -> 0.08902300524 | O15: =$D15*VLOOKUP($C15,'Tabulated impacts'!$B$4:$N$48,O$1,0) -> 0.009196380814 | P15: =$D15*VLOOKUP($C15,'Tabulated impacts'!$B$4:$N$48,P$1,0) -> 0.2251836186
A16: Siderurgy and Metalurgy | B16: Other fabricated metal manufacturing | C16: 33299C | D16: =IFERROR(VLOOKUP(A16,'Summary Data'!$B$9:$C$28,2,0),"")/COUNTIF('Detailed lending data'!$A$3:$A$45,'Detailed lending data'!A16) -> 42.33333333 | E16: =$D16*VLOOKUP($C16,'Tabulated impacts'!$B$4:$N$48,E$1,0) -> 0.2393258803 | F16: =$D16*VLOOKUP($C16,'Tabulated impacts'!$B$4:$N$48,F$1,0) -> 7.064426081 | G16: =$D16*VLOOKUP($C16,'Tabulated impacts'!$B$4:$N$48,G$1,0) -> 0.01347221494 | H16: =$D16*VLOOKUP($C16,'Tabulated impacts'!$B$4:$N$48,H$1,0) -> 1.68525097 | I16: =$D16*VLOOKUP($C16,'Tabulated impacts'!$B$4:$N$48,I$1,0) -> 0.1521560624 | J16: =$D16*VLOOKUP($C16,'Tabulated impacts'!$B$4:$N$48,J$1,0) -> 3.351803947 | K16: =$D16*VLOOKUP($C16,'Tabulated impacts'!$B$4:$N$48,K$1,0) -> 0.005093132652 | L16: =$D16*VLOOKUP($C16,'Tabulated impacts'!$B$4:$N$48,L$1,0) -> 0.744932644 | M16: =$D16*VLOOKUP($C16,'Tabulated impacts'!$B$4:$N$48,M$1,0) -> 8.941959793e-05 | N16: =$D16*VLOOKUP($C16,'Tabulated impacts'!$B$4:$N$48,N$1,0) -> 0.06988460795 | O16: =$D16*VLOOKUP($C16,'Tabulated impacts'!$B$4:$N$48,O$1,0) -> 0.0001328757325 | P16: =$D16*VLOOKUP($C16,'Tabulated impacts'!$B$4:$N$48,P$1,0) -> 0.2263617918
A17: Mining | B17: Iron ore mining | C17: 212210 | D17: =IFERROR(VLOOKUP(A17,'Summary Data'!$B$9:$C$28,2,0),"")/COUNTIF('Detailed lending data'!$A$3:$A$45,'Detailed lending data'!A17) -> 320 | E17: =$D17*VLOOKUP($C17,'Tabulated impacts'!$B$4:$N$48,E$1,0) -> 2.91453071 | F17: =$D17*VLOOKUP($C17,'Tabulated impacts'!$B$4:$N$48,F$1,0) -> 20.1487737 | G17: =$D17*VLOOKUP($C17,'Tabulated impacts'!$B$4:$N$48,G$1,0) -> 6.071364212 | H17: =$D17*VLOOKUP($C17,'Tabulated impacts'!$B$4:$N$48,H$1,0) -> 12.9054836 | I17: =$D17*VLOOKUP($C17,'Tabulated impacts'!$B$4:$N$48,I$1,0) -> 0.2274524034 | J17: =$D17*VLOOKUP($C17,'Tabulated impacts'!$B$4:$N$48,J$1,0) -> 21.75240199 | K17: =$D17*VLOOKUP($C17,'Tabulated impacts'!$B$4:$N$48,K$1,0) -> 46.23442199 | L17: =$D17*VLOOKUP($C17,'Tabulated impacts'!$B$4:$N$48,L$1,0) -> 7.495334549 | M17: =$D17*VLOOKUP($C17,'Tabulated impacts'!$B$4:$N$48,M$1,0) -> 0.06832495263 | N17: =$D17*VLOOKUP($C17,'Tabulated impacts'!$B$4:$N$48,N$1,0) -> 0.3493478403 | O17: =$D17*VLOOKUP($C17,'Tabulated impacts'!$B$4:$N$48,O$1,0) -> 0 | P17: =$D17*VLOOKUP($C17,'Tabulated impacts'!$B$4:$N$48,P$1,0) -> 1.83451483
A18: Automobiles | B18: Motor vehicle body manufacturing | C18: 336211 | D18: =IFERROR(VLOOKUP(A18,'Summary Data'!$B$9:$C$28,2,0),"")/COUNTIF('Detailed lending data'!$A$3:$A$45,'Detailed lending data'!A18) -> 168 | E18: =$D18*VLOOKUP($C18,'Tabulated impacts'!$B$4:$N$48,E$1,0) -> 1.184050619 | F18: =$D18*VLOOKUP($C18,'Tabulated impacts'!$B$4:$N$48,F$1,0) -> 26.6319765 | G18: =$D18*VLOOKUP($C18,'Tabulated impacts'!$B$4:$N$48,G$1,0) -> 0.06485156067 | H18: =$D18*VLOOKUP($C18,'Tabulated impacts'!$B$4:$N$48,H$1,0) -> 12.01591732 | I18: =$D18*VLOOKUP($C18,'Tabulated impacts'!$B$4:$N$48,I$1,0) -> 0.7101823406 | J18: =$D18*VLOOKUP($C18,'Tabulated impacts'!$B$4:$N$48,J$1,0) -> 13.76154577 | K18: =$D18*VLOOKUP($C18,'Tabulated impacts'!$B$4:$N$48,K$1,0) -> 0.01457169364 | L18: =$D18*VLOOKUP($C18,'Tabulated impacts'!$B$4:$N$48,L$1,0) -> 3.963263234 | M18: =$D18*VLOOKUP($C18,'Tabulated impacts'!$B$4:$N$48,M$1,0) -> 0.0002835424565 | N18: =$D18*VLOOKUP($C18,'Tabulated impacts'!$B$4:$N$48,N$1,0) -> 1.101352363 | O18: =$D18*VLOOKUP($C18,'Tabulated impacts'!$B$4:$N$48,O$1,0) -> 0.0003157965397 | P18: =$D18*VLOOKUP($C18,'Tabulated impacts'!$B$4:$N$48,P$1,0) -> 2.028863461
A19: Paper and celulose | B19: Paper mills | C19: 322120 | D19: =IFERROR(VLOOKUP(A19,'Summary Data'!$B$9:$C$28,2,0),"")/COUNTIF('Detailed lending data'!$A$3:$A$45,'Detailed lending data'!A19) -> 167.5 | E19: =$D19*VLOOKUP($C19,'Tabulated impacts'!$B$4:$N$48,E$1,0) -> 4.985610551 | F19: =$D19*VLOOKUP($C19,'Tabulated impacts'!$B$4:$N$48,F$1,0) -> 9.129460844 | G19: =$D19*VLOOKUP($C19,'Tabulated impacts'!$B$4:$N$48,G$1,0) -> 3.013536641 | H19: =$D19*VLOOKUP($C19,'Tabulated impacts'!$B$4:$N$48,H$1,0) -> 23.74609253 | I19: =$D19*VLOOKUP($C19,'Tabulated impacts'!$B$4:$N$48,I$1,0) -> 0.3069382553 | J19: =$D19*VLOOKUP($C19,'Tabulated impacts'!$B$4:$N$48,J$1,0) -> 5.446024782 | K19: =$D19*VLOOKUP($C19,'Tabulated impacts'!$B$4:$N$48,K$1,0) -> 0.003050690176 | L19: =$D19*VLOOKUP($C19,'Tabulated impacts'!$B$4:$N$48,L$1,0) -> 2.691838115 | M19: =$D19*VLOOKUP($C19,'Tabulated impacts'!$B$4:$N$48,M$1,0) -> 0.0732213851 | N19: =$D19*VLOOKUP($C19,'Tabulated impacts'!$B$4:$N$48,N$1,0) -> 0.4200911425 | O19: =$D19*VLOOKUP($C19,'Tabulated impacts'!$B$4:$N$48,O$1,0) -> 0.3539003818 | P19: =$D19*VLOOKUP($C19,'Tabulated impacts'!$B$4:$N$48,P$1,0) -> 2.142080842
A20: Paper and celulose | B20: Pulp mills | C20: 322110 | D20: =IFERROR(VLOOKUP(A20,'Summary Data'!$B$9:$C$28,2,0),"")/COUNTIF('Detailed lending data'!$A$3:$A$45,'Detailed lending data'!A20) -> 167.5 | E20: =$D20*VLOOKUP($C20,'Tabulated impacts'!$B$4:$N$48,E$1,0) -> 9.295646363 | F20: =$D20*VLOOKUP($C20,'Tabulated impacts'!$B$4:$N$48,F$1,0) -> 5.480759427 | G20: =$D20*VLOOKUP($C20,'Tabulated impacts'!$B$4:$N$48,G$1,0) -> 1.191438574 | H20: =$D20*VLOOKUP($C20,'Tabulated impacts'!$B$4:$N$48,H$1,0) -> 20.43788757 | I20: =$D20*VLOOKUP($C20,'Tabulated impacts'!$B$4:$N$48,I$1,0) -> 0.1948559855 | J20: =$D20*VLOOKUP($C20,'Tabulated impacts'!$B$4:$N$48,J$1,0) -> 3.720404672 | K20: =$D20*VLOOKUP($C20,'Tabulated impacts'!$B$4:$N$48,K$1,0) -> 0.0009416988479 | L20: =$D20*VLOOKUP($C20,'Tabulated impacts'!$B$4:$N$48,L$1,0) -> 1.72000835 | M20: =$D20*VLOOKUP($C20,'Tabulated impacts'!$B$4:$N$48,M$1,0) -> 0.1002079178 | N20: =$D20*VLOOKUP($C20,'Tabulated impacts'!$B$4:$N$48,N$1,0) -> 0.3118489348 | O20: =$D20*VLOOKUP($C20,'Tabulated impacts'!$B$4:$N$48,O$1,0) -> 0.2135970363 | P20: =$D20*VLOOKUP($C20,'Tabulated impacts'!$B$4:$N$48,P$1,0) -> 1.089830512
A21: Manufacturing | B21: Apparel accessories and other apparel manufacturing | C21: 315900 | D21: =IFERROR(VLOOKUP(A21,'Summary Data'!$B$9:$C$28,2,0),"")/COUNTIF('Detailed lending data'!$A$3:$A$45,'Detailed lending data'!A21) -> 193 | E21: =$D21*VLOOKUP($C21,'Tabulated impacts'!$B$4:$N$48,E$1,0) -> 0.4137606437 | F21: =$D21*VLOOKUP($C21,'Tabulated impacts'!$B$4:$N$48,F$1,0) -> 15.53165609 | G21: =$D21*VLOOKUP($C21,'Tabulated impacts'!$B$4:$N$48,G$1,0) -> 0.021112683 | H21: =$D21*VLOOKUP($C21,'Tabulated impacts'!$B$4:$N$48,H$1,0) -> 12.09866942 | I21: =$D21*VLOOKUP($C21,'Tabulated impacts'!$B$4:$N$48,I$1,0) -> 0.4708292828 | J21: =$D21*VLOOKUP($C21,'Tabulated impacts'!$B$4:$N$48,J$1,0) -> 7.678373753 | K21: =$D21*VLOOKUP($C21,'Tabulated impacts'!$B$4:$N$48,K$1,0) -> 0.0369059737 | L21: =$D21*VLOOKUP($C21,'Tabulated impacts'!$B$4:$N$48,L$1,0) -> 5.988605434 | M21: =$D21*VLOOKUP($C21,'Tabulated impacts'!$B$4:$N$48,M$1,0) -> 0.002445475181 | N21: =$D21*VLOOKUP($C21,'Tabulated impacts'!$B$4:$N$48,N$1,0) -> 11.49492425 | O21: =$D21*VLOOKUP($C21,'Tabulated impacts'!$B$4:$N$48,O$1,0) -> 0 | P21: =$D21*VLOOKUP($C21,'Tabulated impacts'!$B$4:$N$48,P$1,0) -> 6.465165408
A22: Manufacturing | B22: All other miscellaneous wood product manufacturing | C22: 321999 | D22: =IFERROR(VLOOKUP(A22,'Summary Data'!$B$9:$C$28,2,0),"")/COUNTIF('Detailed lending data'!$A$3:$A$45,'Detailed lending data'!A22) -> 193 | E22: =$D22*VLOOKUP($C22,'Tabulated impacts'!$B$4:$N$48,E$1,0) -> 0.3193803365 | F22: =$D22*VLOOKUP($C22,'Tabulated impacts'!$B$4:$N$48,F$1,0) -> 7.724858706 | G22: =$D22*VLOOKUP($C22,'Tabulated impacts'!$B$4:$N$48,G$1,0) -> 0.08063177997 | H22: =$D22*VLOOKUP($C22,'Tabulated impacts'!$B$4:$N$48,H$1,0) -> 4.959880509 | I22: =$D22*VLOOKUP($C22,'Tabulated impacts'!$B$4:$N$48,I$1,0) -> 1.389918396 | J22: =$D22*VLOOKUP($C22,'Tabulated impacts'!$B$4:$N$48,J$1,0) -> 4.726458825 | K22: =$D22*VLOOKUP($C22,'Tabulated impacts'!$B$4:$N$48,K$1,0) -> 0.01392166676 | L22: =$D22*VLOOKUP($C22,'Tabulated impacts'!$B$4:$N$48,L$1,0) -> 3.403982536 | M22: =$D22*VLOOKUP($C22,'Tabulated impacts'!$B$4:$N$48,M$1,0) -> 0.002065584014 | N22: =$D22*VLOOKUP($C22,'Tabulated impacts'!$B$4:$N$48,N$1,0) -> 1.525313751 | O22: =$D22*VLOOKUP($C22,'Tabulated impacts'!$B$4:$N$48,O$1,0) -> 0 | P22: =$D22*VLOOKUP($C22,'Tabulated impacts'!$B$4:$N$48,P$1,0) -> 2.064923619
A23: Automobiles | B23: Motor vehicle parts manufacturing | C23: 336300 | D23: =IFERROR(VLOOKUP(A23,'Summary Data'!$B$9:$C$28,2,0),"")/COUNTIF('Detailed lending data'!$A$3:$A$45,'Detailed lending data'!A23) -> 168 | E23: =$D23*VLOOKUP($C23,'Tabulated impacts'!$B$4:$N$48,E$1,0) -> 1.813002104 | F23: =$D23*VLOOKUP($C23,'Tabulated impacts'!$B$4:$N$48,F$1,0) -> 73.23167045 | G23: =$D23*VLOOKUP($C23,'Tabulated impacts'!$B$4:$N$48,G$1,0) -> 0.02226729898 | H23: =$D23*VLOOKUP($C23,'Tabulated impacts'!$B$4:$N$48,H$1,0) -> 28.17575642 | I23: =$D23*VLOOKUP($C23,'Tabulated impacts'!$B$4:$N$48,I$1,0) -> 1.33525195 | J23: =$D23*VLOOKUP($C23,'Tabulated impacts'!$B$4:$N$48,J$1,0) -> 33.05199007 | K23: =$D23*VLOOKUP($C23,'Tabulated impacts'!$B$4:$N$48,K$1,0) -> 0.02231197789 | L23: =$D23*VLOOKUP($C23,'Tabulated impacts'!$B$4:$N$48,L$1,0) -> 8.975361656 | M23: =$D23*VLOOKUP($C23,'Tabulated impacts'!$B$4:$N$48,M$1,0) -> 0.0008299284668 | N23: =$D23*VLOOKUP($C23,'Tabulated impacts'!$B$4:$N$48,N$1,0) -> 2.868959219 | O23: =$D23*VLOOKUP($C23,'Tabulated impacts'!$B$4:$N$48,O$1,0) -> 0 | P23: =$D23*VLOOKUP($C23,'Tabulated impacts'!$B$4:$N$48,P$1,0) -> 4.6083141
A24: Oil & Gas | B24: Petroleum Refineries | C24: 324110 | D24: =IFERROR(VLOOKUP(A24,'Summary Data'!$B$9:$C$28,2,0),"")/COUNTIF('Detailed lending data'!$A$3:$A$45,'Detailed lending data'!A24) -> 333.3333333 | E24: =$D24*VLOOKUP($C24,'Tabulated impacts'!$B$4:$N$48,E$1,0) -> 1.439253434 | F24: =$D24*VLOOKUP($C24,'Tabulated impacts'!$B$4:$N$48,F$1,0) -> 7.304473564 | G24: =$D24*VLOOKUP($C24,'Tabulated impacts'!$B$4:$N$48,G$1,0) -> 0.03612699198 | H24: =$D24*VLOOKUP($C24,'Tabulated impacts'!$B$4:$N$48,H$1,0) -> 1.73709097 | I24: =$D24*VLOOKUP($C24,'Tabulated impacts'!$B$4:$N$48,I$1,0) -> 0.1007848547 | J24: =$D24*VLOOKUP($C24,'Tabulated impacts'!$B$4:$N$48,J$1,0) -> 35.01053835 | K24: =$D24*VLOOKUP($C24,'Tabulated impacts'!$B$4:$N$48,K$1,0) -> 0.0001258660915 | L24: =$D24*VLOOKUP($C24,'Tabulated impacts'!$B$4:$N$48,L$1,0) -> 15.6806513 | M24: =$D24*VLOOKUP($C24,'Tabulated impacts'!$B$4:$N$48,M$1,0) -> 0.01295546208 | N24: =$D24*VLOOKUP($C24,'Tabulated impacts'!$B$4:$N$48,N$1,0) -> 0.04727819833 | O24: =$D24*VLOOKUP($C24,'Tabulated impacts'!$B$4:$N$48,O$1,0) -> 0.0003248961432 | P24: =$D24*VLOOKUP($C24,'Tabulated impacts'!$B$4:$N$48,P$1,0) -> 0
A25: Chemicals | B25: Pharmaceutical preparation manufacturing | C25: 325412 | D25: =IFERROR(VLOOKUP(A25,'Summary Data'!$B$9:$C$28,2,0),"")/COUNTIF('Detailed lending data'!$A$3:$A$45,'Detailed lending data'!A25) -> 300 | E25: =$D25*VLOOKUP($C25,'Tabulated impacts'!$B$4:$N$48,E$1,0) -> 1.184205805 | F25: =$D25*VLOOKUP($C25,'Tabulated impacts'!$B$4:$N$48,F$1,0) -> 30.00384004 | G25: =$D25*VLOOKUP($C25,'Tabulated impacts'!$B$4:$N$48,G$1,0) -> 0.04010174021 | H25: =$D25*VLOOKUP($C25,'Tabulated impacts'!$B$4:$N$48,H$1,0) -> 14.73735023 | I25: =$D25*VLOOKUP($C25,'Tabulated impacts'!$B$4:$N$48,I$1,0) -> 1.310058197 | J25: =$D25*VLOOKUP($C25,'Tabulated impacts'!$B$4:$N$48,J$1,0) -> 11.7236692 | K25: =$D25*VLOOKUP($C25,'Tabulated impacts'!$B$4:$N$48,K$1,0) -> 0.01846292466 | L25: =$D25*VLOOKUP($C25,'Tabulated impacts'!$B$4:$N$48,L$1,0) -> 11.80079521 | M25: =$D25*VLOOKUP($C25,'Tabulated impacts'!$B$4:$N$48,M$1,0) -> 0.00153729619 | N25: =$D25*VLOOKUP($C25,'Tabulated impacts'!$B$4:$N$48,N$1,0) -> 9.998451289 | O25: =$D25*VLOOKUP($C25,'Tabulated impacts'!$B$4:$N$48,O$1,0) -> 8.706782365e-05 | P25: =$D25*VLOOKUP($C25,'Tabulated impacts'!$B$4:$N$48,P$1,0) -> 11.78514751
A26: Construction | B26: Cement manufacturing | C26: 327310 | D26: =IFERROR(VLOOKUP(A26,'Summary Data'!$B$9:$C$28,2,0),"")/COUNTIF('Detailed lending data'!$A$3:$A$45,'Detailed lending data'!A26) -> 66.66666667 | E26: =$D26*VLOOKUP($C26,'Tabulated impacts'!$B$4:$N$48,E$1,0) -> 69.24643612 | F26: =$D26*VLOOKUP($C26,'Tabulated impacts'!$B$4:$N$48,F$1,0) -> 10.91491227 | G26: =$D26*VLOOKUP($C26,'Tabulated impacts'!$B$4:$N$48,G$1,0) -> 3.335614468 | H26: =$D26*VLOOKUP($C26,'Tabulated impacts'!$B$4:$N$48,H$1,0) -> 2.036864889 | I26: =$D26*VLOOKUP($C26,'Tabulated impacts'!$B$4:$N$48,I$1,0) -> 0.07866893764 | J26: =$D26*VLOOKUP($C26,'Tabulated impacts'!$B$4:$N$48,J$1,0) -> 7.083439874 | K26: =$D26*VLOOKUP($C26,'Tabulated impacts'!$B$4:$N$48,K$1,0) -> 0.002302185813 | L26: =$D26*VLOOKUP($C26,'Tabulated impacts'!$B$4:$N$48,L$1,0) -> 1.601135768 | M26: =$D26*VLOOKUP($C26,'Tabulated impacts'!$B$4:$N$48,M$1,0) -> 0.0373657383 | N26: =$D26*VLOOKUP($C26,'Tabulated impacts'!$B$4:$N$48,N$1,0) -> 0.07519372921 | O26: =$D26*VLOOKUP($C26,'Tabulated impacts'!$B$4:$N$48,O$1,0) -> 0.000766191352 | P26: =$D26*VLOOKUP($C26,'Tabulated impacts'!$B$4:$N$48,P$1,0) -> 0.2071493588
A27: Construction | B27: Valve and fittings other than plumbing | C27: 33291A | D27: =IFERROR(VLOOKUP(A27,'Summary Data'!$B$9:$C$28,2,0),"")/COUNTIF('Detailed lending data'!$A$3:$A$45,'Detailed lending data'!A27) -> 66.66666667 | E27: =$D27*VLOOKUP($C27,'Tabulated impacts'!$B$4:$N$48,E$1,0) -> 1.38216264 | F27: =$D27*VLOOKUP($C27,'Tabulated impacts'!$B$4:$N$48,F$1,0) -> 28.18368422 | G27: =$D27*VLOOKUP($C27,'Tabulated impacts'!$B$4:$N$48,G$1,0) -> 0.00342036732 | H27: =$D27*VLOOKUP($C27,'Tabulated impacts'!$B$4:$N$48,H$1,0) -> 6.856352978 | I27: =$D27*VLOOKUP($C27,'Tabulated impacts'!$B$4:$N$48,I$1,0) -> 0.889223415 | J27: =$D27*VLOOKUP($C27,'Tabulated impacts'!$B$4:$N$48,J$1,0) -> 15.47834569 | K27: =$D27*VLOOKUP($C27,'Tabulated impacts'!$B$4:$N$48,K$1,0) -> 0.02941402603 | L27: =$D27*VLOOKUP($C27,'Tabulated impacts'!$B$4:$N$48,L$1,0) -> 3.031715194 | M27: =$D27*VLOOKUP($C27,'Tabulated impacts'!$B$4:$N$48,M$1,0) -> 0.0006462648573 | N27: =$D27*VLOOKUP($C27,'Tabulated impacts'!$B$4:$N$48,N$1,0) -> 0.376133824 | O27: =$D27*VLOOKUP($C27,'Tabulated impacts'!$B$4:$N$48,O$1,0) -> 0 | P27: =$D27*VLOOKUP($C27,'Tabulated impacts'!$B$4:$N$48,P$1,0) -> 0.9717155717
A28: Oil & Gas | B28: Crude Petroleum and Natural Gas Extraction | C28: 211111B | D28: =IFERROR(VLOOKUP(A28,'Summary Data'!$B$9:$C$28,2,0),"")/COUNTIF('Detailed lending data'!$A$3:$A$45,'Detailed lending data'!A28) -> 333.3333333 | E28: =$D28*VLOOKUP($C28,'Tabulated impacts'!$B$4:$N$48,E$1,0) -> 10.27477277 | F28: =$D28*VLOOKUP($C28,'Tabulated impacts'!$B$4:$N$48,F$1,0) -> 3.143519312 | G28: =$D28*VLOOKUP($C28,'Tabulated impacts'!$B$4:$N$48,G$1,0) -> 0.04214006927 | H28: =$D28*VLOOKUP($C28,'Tabulated impacts'!$B$4:$N$48,H$1,0) -> 0.7920026317 | I28: =$D28*VLOOKUP($C28,'Tabulated impacts'!$B$4:$N$48,I$1,0) -> 0.0750872593 | J28: =$D28*VLOOKUP($C28,'Tabulated impacts'!$B$4:$N$48,J$1,0) -> 8.869172664 | K28: =$D28*VLOOKUP($C28,'Tabulated impacts'!$B$4:$N$48,K$1,0) -> 52.30065233 | L28: =$D28*VLOOKUP($C28,'Tabulated impacts'!$B$4:$N$48,L$1,0) -> 5.479820076 | M28: =$D28*VLOOKUP($C28,'Tabulated impacts'!$B$4:$N$48,M$1,0) -> 0.02820121076 | N28: =$D28*VLOOKUP($C28,'Tabulated impacts'!$B$4:$N$48,N$1,0) -> 0.02896572749 | O28: =$D28*VLOOKUP($C28,'Tabulated impacts'!$B$4:$N$48,O$1,0) -> 0 | P28: =$D28*VLOOKUP($C28,'Tabulated impacts'!$B$4:$N$48,P$1,0) -> 0.1464456129
A29: Oil & Gas | B29: Natural Gas Distribution | C29: 221200 | D29: =IFERROR(VLOOKUP(A29,'Summary Data'!$B$9:$C$28,2,0),"")/COUNTIF('Detailed lending data'!$A$3:$A$45,'Detailed lending data'!A29) -> 333.3333333 | E29: =$D29*VLOOKUP($C29,'Tabulated impacts'!$B$4:$N$48,E$1,0) -> 25.77673469 | F29: =$D29*VLOOKUP($C29,'Tabulated impacts'!$B$4:$N$48,F$1,0) -> 25.36082397 | G29: =$D29*VLOOKUP($C29,'Tabulated impacts'!$B$4:$N$48,G$1,0) -> 0.2282486772 | H29: =$D29*VLOOKUP($C29,'Tabulated impacts'!$B$4:$N$48,H$1,0) -> 3.578828981 | I29: =$D29*VLOOKUP($C29,'Tabulated impacts'!$B$4:$N$48,I$1,0) -> 0.1974330018 | J29: =$D29*VLOOKUP($C29,'Tabulated impacts'!$B$4:$N$48,J$1,0) -> 116.8564646 | K29: =$D29*VLOOKUP($C29,'Tabulated impacts'!$B$4:$N$48,K$1,0) -> 0.6310703656 | L29: =$D29*VLOOKUP($C29,'Tabulated impacts'!$B$4:$N$48,L$1,0) -> 52.41207021 | M29: =$D29*VLOOKUP($C29,'Tabulated impacts'!$B$4:$N$48,M$1,0) -> 0.002242812107 | N29: =$D29*VLOOKUP($C29,'Tabulated impacts'!$B$4:$N$48,N$1,0) -> 0.3309201342 | O29: =$D29*VLOOKUP($C29,'Tabulated impacts'!$B$4:$N$48,O$1,0) -> 0 | P29: =$D29*VLOOKUP($C29,'Tabulated impacts'!$B$4:$N$48,P$1,0) -> 0.865842753
A30: Automobiles | B30: Motor Vehicle and Parts Dealers | C30: 441000 | D30: =IFERROR(VLOOKUP(A30,'Summary Data'!$B$9:$C$28,2,0),"")/COUNTIF('Detailed lending data'!$A$3:$A$45,'Detailed lending data'!A30) -> 168 | E30: =$D30*VLOOKUP($C30,'Tabulated impacts'!$B$4:$N$48,E$1,0) -> 0 | F30: =$D30*VLOOKUP($C30,'Tabulated impacts'!$B$4:$N$48,F$1,0) -> 2.504071855 | G30: =$D30*VLOOKUP($C30,'Tabulated impacts'!$B$4:$N$48,G$1,0) -> 0.000130838429 | H30: =$D30*VLOOKUP($C30,'Tabulated impacts'!$B$4:$N$48,H$1,0) -> 0.7104165559 | I30: =$D30*VLOOKUP($C30,'Tabulated impacts'!$B$4:$N$48,I$1,0) -> 0.02003265216 | J30: =$D30*VLOOKUP($C30,'Tabulated impacts'!$B$4:$N$48,J$1,0) -> 1.177462803 | K30: =$D30*VLOOKUP($C30,'Tabulated impacts'!$B$4:$N$48,K$1,0) -> 0.04945590565 | L30: =$D30*VLOOKUP($C30,'Tabulated impacts'!$B$4:$N$48,L$1,0) -> 0.5149292982 | M30: =$D30*VLOOKUP($C30,'Tabulated impacts'!$B$4:$N$48,M$1,0) -> 5.027484727e-05 | N30: =$D30*VLOOKUP($C30,'Tabulated impacts'!$B$4:$N$48,N$1,0) -> 0.08013340073 | O30: =$D30*VLOOKUP($C30,'Tabulated impacts'!$B$4:$N$48,O$1,0) -> 0 | P30: =$D30*VLOOKUP($C30,'Tabulated impacts'!$B$4:$N$48,P$1,0) -> 0.1852208885
A31: Construction | B31: Residential permanent site single- and multi-family structures | C31: 230201 | D31: =IFERROR(VLOOKUP(A31,'Summary Data'!$B$9:$C$28,2,0),"")/COUNTIF('Detailed lending data'!$A$3:$A$45,'Detailed lending data'!A31) -> 66.66666667 | E31: =$D31*VLOOKUP($C31,'Tabulated impacts'!$B$4:$N$48,E$1,0) -> 0.03188207796 | F31: =$D31*VLOOKUP($C31,'Tabulated impacts'!$B$4:$N$48,F$1,0) -> 2.105191213 | G31: =$D31*VLOOKUP($C31,'Tabulated impacts'!$B$4:$N$48,G$1,0) -> 1.671091953e-05 | H31: =$D31*VLOOKUP($C31,'Tabulated impacts'!$B$4:$N$48,H$1,0) -> 0.9529967052 | I31: =$D31*VLOOKUP($C31,'Tabulated impacts'!$B$4:$N$48,I$1,0) -> 0.03300819711 | J31: =$D31*VLOOKUP($C31,'Tabulated impacts'!$B$4:$N$48,J$1,0) -> 1.421810581 | K31: =$D31*VLOOKUP($C31,'Tabulated impacts'!$B$4:$N$48,K$1,0) -> 0.001666516699 | L31: =$D31*VLOOKUP($C31,'Tabulated impacts'!$B$4:$N$48,L$1,0) -> 0.5196486922 | M31: =$D31*VLOOKUP($C31,'Tabulated impacts'!$B$4:$N$48,M$1,0) -> 0.0001783571159 | N31: =$D31*VLOOKUP($C31,'Tabulated impacts'!$B$4:$N$48,N$1,0) -> 0.06865891306 | O31: =$D31*VLOOKUP($C31,'Tabulated impacts'!$B$4:$N$48,O$1,0) -> 0 | P31: =$D31*VLOOKUP($C31,'Tabulated impacts'!$B$4:$N$48,P$1,0) -> 0.1982762091
A32: Transport | B32: Support activities for transportation | C32: 48A000 | D32: =IFERROR(VLOOKUP(A32,'Summary Data'!$B$9:$C$28,2,0),"")/COUNTIF('Detailed lending data'!$A$3:$A$45,'Detailed lending data'!A32) -> 228 | E32: =$D32*VLOOKUP($C32,'Tabulated impacts'!$B$4:$N$48,E$1,0) -> 2.500449525 | F32: =$D32*VLOOKUP($C32,'Tabulated impacts'!$B$4:$N$48,F$1,0) -> 5.69228114 | G32: =$D32*VLOOKUP($C32,'Tabulated impacts'!$B$4:$N$48,G$1,0) -> 0.548450222 | H32: =$D32*VLOOKUP($C32,'Tabulated impacts'!$B$4:$N$48,H$1,0) -> 2.783250335 | I32: =$D32*VLOOKUP($C32,'Tabulated impacts'!$B$4:$N$48,I$1,0) -> 0.02176893675 | J32: =$D32*VLOOKUP($C32,'Tabulated impacts'!$B$4:$N$48,J$1,0) -> 6.113963287 | K32: =$D32*VLOOKUP($C32,'Tabulated impacts'!$B$4:$N$48,K$1,0) -> 0.2168025753 | L32: =$D32*VLOOKUP($C32,'Tabulated impacts'!$B$4:$N$48,L$1,0) -> 2.339450373 | M32: =$D32*VLOOKUP($C32,'Tabulated impacts'!$B$4:$N$48,M$1,0) -> 0.002867232707 | N32: =$D32*VLOOKUP($C32,'Tabulated impacts'!$B$4:$N$48,N$1,0) -> 1.617984624 | O32: =$D32*VLOOKUP($C32,'Tabulated impacts'!$B$4:$N$48,O$1,0) -> 0 | P32: =$D32*VLOOKUP($C32,'Tabulated impacts'!$B$4:$N$48,P$1,0) -> 0.4834093136
A33: Real Estate | B33: Real estate | C33: 531000 | D33: =IFERROR(VLOOKUP(A33,'Summary Data'!$B$9:$C$28,2,0),"")/COUNTIF('Detailed lending data'!$A$3:$A$45,'Detailed lending data'!A33) -> 50 | E33: =$D33*VLOOKUP($C33,'Tabulated impacts'!$B$4:$N$48,E$1,0) -> 0.0337817217 | F33: =$D33*VLOOKUP($C33,'Tabulated impacts'!$B$4:$N$48,F$1,0) -> 0.5749175172 | G33: =$D33*VLOOKUP($C33,'Tabulated impacts'!$B$4:$N$48,G$1,0) -> 4.481791057e-05 | H33: =$D33*VLOOKUP($C33,'Tabulated impacts'!$B$4:$N$48,H$1,0) -> 0.1631385553 | I33: =$D33*VLOOKUP($C33,'Tabulated impacts'!$B$4:$N$48,I$1,0) -> 0.002209090109 | J33: =$D33*VLOOKUP($C33,'Tabulated impacts'!$B$4:$N$48,J$1,0) -> 0.2345566024 | K33: =$D33*VLOOKUP($C33,'Tabulated impacts'!$B$4:$N$48,K$1,0) -> 6.510372929e-06 | L33: =$D33*VLOOKUP($C33,'Tabulated impacts'!$B$4:$N$48,L$1,0) -> 0.08101090956 | M33: =$D33*VLOOKUP($C33,'Tabulated impacts'!$B$4:$N$48,M$1,0) -> 1.62989092e-05 | N33: =$D33*VLOOKUP($C33,'Tabulated impacts'!$B$4:$N$48,N$1,0) -> 0.01421084118 | O33: =$D33*VLOOKUP($C33,'Tabulated impacts'!$B$4:$N$48,O$1,0) -> 0 | P33: =$D33*VLOOKUP($C33,'Tabulated impacts'!$B$4:$N$48,P$1,0) -> 0.04033674285
A34: Telecommunications | B34: Telecommunications | C34: 517000 | D34: =IFERROR(VLOOKUP(A34,'Summary Data'!$B$9:$C$28,2,0),"")/COUNTIF('Detailed lending data'!$A$3:$A$45,'Detailed lending data'!A34) -> 50 | E34: =$D34*VLOOKUP($C34,'Tabulated impacts'!$B$4:$N$48,E$1,0) -> 0.03834811555 | F34: =$D34*VLOOKUP($C34,'Tabulated impacts'!$B$4:$N$48,F$1,0) -> 0.8417237217 | G34: =$D34*VLOOKUP($C34,'Tabulated impacts'!$B$4:$N$48,G$1,0) -> 4.198909098e-05 | H34: =$D34*VLOOKUP($C34,'Tabulated impacts'!$B$4:$N$48,H$1,0) -> 0.6227536112 | I34: =$D34*VLOOKUP($C34,'Tabulated impacts'!$B$4:$N$48,I$1,0) -> 0.006445570783 | J34: =$D34*VLOOKUP($C34,'Tabulated impacts'!$B$4:$N$48,J$1,0) -> 0.4508013442 | K34: =$D34*VLOOKUP($C34,'Tabulated impacts'!$B$4:$N$48,K$1,0) -> 0.0006446703267 | L34: =$D34*VLOOKUP($C34,'Tabulated impacts'!$B$4:$N$48,L$1,0) -> 0.1896793983 | M34: =$D34*VLOOKUP($C34,'Tabulated impacts'!$B$4:$N$48,M$1,0) -> 0.0001563786713 | N34: =$D34*VLOOKUP($C34,'Tabulated impacts'!$B$4:$N$48,N$1,0) -> 0.03443028118 | O34: =$D34*VLOOKUP($C34,'Tabulated impacts'!$B$4:$N$48,O$1,0) -> 0 | P34: =$D34*VLOOKUP($C34,'Tabulated impacts'!$B$4:$N$48,P$1,0) -> 0.1124937482
A35: Agriculture | B35: Soybean Farming | C35: 111110 | D35: =IFERROR(VLOOKUP(A35,'Summary Data'!$B$9:$C$28,2,0),"")/COUNTIF('Detailed lending data'!$A$3:$A$45,'Detailed lending data'!A35) -> 18.66666667 | E35: =$D35*VLOOKUP($C35,'Tabulated impacts'!$B$4:$N$48,E$1,0) -> 1.905145697 | F35: =$D35*VLOOKUP($C35,'Tabulated impacts'!$B$4:$N$48,F$1,0) -> 0.6602543665 | G35: =$D35*VLOOKUP($C35,'Tabulated impacts'!$B$4:$N$48,G$1,0) -> 0.5778961015 | H35: =$D35*VLOOKUP($C35,'Tabulated impacts'!$B$4:$N$48,H$1,0) -> 0.6749359256 | I35: =$D35*VLOOKUP($C35,'Tabulated impacts'!$B$4:$N$48,I$1,0) -> 0.05278545831 | J35: =$D35*VLOOKUP($C35,'Tabulated impacts'!$B$4:$N$48,J$1,0) -> 0.3272760337 | K35: =$D35*VLOOKUP($C35,'Tabulated impacts'!$B$4:$N$48,K$1,0) -> 20.51991082 | L35: =$D35*VLOOKUP($C35,'Tabulated impacts'!$B$4:$N$48,L$1,0) -> 3.958824133 | M35: =$D35*VLOOKUP($C35,'Tabulated impacts'!$B$4:$N$48,M$1,0) -> 0.001352929701 | N35: =$D35*VLOOKUP($C35,'Tabulated impacts'!$B$4:$N$48,N$1,0) -> 0.3104548639 | O35: =$D35*VLOOKUP($C35,'Tabulated impacts'!$B$4:$N$48,O$1,0) -> 4.236701239 | P35: =$D35*VLOOKUP($C35,'Tabulated impacts'!$B$4:$N$48,P$1,0) -> 0.5570440182
A36: Agriculture | B36: Cotton farming | C36: 111920 | D36: =IFERROR(VLOOKUP(A36,'Summary Data'!$B$9:$C$28,2,0),"")/COUNTIF('Detailed lending data'!$A$3:$A$45,'Detailed lending data'!A36) -> 18.66666667 | E36: =$D36*VLOOKUP($C36,'Tabulated impacts'!$B$4:$N$48,E$1,0) -> 0.9090129688 | F36: =$D36*VLOOKUP($C36,'Tabulated impacts'!$B$4:$N$48,F$1,0) -> 1.483285709 | G36: =$D36*VLOOKUP($C36,'Tabulated impacts'!$B$4:$N$48,G$1,0) -> 0.2870268318 | H36: =$D36*VLOOKUP($C36,'Tabulated impacts'!$B$4:$N$48,H$1,0) -> 18.09234678 | I36: =$D36*VLOOKUP($C36,'Tabulated impacts'!$B$4:$N$48,I$1,0) -> 0.06613227704 | J36: =$D36*VLOOKUP($C36,'Tabulated impacts'!$B$4:$N$48,J$1,0) -> 0.797095642 | K36: =$D36*VLOOKUP($C36,'Tabulated impacts'!$B$4:$N$48,K$1,0) -> 10.1622255 | L36: =$D36*VLOOKUP($C36,'Tabulated impacts'!$B$4:$N$48,L$1,0) -> 1.718851183 | M36: =$D36*VLOOKUP($C36,'Tabulated impacts'!$B$4:$N$48,M$1,0) -> 0.01656670716 | N36: =$D36*VLOOKUP($C36,'Tabulated impacts'!$B$4:$N$48,N$1,0) -> 0.5026874828 | O36: =$D36*VLOOKUP($C36,'Tabulated impacts'!$B$4:$N$48,O$1,0) -> 0.7248443472 | P36: =$D36*VLOOKUP($C36,'Tabulated impacts'!$B$4:$N$48,P$1,0) -> 0.4008010829
A37: Agriculture | B37: Sugarcane Farming | C37: 111930 | D37: =IFERROR(VLOOKUP(A37,'Summary Data'!$B$9:$C$28,2,0),"")/COUNTIF('Detailed lending data'!$A$3:$A$45,'Detailed lending data'!A37) -> 18.66666667 | E37: =$D37*VLOOKUP($C37,'Tabulated impacts'!$B$4:$N$48,E$1,0) -> 1.654741099 | F37: =$D37*VLOOKUP($C37,'Tabulated impacts'!$B$4:$N$48,F$1,0) -> 0.5912316019 | G37: =$D37*VLOOKUP($C37,'Tabulated impacts'!$B$4:$N$48,G$1,0) -> 0.4414836967 | H37: =$D37*VLOOKUP($C37,'Tabulated impacts'!$B$4:$N$48,H$1,0) -> 0.4722084014 | I37: =$D37*VLOOKUP($C37,'Tabulated impacts'!$B$4:$N$48,I$1,0) -> 0.06288564584 | J37: =$D37*VLOOKUP($C37,'Tabulated impacts'!$B$4:$N$48,J$1,0) -> 0.496093304 | K37: =$D37*VLOOKUP($C37,'Tabulated impacts'!$B$4:$N$48,K$1,0) -> 13.67868469 | L37: =$D37*VLOOKUP($C37,'Tabulated impacts'!$B$4:$N$48,L$1,0) -> 0.8558334224 | M37: =$D37*VLOOKUP($C37,'Tabulated impacts'!$B$4:$N$48,M$1,0) -> 0.143709745 | N37: =$D37*VLOOKUP($C37,'Tabulated impacts'!$B$4:$N$48,N$1,0) -> 0.5032723087 | O37: =$D37*VLOOKUP($C37,'Tabulated impacts'!$B$4:$N$48,O$1,0) -> 5.242011012 | P37: =$D37*VLOOKUP($C37,'Tabulated impacts'!$B$4:$N$48,P$1,0) -> 0.2128007883
A38: Livestock | B38: Cattle ranching and farming | C38: 1121A0 | D38: =IFERROR(VLOOKUP(A38,'Summary Data'!$B$9:$C$28,2,0),"")/COUNTIF('Detailed lending data'!$A$3:$A$45,'Detailed lending data'!A38) -> 61 | E38: =$D38*VLOOKUP($C38,'Tabulated impacts'!$B$4:$N$48,E$1,0) -> 271.6791551 | F38: =$D38*VLOOKUP($C38,'Tabulated impacts'!$B$4:$N$48,F$1,0) -> 62.60635792 | G38: =$D38*VLOOKUP($C38,'Tabulated impacts'!$B$4:$N$48,G$1,0) -> 11.61145702 | H38: =$D38*VLOOKUP($C38,'Tabulated impacts'!$B$4:$N$48,H$1,0) -> 8.145976236 | I38: =$D38*VLOOKUP($C38,'Tabulated impacts'!$B$4:$N$48,I$1,0) -> 0.5112467357 | J38: =$D38*VLOOKUP($C38,'Tabulated impacts'!$B$4:$N$48,J$1,0) -> 5.121587631 | K38: =$D38*VLOOKUP($C38,'Tabulated impacts'!$B$4:$N$48,K$1,0) -> 1765.725096 | L38: =$D38*VLOOKUP($C38,'Tabulated impacts'!$B$4:$N$48,L$1,0) -> 27.93359202 | M38: =$D38*VLOOKUP($C38,'Tabulated impacts'!$B$4:$N$48,M$1,0) -> 0.006142753828 | N38: =$D38*VLOOKUP($C38,'Tabulated impacts'!$B$4:$N$48,N$1,0) -> 10.23919005 | O38: =$D38*VLOOKUP($C38,'Tabulated impacts'!$B$4:$N$48,O$1,0) -> 0 | P38: =$D38*VLOOKUP($C38,'Tabulated impacts'!$B$4:$N$48,P$1,0) -> 44.11645948
A39: Forestry | B39: Logging | C39: 113310 | D39: =IFERROR(VLOOKUP(A39,'Summary Data'!$B$9:$C$28,2,0),"")/COUNTIF('Detailed lending data'!$A$3:$A$45,'Detailed lending data'!A39) -> 470 | E39: =$D39*VLOOKUP($C39,'Tabulated impacts'!$B$4:$N$48,E$1,0) -> 11.50540956 | F39: =$D39*VLOOKUP($C39,'Tabulated impacts'!$B$4:$N$48,F$1,0) -> 8.097607257 | G39: =$D39*VLOOKUP($C39,'Tabulated impacts'!$B$4:$N$48,G$1,0) -> 0.5291472247 | H39: =$D39*VLOOKUP($C39,'Tabulated impacts'!$B$4:$N$48,H$1,0) -> 4.146682262 | I39: =$D39*VLOOKUP($C39,'Tabulated impacts'!$B$4:$N$48,I$1,0) -> 1.502902476 | J39: =$D39*VLOOKUP($C39,'Tabulated impacts'!$B$4:$N$48,J$1,0) -> 6.479113166 | K39: =$D39*VLOOKUP($C39,'Tabulated impacts'!$B$4:$N$48,K$1,0) -> 0 | L39: =$D39*VLOOKUP($C39,'Tabulated impacts'!$B$4:$N$48,L$1,0) -> 127.7173319 | M39: =$D39*VLOOKUP($C39,'Tabulated impacts'!$B$4:$N$48,M$1,0) -> 0 | N39: =$D39*VLOOKUP($C39,'Tabulated impacts'!$B$4:$N$48,N$1,0) -> 0.3108719421 | O39: =$D39*VLOOKUP($C39,'Tabulated impacts'!$B$4:$N$48,O$1,0) -> 0 | P39: =$D39*VLOOKUP($C39,'Tabulated impacts'!$B$4:$N$48,P$1,0) -> 14.25522467
A40: Fishing | B40: Other aquaculture | C40: 112519 | D40: =IFERROR(VLOOKUP(A40,'Summary Data'!$B$9:$C$28,2,0),"")/COUNTIF('Detailed lending data'!$A$3:$A$45,'Detailed lending data'!A40) -> 344 | E40: =$D40*VLOOKUP($C40,'Tabulated impacts'!$B$4:$N$48,E$1,0) -> 1.538293254e-05 | F40: =$D40*VLOOKUP($C40,'Tabulated impacts'!$B$4:$N$48,F$1,0) -> 43.5431737 | G40: =$D40*VLOOKUP($C40,'Tabulated impacts'!$B$4:$N$48,G$1,0) -> 0 | H40: =$D40*VLOOKUP($C40,'Tabulated impacts'!$B$4:$N$48,H$1,0) -> 14.01756473 | I40: =$D40*VLOOKUP($C40,'Tabulated impacts'!$B$4:$N$48,I$1,0) -> 3.794073665 | J40: =$D40*VLOOKUP($C40,'Tabulated impacts'!$B$4:$N$48,J$1,0) -> 13.66273694 | K40: =$D40*VLOOKUP($C40,'Tabulated impacts'!$B$4:$N$48,K$1,0) -> 0 | L40: =$D40*VLOOKUP($C40,'Tabulated impacts'!$B$4:$N$48,L$1,0) -> 85.10973589 | M40: =$D40*VLOOKUP($C40,'Tabulated impacts'!$B$4:$N$48,M$1,0) -> 1712.470624 | N40: =$D40*VLOOKUP($C40,'Tabulated impacts'!$B$4:$N$48,N$1,0) -> 491.0610041 | O40: =$D40*VLOOKUP($C40,'Tabulated impacts'!$B$4:$N$48,O$1,0) -> 0 | P40: =$D40*VLOOKUP($C40,'Tabulated impacts'!$B$4:$N$48,P$1,0) -> 123.417761
A41: Other Manufacturing | B41: Other industrial machinery manufacturing | C41: 33329A | D41: =IFERROR(VLOOKUP(A41,'Summary Data'!$B$9:$C$28,2,0),"")/COUNTIF('Detailed lending data'!$A$3:$A$45,'Detailed lending data'!A41) -> 200 | E41: =$D41*VLOOKUP($C41,'Tabulated impacts'!$B$4:$N$48,E$1,0) -> 0.1615233417 | F41: =$D41*VLOOKUP($C41,'Tabulated impacts'!$B$4:$N$48,F$1,0) -> 8.351799431 | G41: =$D41*VLOOKUP($C41,'Tabulated impacts'!$B$4:$N$48,G$1,0) -> 0.002129214533 | H41: =$D41*VLOOKUP($C41,'Tabulated impacts'!$B$4:$N$48,H$1,0) -> 2.410240537 | I41: =$D41*VLOOKUP($C41,'Tabulated impacts'!$B$4:$N$48,I$1,0) -> 0.2376642559 | J41: =$D41*VLOOKUP($C41,'Tabulated impacts'!$B$4:$N$48,J$1,0) -> 3.954304745 | K41: =$D41*VLOOKUP($C41,'Tabulated impacts'!$B$4:$N$48,K$1,0) -> 0.006385987688 | L41: =$D41*VLOOKUP($C41,'Tabulated impacts'!$B$4:$N$48,L$1,0) -> 1.009475569 | M41: =$D41*VLOOKUP($C41,'Tabulated impacts'!$B$4:$N$48,M$1,0) -> 0.0001093140454 | N41: =$D41*VLOOKUP($C41,'Tabulated impacts'!$B$4:$N$48,N$1,0) -> 0.144282205 | O41: =$D41*VLOOKUP($C41,'Tabulated impacts'!$B$4:$N$48,O$1,0) -> 0 | P41: =$D41*VLOOKUP($C41,'Tabulated impacts'!$B$4:$N$48,P$1,0) -> 0.4209748234
A42: Siderurgy and Metalurgy | B42: Rolling mill and other metalworking machinery manufacturing | C42: 33351B | D42: =IFERROR(VLOOKUP(A42,'Summary Data'!$B$9:$C$28,2,0),"")/COUNTIF('Detailed lending data'!$A$3:$A$45,'Detailed lending data'!A42) -> 42.33333333 | E42: =$D42*VLOOKUP($C42,'Tabulated impacts'!$B$4:$N$48,E$1,0) -> 0.03858835052 | F42: =$D42*VLOOKUP($C42,'Tabulated impacts'!$B$4:$N$48,F$1,0) -> 1.984049978 | G42: =$D42*VLOOKUP($C42,'Tabulated impacts'!$B$4:$N$48,G$1,0) -> 0.0003033371367 | H42: =$D42*VLOOKUP($C42,'Tabulated impacts'!$B$4:$N$48,H$1,0) -> 0.4548292907 | I42: =$D42*VLOOKUP($C42,'Tabulated impacts'!$B$4:$N$48,I$1,0) -> 0.05402713902 | J42: =$D42*VLOOKUP($C42,'Tabulated impacts'!$B$4:$N$48,J$1,0) -> 1.035262459 | K42: =$D42*VLOOKUP($C42,'Tabulated impacts'!$B$4:$N$48,K$1,0) -> 0.001525629229 | L42: =$D42*VLOOKUP($C42,'Tabulated impacts'!$B$4:$N$48,L$1,0) -> 0.2318849915 | M42: =$D42*VLOOKUP($C42,'Tabulated impacts'!$B$4:$N$48,M$1,0) -> 2.933683467e-05 | N42: =$D42*VLOOKUP($C42,'Tabulated impacts'!$B$4:$N$48,N$1,0) -> 0.02693402125 | O42: =$D42*VLOOKUP($C42,'Tabulated impacts'!$B$4:$N$48,O$1,0) -> 0 | P42: =$D42*VLOOKUP($C42,'Tabulated impacts'!$B$4:$N$48,P$1,0) -> 0.0697470294
A43: Transport | B43: Air transportation | C43: 481000 | D43: =IFERROR(VLOOKUP(A43,'Summary Data'!$B$9:$C$28,2,0),"")/COUNTIF('Detailed lending data'!$A$3:$A$45,'Detailed lending data'!A43) -> 228 | E43: =$D43*VLOOKUP($C43,'Tabulated impacts'!$B$4:$N$48,E$1,0) -> 41.09392272 | F43: =$D43*VLOOKUP($C43,'Tabulated impacts'!$B$4:$N$48,F$1,0) -> 11.07761212 | G43: =$D43*VLOOKUP($C43,'Tabulated impacts'!$B$4:$N$48,G$1,0) -> 0.001009682623 | H43: =$D43*VLOOKUP($C43,'Tabulated impacts'!$B$4:$N$48,H$1,0) -> 2.642793189 | I43: =$D43*VLOOKUP($C43,'Tabulated impacts'!$B$4:$N$48,I$1,0) -> 0.03863393159 | J43: =$D43*VLOOKUP($C43,'Tabulated impacts'!$B$4:$N$48,J$1,0) -> 33.40481336 | K43: =$D43*VLOOKUP($C43,'Tabulated impacts'!$B$4:$N$48,K$1,0) -> 0.3367512821 | L43: =$D43*VLOOKUP($C43,'Tabulated impacts'!$B$4:$N$48,L$1,0) -> 15.08314165 | M43: =$D43*VLOOKUP($C43,'Tabulated impacts'!$B$4:$N$48,M$1,0) -> 1.436990339e-05 | N43: =$D43*VLOOKUP($C43,'Tabulated impacts'!$B$4:$N$48,N$1,0) -> 0.5498444832 | O43: =$D43*VLOOKUP($C43,'Tabulated impacts'!$B$4:$N$48,O$1,0) -> 0 | P43: =$D43*VLOOKUP($C43,'Tabulated impacts'!$B$4:$N$48,P$1,0) -> 0.8847855442
A44: Other Manufacturing | B44: All other transportation equipment manufacturing | C44: 336999 | D44: =IFERROR(VLOOKUP(A44,'Summary Data'!$B$9:$C$28,2,0),"")/COUNTIF('Detailed lending data'!$A$3:$A$45,'Detailed lending data'!A44) -> 200 | E44: =$D44*VLOOKUP($C44,'Tabulated impacts'!$B$4:$N$48,E$1,0) -> 0.4165698731 | F44: =$D44*VLOOKUP($C44,'Tabulated impacts'!$B$4:$N$48,F$1,0) -> 14.9242937 | G44: =$D44*VLOOKUP($C44,'Tabulated impacts'!$B$4:$N$48,G$1,0) -> 0.007949665834 | H44: =$D44*VLOOKUP($C44,'Tabulated impacts'!$B$4:$N$48,H$1,0) -> 7.171649763 | I44: =$D44*VLOOKUP($C44,'Tabulated impacts'!$B$4:$N$48,I$1,0) -> 0.2594181612 | J44: =$D44*VLOOKUP($C44,'Tabulated impacts'!$B$4:$N$48,J$1,0) -> 6.693233853 | K44: =$D44*VLOOKUP($C44,'Tabulated impacts'!$B$4:$N$48,K$1,0) -> 0.005126578606 | L44: =$D44*VLOOKUP($C44,'Tabulated impacts'!$B$4:$N$48,L$1,0) -> 2.002543584 | M44: =$D44*VLOOKUP($C44,'Tabulated impacts'!$B$4:$N$48,M$1,0) -> 5.637302881e-05 | N44: =$D44*VLOOKUP($C44,'Tabulated impacts'!$B$4:$N$48,N$1,0) -> 0.3420143773 | O44: =$D44*VLOOKUP($C44,'Tabulated impacts'!$B$4:$N$48,O$1,0) -> 0 | P44: =$D44*VLOOKUP($C44,'Tabulated impacts'!$B$4:$N$48,P$1,0) -> 1.129613487
A45: Chemicals | B45: Fertilizer manufacturing | C45: 325310 | D45: =IFERROR(VLOOKUP(A45,'Summary Data'!$B$9:$C$28,2,0),"")/COUNTIF('Detailed lending data'!$A$3:$A$45,'Detailed lending data'!A45) -> 300 | E45: =$D45*VLOOKUP($C45,'Tabulated impacts'!$B$4:$N$48,E$1,0) -> 255.83947 | F45: =$D45*VLOOKUP($C45,'Tabulated impacts'!$B$4:$N$48,F$1,0) -> 112.8228416 | G45: =$D45*VLOOKUP($C45,'Tabulated impacts'!$B$4:$N$48,G$1,0) -> 1.416210278 | H45: =$D45*VLOOKUP($C45,'Tabulated impacts'!$B$4:$N$48,H$1,0) -> 140.6716655 | I45: =$D45*VLOOKUP($C45,'Tabulated impacts'!$B$4:$N$48,I$1,0) -> 1.086432384 | J45: =$D45*VLOOKUP($C45,'Tabulated impacts'!$B$4:$N$48,J$1,0) -> 81.39743124 | K45: =$D45*VLOOKUP($C45,'Tabulated impacts'!$B$4:$N$48,K$1,0) -> 0.01654721324 | L45: =$D45*VLOOKUP($C45,'Tabulated impacts'!$B$4:$N$48,L$1,0) -> 30.01567855 | M45: =$D45*VLOOKUP($C45,'Tabulated impacts'!$B$4:$N$48,M$1,0) -> 0.8909923592 | N45: =$D45*VLOOKUP($C45,'Tabulated impacts'!$B$4:$N$48,N$1,0) -> 0.7479922348 | O45: =$D45*VLOOKUP($C45,'Tabulated impacts'!$B$4:$N$48,O$1,0) -> 0.01168680552 | P45: =$D45*VLOOKUP($C45,'Tabulated impacts'!$B$4:$N$48,P$1,0) -> 3.048086813

Sheet Tabulated impacts (hidden)
C1: GHG | D1: GHG | E1: Air Pollution | F1: Air Pollution | G1: Waste | H1: Waste | I1: Land Use | J1: Land Use | K1: Water | L1: Water | M1: Water Pollutants | N1: Water Pollutants
C2: Direct | D2: Indirect | E2: Direct | F2: Indirect | G2: Direct | H2: Indirect | I2: Direct | J2: Indirect | K2: Direct | L2: Indirect | M2: Direct | N2: Indirect
A3: Trucost Sector | B3: Sector Code | C3: =C1&C2 -> GHG Direct | D3: =D1&D2 -> GHG Indirect | E3: Air Pollution Direct | F3: Air Pollution Indirect | G3: Waste Direct | H3: Waste Indirect | I3: Land Use Direct | J3: Land Use Indirect | K3: Water Direct | L3: Water Indirect | M3: Water Pollutants Direct | N3: Water Pollutants Indirect
A4: Animal (except poultry) slaughtering, rendering, and processing | B4: 31161A | C4: 0.01036311798 | D4: 1.986058978 | E4: 0.0001742992139 | F4: 0.2020199549 | G4: 0.003952172763 | H4: 0.09167001093 | I4: 3.558057985e-05 | J4: 0.413054087 | K4: 5.299198719e-06 | L4: 3.583087322 | M4: 1.628238648e-06 | N4: 0.4952102608
A5: Breweries | B5: 312120 | C5: 0.003581389981 | D5: 0.07900358819 | E5: 0.0003812592215 | F5: 0.05147969459 | G5: 0.002163091153 | H5: 0.04186878074 | I5: 5.542350094e-05 | J5: 0.1571884038 | K5: 0.0001039283732 | L5: 0.008524441095 | M5: 5.877907769e-07 | N5: 0.261175403
A6: Electric Power distribution | B6: 221122 | C6: 0.0002297807208 | D6: 0.04021214169 | E6: 0.003598734635 | F6: 0.01691157032 | G6: 0.0003647822481 | H6: 0.1020690526 | I6: 0 | J6: 0.0374746557 | K6: 0 | L6: 0.001209525484 | M6: 0 | N6: 0.003026558802
A7: Natural Gas Distribution | B7: 221200 | C7: 0.07733020406 | D7: 0.07608247192 | E7: 0.0006847460316 | F7: 0.01073648694 | G7: 0.0005922990055 | H7: 0.3505693938 | I7: 0.001893211097 | J7: 0.1572362106 | K7: 6.728436321e-06 | L7: 0.0009927604027 | M7: 0 | N7: 0.002597528259
A8: Aircraft manufacturing | B8: 336411 | C8: 0.0006755961982 | D8: 0.05325949855 | E8: 3.344464941e-05 | F8: 0.02379602755 | G8: 0.002733769208 | H8: 0.02880828969 | I8: 5.316708257e-05 | J8: 0.007136218134 | K8: 2.808073016e-07 | L8: 0.00101166804 | M8: 1.176639804e-06 | N8: 0.002942349963
A9: Other industrial machinery manufacturing | B9: 33329A | C9: 0.0008076167086 | D9: 0.04175899716 | E9: 1.064607266e-05 | F9: 0.01205120269 | G9: 0.001188321279 | H9: 0.01977152372 | I9: 3.192993844e-05 | J9: 0.005047377847 | K9: 5.46570227e-07 | L9: 0.0007214110251 | M9: 0 | N9: 0.002104874117
A10: Copper rolling, drawing, extruding and alloying | B10: 331420 | C10: 0.01616937012 | D10: 0.2301614303 | E10: 5.504306023e-05 | F10: 0.08662671652 | G10: 0.007987498529 | H10: 0.4811014441 | I10: 6.698689629e-05 | J10: 0.06250747267 | K10: 0.0002237133548 | L10: 0.003991485619 | M10: 8.968534072e-05 | N10: 0.01195325935
A11: Motor vehicle body manufacturing | B11: 336211 | C11: 0.00704792035 | D11: 0.1585236697 | E11: 0.0003860211945 | F11: 0.07152331735 | G11: 0.004227275837 | H11: 0.08191396292 | I11: 8.673627168e-05 | J11: 0.02359085259 | K11: 1.687752718e-06 | L11: 0.006555668826 | M11: 1.879741308e-06 | N11: 0.01207656822
A12: Motor Vehicle and Parts Dealers | B12: 441000 | C12: 0 | D12: 0.01490518961 | E12: 7.788001724e-07 | F12: 0.004228669976 | G12: 0.0001192419771 | H12: 0.007008707163 | I12: 0.0002943803908 | J12: 0.003065055347 | K12: 2.992550432e-07 | L12: 0.0004769845281 | M12: 0 | N12: 0.001102505289
A13: Telecommunications | B13: 517000 | C13: 0.0007669623111 | D13: 0.01683447443 | E13: 8.397818195e-07 | F13: 0.01245507222 | G13: 0.0001289114157 | H13: 0.009016026885 | I13: 1.289340653e-05 | J13: 0.003793587966 | K13: 3.127573426e-06 | L13: 0.0006886056237 | M13: 0 | N13: 0.002249874965
A14: Plate work and fabricated structural product manufacturing | B14: 332310 | C14: 0.004963862441 | D14: 0.2259824921 | E14: 0.0001013722724 | F14: 0.03434452671 | G14: 0.00357868685 | H14: 0.09143762873 | I14: 0.0001387975568 | J14: 0.01767510796 | K14: 4.028783071e-06 | L14: 0.001811759523 | M14: 0 | N14: 0.005399042756
A15: Iron and steel mills and ferroalloy manufacturing | B15: 331110 | C15: 0.5193034163 | D15: 0.2595988609 | E15: 0.004530687726 | F15: 0.04289219864 | G15: 0.003821427463 | H15: 0.2491088472 | I15: 4.272043538e-05 | J15: 0.03733324272 | K15: 0.002353282974 | L15: 0.002102905636 | M15: 0.0002172373421 | N15: 0.005319298077
A16: Motor vehicle parts manufacturing | B16: 336300 | C16: 0.01079167919 | D16: 0.4359028003 | E16: 0.0001325434463 | F16: 0.1677128358 | G16: 0.007947928273 | H16: 0.1967380361 | I16: 0.0001328093922 | J16: 0.05342477176 | K16: 4.940050398e-06 | L16: 0.01707713821 | M16: 0 | N16: 0.02743044107
A17: Support activities for transportation | B17: 48A000 | C17: 0.01096688388 | D17: 0.02496614535 | E17: 0.00240548343 | F17: 0.01220723831 | G17: 9.547779276e-05 | H17: 0.02681562845 | I17: 0.000950888488 | J17: 0.01026074725 | K17: 1.257558205e-05 | L17: 0.007096423791 | M17: 0 | N17: 0.002120216288
A18: Coffee and Tea Manufacturing | B18: 311920 | C18: 0.0563122754 | D18: 0.1792486275 | E18: 0.0001669364796 | F18: 0.195787693 | G18: 0.006070578797 | H18: 0.1025233571 | I18: 9.350279588e-05 | J18: 0.45695785 | K18: 6.434510784e-06 | L18: 0.06716917601 | M18: 0 | N18: 0.5722903525
A19: Electric Bulk Power Transmission and Control | B19: 221121 | C19: 0.0002997995921 | D19: 0.04021730164 | E19: 0.02262345441 | F19: 0.01701485419 | G19: 0.0003647822481 | H19: 0.1020707404 | I19: 0.001186120952 | J19: 0.03748118322 | K19: 0 | L19: 0.001209538526 | M19: 0 | N19: 0.003026558504
A20: Paper mills | B20: 322120 | C20: 0.02976483911 | D20: 0.05450424385 | E20: 0.01799126353 | F20: 0.1417677166 | G20: 0.001832467196 | H20: 0.03251358079 | I20: 1.821307568e-05 | J20: 0.01607067531 | K20: 0.0004371425976 | L20: 0.002508006821 | M20: 0.0021128381 | N20: 0.01278854234
A21: Other fabricated metal manufacturing | B21: 33299C | C21: 0.005653367252 | D21: 0.1668762066 | E21: 0.0003182412977 | F21: 0.03980907802 | G21: 0.003594237695 | H21: 0.07917647119 | I21: 0.0001203102201 | J21: 0.01759683411 | K21: 2.112273967e-06 | L21: 0.001650817511 | M21: 3.13879683e-06 | N21: 0.005347128941
A22: Other aquaculture | B22: 112519 | C22: 4.471782714e-08 | D22: 0.1265789933 | E22: 0 | F22: 0.04074873469 | G22: 0.01102928391 | H22: 0.03971725855 | I22: 0 | J22: 0.2474120229 | K22: 4.97811228 | L22: 1.427502919 | M22: 0 | N22: 0.358772561
A23: Rolling mill and other metalworking machinery manufacturing | B23: 33351B | C23: 0.0009115358392 | D23: 0.04686732231 | E23: 7.165444173e-06 | F23: 0.01074399899 | G23: 0.00127623163 | H23: 0.02445501871 | I23: 3.603848574e-05 | J23: 0.005477598225 | K23: 6.929960946e-07 | L23: 0.0006362367223 | M23: 0 | N23: 0.001647567624
A24: Petrochemical manufacturing | B24: 325110 | C24: 0.2256640236 | D24: 0.2073477252 | E24: 0.001196973795 | F24: 0.08379176388 | G24: 0.001470435789 | H24: 0.162199883 | I24: 2.188202455e-06 | J24: 0.09971109685 | K24: 0.0001585455525 | L24: 0.002216935787 | M24: 3.384100054e-05 | N24: 0.05485097004
A25: Valve and fittings other than plumbing | B25: 33291A | C25: 0.0207324396 | D25: 0.4227552633 | E25: 5.13055098e-05 | F25: 0.1028452947 | G25: 0.01333835123 | H25: 0.2321751854 | I25: 0.0004412103904 | J25: 0.04547572791 | K25: 9.693972859e-06 | L25: 0.00564200736 | M25: 0 | N25: 0.01457573358
A26: All other transportation equipment manufacturing | B26: 336999 | C26: 0.002082849365 | D26: 0.0746214685 | E26: 3.974832917e-05 | F26: 0.03585824882 | G26: 0.001297090806 | H26: 0.03346616927 | I26: 2.563289303e-05 | J26: 0.01001271792 | K26: 2.818651441e-07 | L26: 0.001710071886 | M26: 0 | N26: 0.005648067433
A27: Fats and oils refining and blending | B27: 311225 | C27: 0.01421105572 | D27: 0.08477614647 | E27: 3.971753202e-05 | F27: 0.0354971702 | G27: 0.0009804479619 | H27: 0.02238495333 | I27: 7.116754978e-05 | J27: 0.7077941145 | K27: 1.685655946e-06 | L27: 0.02917608517 | M27: 0 | N27: 1.045634067
A28: Pulp mills | B28: 322110 | C28: 0.0554963962 | D28: 0.0327209518 | E28: 0.007113066113 | F28: 0.1220172393 | G28: 0.001163319316 | H28: 0.02221137117 | I28: 5.622082674e-06 | J28: 0.01026870657 | K28: 0.0005982562254 | L28: 0.001861784685 | M28: 0.001275206187 | N28: 0.006506450815
A29: Residential permanent site single- and multi-family structures | B29: 230201 | C29: 0.0004782311694 | D29: 0.0315778682 | E29: 2.50663793e-07 | F29: 0.01429495058 | G29: 0.0004951229566 | H29: 0.02132715872 | I29: 2.499775048e-05 | J29: 0.007794730383 | K29: 2.675356738e-06 | L29: 0.001029883696 | M29: 0 | N29: 0.002974143136
A30: Pharmaceutical preparation manufacturing | B30: 325412 | C30: 0.003947352682 | D30: 0.1000128001 | E30: 0.0001336724674 | F30: 0.04912450077 | G30: 0.004366860656 | H30: 0.03907889733 | I30: 6.154308221e-05 | J30: 0.03933598403 | K30: 5.124320635e-06 | L30: 0.03332817096 | M30: 2.902260788e-07 | N30: 0.03928382505
A31: Air transportation | B31: 481000 | C31: 0.1802365032 | D31: 0.04858601808 | E31: 4.428432557e-06 | F31: 0.0115911982 | G31: 0.0001694470684 | H31: 0.1465123393 | I31: 0.001476979308 | J31: 0.06615413006 | K31: 6.302589206e-08 | L31: 0.002411598611 | M31: 0 | N31: 0.003880638352
A32: All other miscellaneous wood product manufacturing | B32: 321999 | C32: 0.001654820397 | D32: 0.04002517464 | E32: 0.0004177812434 | F32: 0.02569886274 | G32: 0.007201649719 | H32: 0.02448942397 | I32: 7.21329884e-05 | J32: 0.01763721521 | K32: 1.070250785e-05 | L32: 0.007903180057 | M32: 0 | N32: 0.01069908611
A33: Real estate | B33: 531000 | C33: 0.000675634434 | D33: 0.01149835034 | E33: 8.963582115e-07 | F33: 0.003262771105 | G33: 4.418180218e-05 | H33: 0.004691132048 | I33: 1.302074586e-07 | J33: 0.001620218191 | K33: 3.25978184e-07 | L33: 0.0002842168235 | M33: 0 | N33: 0.0008067348569
A34: Water Supply and Irrigation Systems and Steam and Air-Conditioning Supply | B34: 221300A | C34: 0.02199818239 | D34: 0.01752210006 | E34: 0.0008132841467 | F34: 0.03870926248 | G34: 0.0001959160493 | H34: 0.01241085815 | I34: 0 | J34: 0.004248834475 | K34: 0.02324085892 | L34: 0.0003263064473 | M34: 0 | N34: 0.001309066575
A35: Petroleum refineries | B35: 324110 | C35: 0.004317760303 | D35: 0.02191342069 | E35: 0.0001083809759 | F35: 0.005211272909 | G35: 0.0003023545641 | H35: 0.105031615 | I35: 3.775982744e-07 | J35: 0.0470419539 | K35: 3.886638624e-05 | L35: 0.000141834595 | M35: 9.746884297e-07 | N35: 0
A36: Apparel accessories and other apparel manufacturing | B36: 315900 | C36: 0.002143837532 | D36: 0.080474902 | E36: 0.0001093921399 | F36: 0.06268740633 | G36: 0.002439529963 | H36: 0.03978431996 | I36: 0.0001912226617 | J36: 0.0310290437 | K36: 1.267085586e-05 | L36: 0.059559193 | M36: 0 | N36: 0.03349826636
A37: Tobacco product manufacturing | B37: 3122A0 | C37: 0.002182698532 | D37: 0.04831509362 | E37: 0.0002101193647 | F37: 0.07373219061 | G37: 0.004997367322 | H37: 0.02845152299 | I37: 2.95742441e-05 | J37: 0.06565368573 | K37: 6.460188297e-07 | L37: 0.01099076446 | M37: 0 | N37: 0.1263510029
A38: Fertilizer manufacturing | B38: 325310 | C38: 0.8527982335 | D38: 0.3760761386 | E38: 0.004720700926 | F38: 0.4689055517 | G38: 0.003621441281 | H38: 0.2713247708 | I38: 5.515737745e-05 | J38: 0.1000522618 | K38: 0.002969974531 | L38: 0.002493307449 | M38: 3.895601841e-05 | N38: 0.01016028938
A39: Soybean Farming | B39: 111110 | C39: 0.1020613766 | D39: 0.03537076964 | E39: 0.03095871972 | F39: 0.03615728173 | G39: 0.00282779241 | H39: 0.01753264466 | I39: 1.099280937 | J39: 0.2120798643 | K39: 7.247837685e-05 | L39: 0.01663151057 | M39: 0.2269661378 | N39: 0.02984164383
A40: Cotton farming | B40: 111920 | C40: 0.04869712333 | D40: 0.07946173439 | E40: 0.01537643742 | F40: 0.9692328631 | G40: 0.003542800556 | H40: 0.04270155225 | I40: 0.5444049373 | J40: 0.09208131338 | K40: 0.0008875021693 | L40: 0.02692968658 | M40: 0.03883094717 | N40: 0.02147148658
A41: Sugarcane Farming | B41: 111930 | C41: 0.08864684456 | D41: 0.03167312153 | E41: 0.02365091232 | F41: 0.02529687865 | G41: 0.003368873884 | H41: 0.026576427 | I41: 0.7327866798 | J41: 0.04584821906 | K41: 0.007698736342 | L41: 0.02696101654 | M41: 0.2808220185 | N41: 0.01140004223
A42: Cattle ranching and farming | B42: 1121A0 | C42: 4.453756641 | D42: 1.026333736 | E42: 0.1903517544 | F42: 0.133540594 | G42: 0.008381094028 | H42: 0.08396045297 | I42: 28.94631305 | J42: 0.457927738 | K42: 0.0001007008824 | L42: 0.1678555746 | M42: 0 | N42: 0.7232206472
A43: Logging | B43: 113310 | C43: 0.0244795948 | D43: 0.01722895161 | E43: 0.001125845159 | F43: 0.008822728218 | G43: 0.003197664842 | H43: 0.01378534716 | I43: 0 | J43: 0.271739004 | K43: 0 | L43: 0.0006614296641 | M43: 0 | N43: 0.03033026525
A44: Crude Petroleum and Natural Gas Extraction | B44: 211111B | C44: 0.03082431831 | D44: 0.009430557937 | E44: 0.0001264202078 | F44: 0.002376007895 | G44: 0.0002252617779 | H44: 0.02660751799 | I44: 0.156901957 | J44: 0.01643946023 | K44: 8.460363227e-05 | L44: 8.689718246e-05 | M44: 0 | N44: 0.0004393368387
A45: Iron ore mining | B45: 212210 | C45: 0.009107908468 | D45: 0.06296491782 | E45: 0.01897301316 | F45: 0.04032963626 | G45: 0.0007107887607 | H45: 0.0679762562 | I45: 0.1444825687 | J45: 0.02342292047 | K45: 0.000213515477 | L45: 0.001091712001 | M45: 0 | N45: 0.005732858845
A46: Hydroelectric Power Generation | B46: 221111 | C46: 0 | D46: 0.03384451533 | E46: 0.0039689972 | F46: 0.01412125536 | G46: 0.0003044663917 | H46: 0.08564692762 | I46: 0.01982666268 | J46: 0.03141687834 | K46: 0.01076114997 | L46: 0.001070264968 | M46: 0 | N46: 0.002526424775
A47: Cement manufacturing | B47: 327310 | C47: 1.038696542 | D47: 0.1637236841 | E47: 0.05003421703 | F47: 0.03055297333 | G47: 0.001180034065 | H47: 0.1062515981 | I47: 3.45327872e-05 | J47: 0.02401703651 | K47: 0.0005604860744 | L47: 0.001127905938 | M47: 1.149287028e-05 | N47: 0.003107240381
A48: Primary smelting and refining of nonferrous metal (except copper and aluminum) | B48: 331419 | C48: 0.4598955638 | D48: 0.287675161 | E48: 0.1122455416 | F48: 0.1039166487 | G48: 0.008474190845 | H48: 0.8973293987 | I48: 0.000236230641 | J48: 0.2126190991 | K48: 0.007453022332 | L48: 0.004768116779 | M48: 0.002243527036 | N48: 0.01248433625

Sheet Ranking (hidden)
A1: BANKS | B1: TOTAL | C1: % TOTAL | F1: BANKS | G1: TOTAL | H1: % TOTAL
A2: SECTORS | F2: Pessoa Fisica | G2: 743949400 | H2: 38.96920692
A3: Setor Publico | B3: 77064705.5 | C3: 4.036767091 | F3: Demais servicos | G3: 75698932.8 | H3: 3.965225828
A4: Petroquimica | B4: 28678654.5 | C4: 1.502231767 | F4: Transporte e armazenagens | G4: 41633871 | H4: 2.180845813
A5: Adm Direta | B5: 20221701 | C5: 1.059243613 | F5: Construcao civil | G5: 34960665 | H5: 1.831293081
A6: Saneamento e Infraestrutura | B6: 17908102 | C6: 0.9380537607 | F6: Atividades imbiliarias, alugueis e servicos prestados as empresas | G6: 29820909 | H6: 1.562064804
A7: Producao e distribuicao de energia eletrica | B7: 7956402 | C7: 0.4167685005 | F7: Petroquimica | G7: 28678654.5 | H7: 1.502231767
A8: Outros | B8: 2191809 | C8: 0.1148103063 | F8: Siderurgica, metalurgica e mecanica | G8: 28636781 | H8: 1.500038369
A9: Setor Privado | F9: Alimenticia e bebidas | G9: 25070395 | H9: 1.313225618
A10: Industry | B10: 210634140.6 | C10: 11.0333383 | F10: Comercio varejista | G10: 23941352 | H10: 1.254084619
A11: Siderurgica, metalurgica e mecanica | B11: 28636781 | C11: 1.500038369 | F11: Adm Direta | G11: 20221701 | H11: 1.059243613
A12: Alimenticia e bebidas | B12: 25070395 | C12: 1.313225618 | F12: Veiculos leves e pesados | G12: 18901500 | H12: 0.9900894666
A13: Veiculos leves e pesados | B13: 18901500 | C13: 0.9900894666 | F13: Saneamento e Infraestrutura | G13: 17908102 | H13: 0.9380537607
A14: Demais industrias | B14: 13945428 | C14: 0.7304828384 | F14: Demais comercios | G14: 16847018 | H14: 0.8824725586
A15: Acucar e alcool | B15: 9070434 | C15: 0.4751231998 | F15: Agricultura, pecuaria, pesaca, silvicultura e exploracao florestal | G15: 14926537.63 | H15: 0.7818748606
A16: Bens de capital | B16: 8486204 | C16: 0.4445203392 | F16: Demais industrias | G16: 13945428 | H16: 0.7304828384
A17: Papel e celulose | B17: 7365131 | C17: 0.3857968216 | F17: Intermdiarios financeiros | G17: 13436150 | H17: 0.7038060782
A18: Quimica | B18: 6872610.5 | C18: 0.3599978448 | F18: Diversos | G18: 10203257 | H18: 0.5344622004
A19: Eletroeletronica | B19: 6149884 | C19: 0.3221403259 | F19: Servicos sociais, educacao, saude, defesa e seguridade social | G19: 9290865 | H19: 0.4866697126
A20: Moveis e produtos de madeira | B20: 5393289 | C20: 0.2825087231 | F20: Acucar e alcool | G20: 9070434 | H20: 0.4751231998
A21: Material de construcao | B21: 5320762 | C21: 0.2787096479 | F21: Bens de capital | G21: 8486204 | H21: 0.4445203392
A22: Textil e confeccoes | B22: 5123813 | C22: 0.2683931582 | F22: Produtos agropecuarios | G22: 8457619.5 | H22: 0.4430230394
A23: Extracao de minerais metalicos e nao metalicos | B23: 4864015.127 | C23: 0.2547845484 | F23: Vestuario e calcados | G23: 8263119 | H23: 0.4328348059
A24: Farmaceutico e cosmeticos | B24: 4394102 | C24: 0.2301697805 | F24: Produtos em lojas especializadas | G24: 8202678 | H24: 0.4296688139
A25: Petroleo e gas natural | B25: 3753504 | C25: 0.1966142779 | F25: Producao e distribuicao de energia eletrica | G25: 7956402 | H25: 0.4167685005
A26: Artigos de borracha e plastico | B26: 2700983 | C26: 0.1414816188 | F26: Atividades associativas, recreativas, culturais e disportivas | G26: 7486823 | H26: 0.3921712346
A27: Embalagens | B27: 2247092 | C27: 0.1177061143 | F27: Papel e celulose | G27: 7365131 | H27: 0.3857968216
A28: Edicao, impressao e reproducao | B28: 2101739 | C28: 0.110092302 | F28: Quimica | G28: 6872610.5 | H28: 0.3599978448
A29: Materiais nao metalicos | B29: 2006362 | C29: 0.1050963089 | F29: Eletroeletronica | G29: 6149884 | H29: 0.3221403259
A30: Autopecas e acessorios | B30: 1967945 | C30: 0.1030839677 | F30: Atacadista de mercadorias em geral | G30: 6147668 | H30: 0.3220242484
A31: Refino de petroleo e producao de alcool | B31: 1657942 | C31: 0.08684553662 | F31: Holdings, atividades juridicas, contabeis e assessoria empresarial | G31: 5701013 | H31: 0.2986277767
A32: Artefatos de couro | B32: 758274 | C32: 0.03971955137 | F32: Moveis e produtos de madeira | G32: 5393289 | H32: 0.2825087231
A33: Alimentos de origem vegetal | B33: 34941 | C33: 0.001830262998 | F33: Material de construcao | G33: 5320762 | H33: 0.2787096479
A34: Alimentos de origem animal | B34: 14232 | C34: 0.0007454939179 | F34: Textil e confeccoes | G34: 5123813 | H34: 0.2683931582
A35: Comercio | B35: 135014020.5 | C35: 7.072240803 | F35: Varejista nao especializado | G35: 4997814 | H35: 0.261793138
A36: Comercio varejista | B36: 23941352 | C36: 1.254084619 | F36: Extracao de minerais metalicos e nao metalicos | G36: 4864015.127 | H36: 0.2547845484
A37: Demais comercios | B37: 16847018 | C37: 0.8824725586 | F37: Produtos alimenticios, bebidas e fumo | G37: 4627035 | H37: 0.2423711671
A38: Intermdiarios financeiros | B38: 13436150 | C38: 0.7038060782 | F38: Alojamento e alimentacao | G38: 4607991 | H38: 0.2413736133
A39: Produtos agropecuarios | B39: 8457619.5 | C39: 0.4430230394 | F39: Farmaceutico e cosmeticos | G39: 4394102 | H39: 0.2301697805
A40: Vestuario e calcados | B40: 8263119 | C40: 0.4328348059 | F40: Producao e distribuicao de eletricidade, gas e agua | G40: 3838925 | H40: 0.2010887605
A41: Produtos em lojas especializadas | B41: 8202678 | C41: 0.4296688139 | F41: Petroleo e gas natural | G41: 3753504 | H41: 0.1966142779
A42: Atacadista de mercadorias em geral | B42: 6147668 | C42: 0.3220242484 | F42: Telecomunicaoes | G42: 3683521 | H42: 0.1929484613
A43: Varejista nao especializado | B43: 4997814 | C43: 0.261793138 | F43: Residuos e sucata | G43: 3592098 | H43: 0.1881595848
A44: Produtos alimenticios, bebidas e fumo | B44: 4627035 | C44: 0.2423711671 | F44: Veiculos automotores | G44: 3568729 | H44: 0.1869354809
A45: Residuos e sucata | B45: 3592098 | C45: 0.1881595848 | F45: Reparacao, pecas e acessorios para veiculos automotores | G45: 3083494 | H45: 0.1615181298
A46: Veiculos automotores | B46: 3568729 | C46: 0.1869354809 | F46: Utilidades domesticas | G46: 3035811 | H46: 0.1590204213
A47: Reparacao, pecas e acessorios para veiculos automotores | B47: 3083494 | C47: 0.1615181298 | F47: Artigos de borracha e plastico | G47: 2700983 | H47: 0.1414816188
A48: Utilidades domesticas | B48: 3035811 | C48: 0.1590204213 | F48: Intermediario do comercio | G48: 2495577 | H48: 0.1307221385
A49: Intermediario do comercio | B49: 2495577 | C49: 0.1307221385 | F49: Embalagens | G49: 2247092 | H49: 0.1177061143
A50: Artigos de uso pessoal e domestico | B50: 2179997 | C50: 0.1141915756 | F50: Outros | G50: 2191809 | H50: 0.1148103063
A51: Combustiveis | B51: 1921946 | C51: 0.1006744698 | F51: Artigos de uso pessoal e domestico | G51: 2179997 | H51: 0.1141915756
A52: Servicos | B52: 217821185.8 | C52: 11.40980672 | F52: Edicao, impressao e reproducao | G52: 2101739 | H52: 0.110092302
A53: Demais servicos | B53: 75698932.8 | C53: 3.965225828 | F53: Materiais nao metalicos | G53: 2006362 | H53: 0.1050963089
A54: Transporte e armazenagens | B54: 41633871 | C54: 2.180845813 | F54: Autopecas e acessorios | G54: 1967945 | H54: 0.1030839677
A55: Construcao civil | B55: 34960665 | C55: 1.831293081 | F55: Combustiveis | G55: 1921946 | H55: 0.1006744698
A56: Atividades imbiliarias, alugueis e servicos prestados as empresas | B56: 29820909 | C56: 1.562064804 | F56: Refino de petroleo e producao de alcool | G56: 1657942 | H56: 0.08684553662
A57: Servicos sociais, educacao, saude, defesa e seguridade social | B57: 9290865 | C57: 0.4866697126 | F57: Media | G57: 996835 | H57: 0.05221574126
A58: Atividades associativas, recreativas, culturais e disportivas | B58: 7486823 | C58: 0.3921712346 | F58: Artefatos de couro | G58: 758274 | H58: 0.03971955137
A59: Holdings, atividades juridicas, contabeis e assessoria empresarial | B59: 5701013 | C59: 0.2986277767 | F59: Terceiro setor | G59: 86328 | H59: 0.004521992618
A60: Alojamento e alimentacao | B60: 4607991 | C60: 0.2413736133 | F60: Alimentos de origem vegetal | G60: 34941 | H60: 0.001830262998
A61: Producao e distribuicao de eletricidade, gas e agua | B61: 3838925 | C61: 0.2010887605 | F61: Alimentos de origem animal | G61: 14232 | H61: 0.0007454939179
A62: Telecomunicaoes | B62: 3683521 | C62: 0.1929484613 | F62: Construcao pesada | G62: 8131 | H62: 0.0004259142107
A63: Media | B63: 996835 | C63: 0.05221574126 | F63: Financeiro | G63: 6376 | H63: 0.0003339846276
A64: Terceiro setor | B64: 86328 | C64: 0.004521992618
A65: Construcao pesada | B65: 8131 | C65: 0.0004259142107
A66: Financeiro | B66: 6376 | C66: 0.0003339846276
A67: Diversos | B67: 10203257 | C67: 0.5344622004
A68: Agricultura, pecuaria, pesaca, silvicultura e exploracao florestal | B68: 14926537.63 | C68: 0.7818748606
A69: Pessoa Fisica | B69: 743949400 | C69: 38.96920692
A70: TOTAL | B70: 1909069901 | C70: 73.8376969

Sheet Sheet3 (hidden)
A1: BANKS
A2: SECTORS | B2: TOTAL | C2: % TOTAL
A3: Setor Publico | B3: 77064705.5 | C3: 4.036767091
A4: Adm Direta | B4: 28678654.5 | C4: 1.502231767
A5: Petroquimica | B5: 20221701 | C5: 1.059243613
A6: Producao e distribuicao de energia eletrica | B6: 17908102 | C6: 0.9380537607
A7: Saneamento e Infraestrutura | B7: 7956402 | C7: 0.4167685005
A8: Outros | B8: 2191809 | C8: 0.1148103063
A9: Setor Privado
A10: Industry | B10: 210634140.6 | C10: 11.0333383
A11: Alimentos de origem vegetal | B11: 28636781 | C11: 1.500038369
A12: Alimentos de origem animal | B12: 25070395 | C12: 1.313225618
A13: Alimenticia e bebidas | B13: 18901500 | C13: 0.9900894666
A14: Siderurgica, metalurgica e mecanica | B14: 13945428 | C14: 0.7304828384
A15: Veiculos leves e pesados | B15: 9070434 | C15: 0.4751231998
A16: Papel e celulose | B16: 8486204 | C16: 0.4445203392
A17: Quimica | B17: 7365131 | C17: 0.3857968216
A18: Textil e confeccoes | B18: 6872610.5 | C18: 0.3599978448
A19: Artigos de borracha e plastico | B19: 6149884 | C19: 0.3221403259
A20: Moveis e produtos de madeira | B20: 5393289 | C20: 0.2825087231
A21: Materiais nao metalicos | B21: 5320762 | C21: 0.2787096479
A22: Autopecas e acessorios | B22: 5123813 | C22: 0.2683931582
A23: Refino de petroleo e producao de alcool | B23: 4864015.127 | C23: 0.2547845484
A24: Eletroeletronica | B24: 4394102 | C24: 0.2301697805
A25: Extracao de minerais metalicos e nao metalicos | B25: 3753504 | C25: 0.1966142779
A26: Artefatos de couro | B26: 2700983 | C26: 0.1414816188
A27: Edicao, impressao e reproducao | B27: 2247092 | C27: 0.1177061143
A28: Demais industrias | B28: 2101739 | C28: 0.110092302
A29: Acucar e alcool | B29: 2006362 | C29: 0.1050963089
A30: Bens de capital | B30: 1967945 | C30: 0.1030839677
A31: Farmaceutico e cosmeticos | B31: 1657942 | C31: 0.08684553662
A32: Material de construcao | B32: 758274 | C32: 0.03971955137
A33: Embalagens | B33: 34941 | C33: 0.001830262998
A34: Petroleo e gas natural | B34: 14232 | C34: 0.0007454939179
A35: Comercio | B35: 135014020.5 | C35: 7.072240803
A36: Comercio varejista | B36: 23941352 | C36: 1.254084619
A37: Produtos em lojas especializadas | B37: 16847018 | C37: 0.8824725586
A38: Varejista nao especializado | B38: 13436150 | C38: 0.7038060782
A39: Produtos alimenticios, bebidas e fumo | B39: 8457619.5 | C39: 0.4430230394
A40: Residuos e sucata | B40: 8263119 | C40: 0.4328348059
A41: Veiculos automotores | B41: 8202678 | C41: 0.4296688139
A42: Reparacao, pecas e acessorios para veiculos automotores | B42: 6147668 | C42: 0.3220242484
A43: Vestuario e calcados | B43: 4997814 | C43: 0.261793138
A44: Produtos agropecuarios | B44: 4627035 | C44: 0.2423711671
A45: Artigos de uso pessoal e domestico | B45: 3592098 | C45: 0.1881595848
A46: Combustiveis | B46: 3568729 | C46: 0.1869354809
A47: Atacadista de mercadorias em geral | B47: 3083494 | C47: 0.1615181298
A48: Utilidades domesticas | B48: 3035811 | C48: 0.1590204213
A49: Intermediario do comercio | B49: 2495577 | C49: 0.1307221385
A50: Demais comercios | B50: 2179997 | C50: 0.1141915756
A51: Intermdiarios financeiros | B51: 1921946 | C51: 0.1006744698
A52: Servicos | B52: 217821185.8 | C52: 11.40980672
A53: Construcao civil | B53: 75698932.8 | C53: 3.965225828
A54: Construcao pesada | B54: 41633871 | C54: 2.180845813
A55: Transporte e armazenagens | B55: 34960665 | C55: 1.831293081
A56: Atividades imbiliarias, alugueis e servicos prestados as empresas | B56: 29820909 | C56: 1.562064804
A57: Holdings, atividades juridicas, contabeis e assessoria empresarial | B57: 9290865 | C57: 0.4866697126
A58: Atividades associativas, recreativas, culturais e disportivas | B58: 7486823 | C58: 0.3921712346
A59: Producao e distribuicao de eletricidade, gas e agua | B59: 5701013 | C59: 0.2986277767
A60: Alojamento e alimentacao | B60: 4607991 | C60: 0.2413736133
A61: Servicos sociais, educacao, saude, defesa e seguridade social | B61: 3838925 | C61: 0.2010887605
A62: Media | B62: 3683521 | C62: 0.1929484613
A63: Telecomunicaoes | B63: 996835 | C63: 0.05221574126
A64: Demais servicos | B64: 86328 | C64: 0.004521992618
A65: Terceiro setor | B65: 8131 | C65: 0.0004259142107
A66: Financeiro | B66: 6376 | C66: 0.0003339846276
A67: Diversos | B67: 10203257 | C67: 0.5344622004
A68: Agricultura, pecuaria, pesaca, silvicultura e exploracao florestal | B68: 14926537.63 | C68: 0.7818748606
A69: Pessoa Fisica | B69: 743949400 | C69: 38.96920692
A70: TOTAL | B70: 1909069901 | C70: 73.8376969

Sheet Bradesco (hidden)
B1: Bradesco
C2: %
A3: Setor Publico
A4: Petroquimica | B4: 6126977 | C4: =(B4/$B$54)*100 -> 1.864184534
A5: Producao e distribuicao de energia eletrica | B5: 29916 | C5: 0.009102195835
A6: Saneamento e Infraestrutura | C6: 0
A7: Outros | C7: 0
A8: Setor Privado | C8: 0
A9: Industry | C9: 0
A10: Alimenticia e bebidas | B10: 13868061 | C10: 4.219474765
A11: Siderurgica, metalurgica e mecanica | B11: 10054449 | C11: 3.059151083
A12: Veiculos leves e pesados | B12: 4407580 | C12: 1.341043466
A13: Papel e celulose | B13: 4024469 | C13: 1.224478706
A14: Quimica | B14: 3661973 | C14: 1.114186234
A15: Textil e confeccoes | B15: 3130392 | C15: 0.9524482225
A16: Artigos de borracha e plastico | B16: 2700983 | C16: 0.8217969051
A17: Moveis e produtos de madeira | B17: 2213129 | C17: 0.6733632025
A18: Materiais nao metalicos | B18: 2006362 | C18: 0.6104525952
A19: Autopecas e acessorios | B19: 1967945 | C19: 0.5987638983
A20: Refino de petroleo e producao de alcool | B20: 1657942 | C20: 0.5044428656
A21: Eletroeletronica | B21: 1200951 | C21: 0.3653994916
A22: Extracao de minerais metalicos e nao metalicos | B22: 1170875 | C22: 0.3562486144
A23: Artefatos de couro | B23: 755180 | C23: 0.2297698974
A24: Edicao, impressao e reproducao | B24: 541519 | C24: 0.1647617324
A25: Demais industrias | B25: 1406101 | C25: 0.4278181129
A26: Comercio | C26: 0
A27: Produtos em lojas especializadas | B27: 8202678 | C27: 2.495734106
A28: Varejista nao especializado | B28: 4997814 | C28: 1.520627148
A29: Produtos alimenticios, bebidas e fumo | B29: 4627035 | C29: 1.407814504
A30: Residuos e sucata | B30: 3592098 | C30: 1.092926175
A31: Veiculos automotores | B31: 3568137 | C31: 1.085635838
A32: Reparacao, pecas e acessorios para veiculos automotores | B32: 3083494 | C32: 0.9381791096
A33: Vestuario e calcados | B33: 2942289 | C33: 0.895216295
A34: Produtos agropecuarios | B34: 2186741 | C34: 0.6653344305
A35: Artigos de uso pessoal e domestico | B35: 2179997 | C35: 0.6632825115
A36: Combustiveis | B36: 1921946 | C36: =(B36/$B$54)*100 -> 0.5847683138
A37: Atacadista de mercadorias em geral | B37: 1151577 | C37: 0.3503770348
A38: Intermediario do comercio | B38: 904057 | C38: 0.2750669829
A39: Demais comercios | B39: 2340900 | C39: 0.7122386091
A40: Intermdiarios financeiros | B40: 3742382 | C40: 1.138651352
A41: Servicos | C41: 0
A42: Construcao civil | B42: 23492691 | C42: 7.147849785
A43: Transporte e armazenagens | B43: 17486148 | C43: 5.320308313
A44: Atividades imbiliarias, alugueis e servicos prestados as empresas | B44: 12063574 | C44: 3.670444345
A45: Holdings, atividades juridicas, contabeis e assessoria empresarial | B45: 5701013 | C45: 1.734581387
A46: Atividades associativas, recreativas, culturais e disportivas | B46: 4037140 | C46: 1.228333965
A47: Producao e distribuicao de eletricidade, gas e agua | B47: 3838605 | C47: 1.167928013
A48: Alojamento e alimentacao | B48: 2799137 | C48: 0.8516610891
A49: Servicos sociais, educacao, saude, defesa e seguridade social | B49: 2790481 | C49: 0.849027428
A50: Telecomunicaoes | B50: 427936 | C50: 0.1302031447
A51: Demais servicos | B51: 12125985 | C51: 3.689433419
A52: Agricultura, pecuaria, pesaca, silvicultura e exploracao florestal | B52: 3580238 | C52: 1.08931767
A53: Pessoa Fisica | B53: 133959048 | C53: 40.75817251
A54: TOTAL | B54: =SUM(B4:B53) -> 328667945 | C54: =SUM(C4:C53) -> 100

Sheet CEF (hidden)
A1: Setor
A2: Setor Publico | B2: 37076753
A3: Adm direta | B3: 20202347 | C3: =(B3/$B$27)*100 -> 4.087582219
A4: Petroquimico | B4: 11241113 | C4: =(B4/$B$27)*100 -> 2.274437402
A5: Saneamento e Infraestrutura | B5: 3643837 | C5: 0.7372649984
A6: Outros | B6: 1989456 | C6: 0.4025307045
A7: Setor Privado
A8: Pessoa Juridica
A9: Comercio varejista | B9: 23923477 | C9: 4.840486068
A10: Contrucao civil | B10: 11450176 | C10: 2.316737546
A11: Siderurgia e metarlugia | B11: 9520536 | C11: 1.926309535
A12: Energia Electrica | B12: 7845936 | C12: 1.58748429
A13: Servicos Financeiros | B13: 5081949 | C13: 1.028241143
A14: Outras industrias | B14: 6800733 | C14: 1.376006228
A15: Transporte | B15: 6729159 | C15: 1.361524514
A16: Agronegocio e extrativismo | B16: 4156287 | C16: 0.8409500558
A17: Comercio atacadista | B17: 4989191 | C17: 1.009473227
A18: Saude | B18: 3393988 | C18: 0.6867125388
A19: Saneamento e Infraestrutura | B19: 2713321 | C19: 0.5489917916
A20: Petroquimico | B20: 2190992 | C20: 0.4433078959
A21: Textil | B21: 1979412 | C21: 0.4004984814
A22: Comunicacao | B22: 1672045 | C22: 0.3383082872
A23: Alimentacao | B23: 1808854 | C23: 0.3659891322
A24: Servicos Pessoais | B24: 344604 | C24: 0.06972443265
A25: Outros Servicos | B25: 9595834 | C25: 1.941544734
A26: Pessoa Fisica | B26: 352963833 | C26: 71.41589478
B27: =SUM(B3:B26) -> 494237080 | C27: =SUM(C3:C26) -> 100

Sheet HSBC (hidden)
A1: Industria | B1: 19301 | C1: =(B1/B32)*100 -> 3.464001378
A2: Alimentos e bebidas | B2: 4637 | C2: =(B2/$B$32)*100 -> 0.8322146206
A3: Quimica e petroquimica | B3: 4209 | C3: =(B3/$B$32)*100 -> 0.7554003317
A4: Maquinas e equipamentos | B4: 1971 | C4: 0.3537405687
A5: Papel e celulose | B5: 963 | C5: 0.17283215
A6: Textil e confeccoes | B6: 950 | C6: 0.1704990057
A7: Siderurgia e metalurgia | B7: 771 | C7: 0.1383734036
A8: Eletricidade gas e agua | B8: 320 | C8: 0.05743124403
A9: Eletroeletronicas | B9: 916 | C9: 0.164396936
A10: Madeiras e moveis | B10: 301 | C10: 0.05402126392
A11: Automotiva | B11: 592 | C11: 0.1062478015
A12: Petroleo e gas natural | B12: 12 | C12: 0.002153671651
A13: Demais indutrias | B13: 3658 | C13: 0.6565109083
A14: Comercio | B14: 9855 | C14: 1.768702844
A15: Servicos | B15: 12414 | C15: 2.227973323
A16: Financeiro | B16: 2048 | C16: 0.3675599618
A17: Transporte | B17: 1847 | C17: 0.3314859617
A18: Educacao, Saude e outros | B18: 644 | C18: 0.1155803786
A19: Telecomunicacoes | B19: 138 | C19: 0.02476722399
A20: Demais servicos | B20: 7736 | C20: 1.388400324 | Z20: 4279
A21: Construcao e imobiliario | B21: 6358 | C21: 1.14108703 | Z21: 2079
A22: Pessoa Fisica | B22: 4279 | C22: 0.7679634163 | Z22: =SUM(Z20:Z21) -> 6358
A23: Pessoa Juridica | B23: 2079 | C23: 0.3731236136
A24: Setor Primario | B24: 1037 | C24: 0.1861131252
A25: Agropecuaria | B25: 916 | C25: 0.164396936
A26: Mineracao | B26: 121 | C26: 0.02171618915
A27: Outros Pessoa fisica | B27: 28153 | C27: 5.052693166
A28: Total | B28: 77118 | C28: 13.84057087
A29: TVM e instrumentos financeiros | B29: 310930 | C29: 55.80342721
A30: Relacoes Interfinanceiras | B30: 10182 | C30: 1.827390396
A31: Outros | B31: 42732 | C31: 7.66922475
A32: TOTAL | B32: =SUM(B1:B31) -> 557188

Sheet All (hidden)
A1: BANKS | E1: Bradesco | G1: Caixa Economica Federal | I1: HSBC | K1: Santander | M1: Banco do Brasil | O1: Itau
A2: Setores | B2: Sectors | C2: TC Sectors | D2: TC Sector number | F2: % | H2: % | J2: % | L2: % | N2: % | P2: %
A3: Setor Publico | E3: =SUM(E4:E12) -> 8347885 | F3: =SUM(F4:F9) -> 2.305799577 | G3: =SUM(G4:G12) -> 49827002 | H3: =SUM(H4:H12) -> 8.926705051 | I3: =SUM(I4:I12) -> 2104.5 | J3: =SUM(J4:J12) -> 1.771770381 | K3: 108037 | L3: =(K3/$K$83)*100 -> 0.04719509912 | M3: =SUM(M4:M12) -> 48426 | N3: =SUM(N4:N12) -> 6.267163974 | O3: =SUM(O4:O12) -> 18731251 | P3: =SUM(P4:P12) -> 3.094780848
A4: Adm Direta | B4: Direct adm | G4: 20202347 | H4: =(G4/$G$83)*100 -> 3.619330599 | M4: 19354 | N4: =(M4/$M$83)*100 -> 2.504743145
A5: Petroquimica | B5: Petrochemicals | C5: Petrochemical manufacturing | D5: 325110 | E5: =6126977+2190992 -> 8317969 | F5: =1.86+0.44 -> 2.3 | G5: =11241113+2190992 -> 13432105 | H5: =(G5/$G$83)*100 -> 2.40641489 | I5: 2104.5 | J5: =(I5/$I$83)*100 -> 1.771770381 | N5: =(M5/$M$83)*100 -> 0 | O5: =(6398104/2)+3727424 -> 6926476 | P5: =(O5/$O$83)*100 -> 1.14439368
A6: Producao e distribuicao de energia eletrica | B6: Production and Distribution of electric energy | C6: Hydroelectric Power Generation | D6: 221111 | E6: 29916 | F6: =(E6/$E$83)*100 -> 0.005799577231 | G6: 7845936 | H6: =(G6/$G$83)*100 -> 1.405630556 | J6: =(I6/$I$83)*100 -> 0 | M6: 29072 | N6: =(M6/$M$83)*100 -> 3.762420829 | O6: 51478 | P6: =(O6/$O$83)*100 -> 0.008505204937
C7: Electric Power distribution | D7: 221122
C8: Electric Bulk Power Transmission and Control | D8: 221121
A9: Saneamento e Infraestrutura | B9: Sanitation and Infrastructure | C9: Water Supply and Irrigation Systems and Steam and Air-Conditioning Supply | D9: 221300A | F9: =(E9/$E$83)*100 -> 0 | G9: =3643837+2713321 -> 6357158 | H9: =(G9/$G$83)*100 -> 1.138910072 | J9: =(I9/$I$83)*100 -> 0 | N9: =(M9/$M$83)*100 -> 0 | O9: =6638648+4912296 -> 11550944 | P9: =(O9/$O$83)*100 -> 1.908449162
C10: Water transportation | D10: 483000
A12: Outros | B12: Others | F12: =(E12/$E$83)*100 -> 0 | G12: 1989456 | H12: =(G12/$G$83)*100 -> 0.3564189337 | J12: =(I12/$I$83)*100 -> 0 | N12: =(M12/$M$83)*100 -> 0 | O12: 202353 | P12: =(O12/$O$83)*100 -> 0.03343280109
A13: Setor Privado | B13: Private Sector
A14: Industry | B14: Industry | E14: =SUM(E15:E42) -> 54767911 | F14: 10.61741976 | G14: 18300681.13 | H14: 3.278639615 | I14: 16404.5 | J14: 13.81088487 | K14: 43796778 | L14: =(K14/K83)*100 -> 19.13227208 | M14: =SUM(M15:M42) -> 225810 | N14: =SUM(N15:N42) -> 29.22372893 | O14: =SUM(O15:O42) -> 93526556 | P14: =SUM(P15:P42) -> 15.45247535
A15: Alimentos de origem vegetal | B15: Food derived from animals | C15: Coffee and Tea Manufacturing | D15: 311920 | M15: 34941 | N15: =(M15/$M$83)*100 -> 4.521971181
A16: Alimentos de origem animal | B16: Food derived from plants | C16: Animal (except poultry) slaughtering, rendering, and processing | D16: 31161A | M16: 14232 | N16: =(M16/$M$83)*100 -> 1.841867544
A17: Alimenticia e bebidas | B17: Food and Beverage | C17: Breweries | D17: 312120 | E17: 13868061 | F17: =(E17/$E$83)*100 -> 2.688490801 | H17: =(G17/$G$83)*100 -> 0 | I17: 4637 | J17: =(I17/$I$83)*100 -> 3.903872301 | M17: 2970 | N17: =(M17/$M$83)*100 -> 0.3843694917 | O17: 11194727 | P17: =(O17/$O$83)*100 -> 1.849594921
C18: Fats and oils refining and blending | D18: 311225
A19: Siderurgica, metalurgica e mecanica | B19: Siderurgy, Metelurgy and Mechanical | E19: 10054449 | F19: =(E19/$E$83)*100 -> 1.949176143 | G19: 9520536 | H19: =(G19/$G$83)*100 -> 1.705641788 | I19: 771 | J19: =(I19/$I$83)*100 -> 0.6491019073 | M19: 40421 | N19: =(M19/$M$83)*100 -> 5.23117819 | O19: 9020604 | P19: =(O19/$O$83)*100 -> 1.490385906
A20: Veiculos leves e pesados | C20: Motor vehicle body manufacturing | D20: 336211 | E20: 4407580 | F20: =(E20/$E$83)*100 -> 0.8544625154 | H20: =(G20/$G$83)*100 -> 0 | I20: 1971 | J20: =(I20/$I$83)*100 -> 1.659377249 | M20: 25395 | N20: =(M20/$M$83)*100 -> 3.28655328 | O20: 14466554 | P20: =(O20/$O$83)*100 -> 2.390166799
A22: Papel e celulose | B22: Paper and Cellulose | C22: Paper mills | D22: 322120 | E22: 4024469 | F22: =(E22/$E$83)*100 -> 0.7801918297 | H22: =(G22/$G$83)*100 -> 0 | I22: 963 | J22: =(I22/$I$83)*100 -> 0.8107459621 | M22: 10560 | N22: =(M22/$M$83)*100 -> 1.366647082 | O22: 3329139 | P22: =(O22/$O$83)*100 -> 0.5500409779
C23: Pulp mills | D23: 322110
A24: Quimica | B24: Chemicals | E24: 3661973 | F24: =(E24/$E$83)*100 -> 0.7099176103 | H24: =(G24/$G$83)*100 -> 0 | I24: =4209/2 -> 2104.5 | J24: =(I24/$I$83)*100 -> 1.771770381 | M24: 9481 | N24: =(M24/$M$83)*100 -> 1.227005775 | O24: =6398104/2 -> 3199052 | P24: =(O24/$O$83)*100 -> 0.528547979
A25: Textil e confeccoes | B25: Textile | C25: Apparel accessories and other apparel manufacturing | D25: 315900 | E25: 3130392 | F25: 0.6068642254 | G25: 1979412 | H25: 0.3546195113 | I25: 950 | J25: 0.7998013125 | M25: 13059 | N25: 1.690061007
A26: Artigos de borracha e plastico | B26: Rubber and plastic items | E26: 2700983 | F26: 0.5236181143 | H26: 0 | J26: 0 | N26: 0
A27: Moveis e produtos de madeira | B27: wooden based products | C27: All other miscellaneous wood product manufacturing | D27: 321999 | E27: 2213129 | F27: 0.4290417354 | H27: 0 | I27: 301 | J27: 0.2534107316 | M27: 7207 | N27: 0.9327107497 | O27: 3172652 | P27: =(O27/$O$83)*100 -> 0.524186166
A28: Materiais nao metalicos | B28: Non metallic materials | E28: 2006362 | F28: 0.3889574599 | H28: 0 | J28: 0 | N28: 0 | P28: 0
A29: Autopecas e acessorios | B29: Vehicles and accessories | C29: Motor vehicle parts manufacturing | D29: 336300 | E29: 1967945 | F29: 0.3815098614 | H29: 0 | J29: 0 | N29: 0 | P29: 0
A30: Refino de petroleo e producao de alcool | B30: Petroleum refineries and alchool production | E30: 1657942 | F30: 0.3214120428 | H30: 0 | J30: 0 | N30: 0 | P30: 0
A31: Eletroeletronica | B31: Electronics | E31: 1200951 | F31: 0.2328188285 | H31: 0 | I31: 916 | J31: 0.7711768445 | M31: 12232 | N31: 1.583032869 | O31: 4935785 | P31: 0.8154913351
A32: Extracao de minerais metalicos e nao metalicos | B32: Metallic and non metallic minerals extraction | C32: Iron ore mining | D32: 212210 | E32: 1170875 | F32: 0.2269882334 | G32: =J27/2 -> 0.1267053658 | H32: 2.269976887e-08 | I32: 121 | J32: 0.1018694303 | N32: 0 | O32: 3693019 | P32: 0.6101613006
A33: Artefatos de couro | B33: Leather artifacts | E33: 755180 | F33: 0.1464007465 | H33: 0 | J33: 0 | M33: 3094 | N33: 0.4004172415 | P33: 0
A34: Edicao, impressao e reproducao | B34: Publication, printing and reproduction | E34: 541519 | F34: 0.104979986 | H34: 0 | J34: 0 | N34: 0 | O34: 1560220 | P34: 0.2577798447
A35: Demais industrias | B35: Other Industries | E35: 1406101 | F35: 0.2725896291 | G35: 6800733 | H35: 1.218378293 | I35: 3658 | J35: 3.079656001 | M35: 11730 | N35: 1.518065366 | O35: 5723206 | P35: 0.9455891823
A36: Acucar e alcool | B36: Sugar and alchool | O36: 9070434 | P36: 1.498618828
A37: Bens de capital | B37: Capital goods | O37: 8486204 | P37: 1.402092237
A38: Farmaceutico e cosmeticos | B38: Pharmaceuticals and cosmetics | C38: Pharmaceutical preparation manufacturing | D38: 325412 | O38: 4394102 | P38: 0.725994367
A39: Material de construcao | B39: Construction material | C39: Cement manufacturing | D39: 327310 | O39: 5320762 | P39: 0.8790973082
C40: Valve and fittings other than plumbing | D40: 33291A
A41: Embalagens | B41: Packaging | O41: 2247092 | P41: =(O41/$O$83)*100 -> 0.371264967
A42: Petroleo e gas natural | B42: Petroleum and natural gas | C42: Crude Petroleum and Natural Gas Extraction | D42: 211111B | I42: 12 | J42: =(I42/$I$83)*100 -> 0.01010275342 | M42: 40488 | N42: =(M42/$M$83)*100 -> 5.239849151 | O42: 3713004 | P42: =(O42/$O$83)*100 -> 0.6134632261
A43: Comercio | B43: Commerce | E43: =SUM(E44:E59) -> 45441145 | F43: 8.809313741 | G43: 33994617 | H43: 6.090270478 | I43: 10447 | J43: 8.795288749 | K43: 20215915 | L43: =(K43/K83)*100 -> 8.831160733 | M43: =SUM(M44:M59) -> 34307 | N43: =SUM(N44:N59) -> 4.43992059 | O43: =SUM(O44:O59) -> 35317589.5 | P43: =SUM(P44:P59) -> 5.835178845
A44: Comercio varejista | B44: Commerce | G44: 23923477 | H44: =(G44/$G$83)*100 -> 4.285985799 | J44: =(I44/$I$83)*100 -> 0 | M44: 17875 | N44: =(M44/$M$83)*100 -> 2.313334904 | P44: =(O44/$O$83)*100 -> 0
A45: Produtos em lojas especializadas | B45: Specialist products business | E45: 8202678 | F45: =(E45/$E$83)*100 -> 1.590188012 | H45: 0 | J45: 0 | N45: 0 | P45: 0
A46: Varejista nao especializado | B46: Non specialist proudcts business | E46: 4997814 | F46: 0.9688864914 | H46: 0 | J46: 0 | N46: 0 | P46: 0
A47: Produtos alimenticios, bebidas e fumo | B47: Food, drinks and tabacco | E47: 4627035 | F47: 0.8970065126 | H47: 0 | J47: 0 | N47: 0 | P47: 0
A48: Residuos e sucata | B48: Waste and scrap | E48: 3592098 | F48: 0.6963714992 | H48: 0 | J48: 0 | N48: 0 | P48: 0
A49: Veiculos automotores | B49: Vehicles | E49: 3568137 | F49: 0.6917263705 | H49: 0 | I49: 592 | J49: 0.4984025021 | N49: 0 | P49: 0
A50: Reparacao, pecas e acessorios para veiculos automotores | B50: Vehicles parts and accessories and repair | E50: 3083494 | F50: 0.5977724827 | H50: 0 | J50: 0 | N50: 0 | P50: 0
A51: Vestuario e calcados | B51: Textile and accessories (shoes) | E51: 2942289 | F51: 0.5703981913 | H51: 0 | J51: 0 | N51: 0 | O51: 5320830 | P51: 0.8791085432
A52: Produtos agropecuarios | B52: Agricultural products | E52: 2186741 | F52: 0.4239261035 | H52: 0 | J52: 0 | M52: 9532 | N52: 1.233606059 | O52: =12522693/2 -> 6261346.5 | P52: 1.034500858
A53: Artigos de uso pessoal e domestico | B53: Personal and domestic use goods | E53: 2179997 | F53: 0.4226186978 | H53: 0 | J53: 0 | N53: 0 | P53: 0
A54: Combustiveis | B54: Fuel | E54: 1921946 | F54: 0.3725924007 | H54: 0 | J54: 0 | N54: 0 | P54: 0
A55: Atacadista de mercadorias em geral | B55: General goods wholesalers | E55: 1151577 | F55: 0.2232470835 | G55: 4989191 | H55: 0.8938333577 | J55: 0 | M55: 6900 | N55: 0.8929796271 | P55: 0
A56: Utilidades domesticas | B56: Domestic utilities | O56: 3035811 | P56: 0.50157727
A57: Intermediario do comercio | B57: Business Traders | E57: 904057 | F57: =(E57/$E$83)*100 -> 0.1752623477 | H57: =(G57/$G$83)*100 -> 0 | J57: =(I57/$I$83)*100 -> 0 | N57: =(M57/$M$83)*100 -> 0 | O57: 1591520 | P57: 0.2629512367
A58: Demais comercios | B58: Other commerce | E58: 2340900 | F58: =(E58/$E$83)*100 -> 0.453811684 | H58: =(G58/$G$83)*100 -> 0 | I58: 9855 | J58: =(I58/$I$83)*100 -> 8.296886247 | N58: =(M58/$M$83)*100 -> 0 | O58: 14496263 | P58: 2.395075326
A59: Intermdiarios financeiros | B59: Financial traders | E59: 3742382 | F59: =(E59/$E$83)*100 -> 0.7255058643 | G59: 5081949 | H59: =(G59/$G$83)*100 -> 0.9104513213 | J59: =(I59/$I$83)*100 -> 0 | N59: =(M59/$M$83)*100 -> 0 | O59: 4611819 | P59: 0.7619656111
A60: Servicos | B60: Services | E60: =SUM(E61:E74) -> 84762710 | F60: 16.43227313 | G60: 25398834.8 | H60: 4.550302 | I60: 14812 | J60: 12.47016531 | K60: 43399045 | L60: 18.9585256 | M60: 102017 | N60: 13.2027685 | O60: 64143767 | P60: 10.59784537
A61: Construcao civil | B61: Civil contruction | E61: 23492691 | F61: =(E61/$E$83)*100 -> 4.554341349 | G61: 11450176 | H61: =(G61/$G$83)*100 -> 2.051344448 | I61: 2079 | J61: =(I61/$I$83)*100 -> 1.75030203 | M61: 15719 | N61: =(M61/$M$83)*100 -> 2.034311124 | P61: =(O61/$O$83)*100 -> 0
A62: Construcao pesada | B62: Heavy construction | M62: 8131 | N62: 1.052292369 | P62: 0
A63: Transporte e armazenagens | B63: Transport and storage | E63: 17486148 | F63: =(E63/$E$83)*100 -> 3.389900581 | G63: 6729159 | H63: =(G63/$G$83)*100 -> 1.205555527 | I63: 1847 | J63: =(I63/$I$83)*100 -> 1.554982131 | M63: 24425 | N63: 3.161018463 | O63: 17392292 | P63: 2.873557787
A64: Atividades imbiliarias, alugueis e servicos prestados as empresas | B64: Business support related to real estate | E64: 12063574 | F64: 2.338669244 | H64: 0 | J64: 0 | M64: 15443 | N64: 1.998591939 | O64: 17741892 | P64: 2.931318766
A65: Holdings, atividades juridicas, contabeis e assessoria empresarial | B65: Holdings, legal activities, tax and business suport services | E65: 5701013 | F65: 1.105210094 | H65: 0 | J65: 0 | N65: 0 | P65: 0
A66: Atividades associativas, recreativas, culturais e disportivas | B66: Social, sports and cultural activities | E66: 4037140 | F66: 0.7826482558 | H66: 0 | J66: 0 | N66: 0 | O66: 3449683 | P66: 0.5699572804
A67: Producao e distribuicao de eletricidade, gas e agua | B67: Production and distribution of electricity, gas and water | E67: 3838605 | F67: 0.7441598528 | H67: 0 | I67: 320 | J67: 0.2694067579 | N67: 0 | P67: 0
A68: Alojamento e alimentacao | B68: Food and Lodging | E68: 2799137 | F68: 0.5426464504 | G68: 1808854 | H68: 0.3240633691 | J68: 0 | N68: 0 | P68: 0
A69: Servicos sociais, educacao, saude, defesa e seguridade social | B69: Social services, education, health, and defense | E69: 2790481 | F69: 0.5409683805 | G69: 3393988 | H69: 0.6080464127 | I69: 644 | J69: 0.5421811003 | N69: 0 | O69: =1376212+1726480+3060 -> 3105752 | P69: 0.5131329353
A70: Media | B70: Media | O70: 996835 | P70: 0.164697268
A71: Telecomunicaoes | B71: Telecommunications | C71: Telecommunications | D71: 517000 | E71: 427936 | F71: =(E71/$E$83)*100 -> 0.08296055227 | G71: 1672045 | H71: =(G71/$G$83)*100 -> 0.299553494 | I71: 138 | J71: =(I71/$I$83)*100 -> 0.1161816643 | M71: 11821 | N71: =(M71/$M$83)*100 -> 1.529842344 | O71: 1571581 | P71: 0.2596569113
A72: Demais servicos | B72: Other services | E72: 12125985 | F72: =(E72/$E$83)*100 -> 2.350768368 | G72: =344604+J43 -> 344612.7953 | H72: =(G72/$G$83)*100 -> 0.06173874921 | I72: 7736 | J72: =(I72/$I$83)*100 -> 6.512908372 | K72: 43394717 | L72: =(K72/K83)*100 -> 18.95663495 | M72: 26478 | N72: =(M72/$M$83)*100 -> 3.426712256 | O72: 19799404 | P72: 3.271261289
A73: Terceiro Setor | B73: Third Sector | O73: 86328 | P73: 0.01426312856
A74: Financeiro | B74: Financial | I74: 2048 | J74: =(I74/$I$83)*100 -> 1.724203251 | K74: 4328 | L74: =(K74/K83)*100 -> 0.001890652174 | N74: =(M74/$M$83)*100 -> 0 | P74: 0
A75: Diversos | O75: 10203257 | P75: 1.685784059
A76: Agricultura, pecuaria, pesaca, silvicultura e exploracao florestal | B76: Agriculture, livestock farming, fishing and forestry | C76: Soybean Farming | D76: 111110 | E76: 3580238 | F76: =(E76/$E$83)*100 -> 0.6940722953 | G76: =J27/2 -> 0.1267053658 | H76: =(G76/$G$83)*100 -> 2.269976887e-08 | I76: 916 | J76: =(I76/$I$83)*100 -> 0.7711768445 | K76: 5084037 | L76: =(K76/K83)*100 -> 2.220920889 | O76: =12522693/2 -> 6261346.5 | P76: 1.034500858
C77: Cotton farming | D77: 111920
C78: Sugarcane Farming | D78: 111930
C79: Cattle ranching and farming | D79: 1121A0
C80: Logging | D80: 113310
C81: Other aquaculture | D81: 112519
A82: Pessoa Fisica | E82: 133959048 | F82: =(E82/$E$83)*100 -> 25.9695763 | G82: 352963833 | H82: =(G82/$G$83)*100 -> 63.23487074 | I82: =4279+28153 -> 32432 | J82: =(I82/$I$83)*100 -> 27.30437491 | K82: 72912861 | L82: =(K82/K83)*100 -> 31.8514 | O82: 184081226 | P82: =(O82/$O$83)*100 -> 30.41393512
A83: TOTAL | E83: =SUM(E5:E82) -> 515830703 | F83: =SUM(F5:F82) -> 100.6874614 | G83: =SUM(G4:G82) -> 558179101 | H83: =SUM(H4:H82) -> 100 | I83: =SUM(I4:I82) -> 118779.5 | J83: =SUM(J3:J82) -> 101.7717704 | K83: =SUM(K3:K82) -> 228915718 | L83: =SUM(L2:L82) -> 100 | M83: =SUM(M4:M72) -> 772694 | N83: =SUM(N4:N82) -> 100 | O83: =SUM(O4:O82) -> 605252905.5 | P83: =SUM(P4:P82) -> 100
